Body Name,Body,Service Label,Service Code,Service Division Label,Service Division Code,Expenditure Category,Expenditure Code,CIPFA Detailed Expenditure Type,CIPFA Detailed Expenditure Code,Date,Transaction Number,CC 43 TBM Section,CCN 43 TBM Section,CC 02 Council or Non Council,Net Amount,Capital and Revenue,Creditor Name
Brighton & Hove City Council,http://statistics.data.gov.uk/id/local-authority/00ML,Housing Revenue Account,BVAHOU,Hsing Management - HRA,HGM,Supplies and Services,E,Communications n Computing,EH,28/04/2021,PAY01369710,HPAI,Property & Investment,COUN,450,Revenue,2020 Technologies Ltd
Brighton & Hove City Council,http://statistics.data.gov.uk/id/local-authority/00ML,Children`s & Education Serv,BVAEDU,Ed EY Central,EAE,Supplies and Services,E,Communications n Computing,EH,16/06/2021,PAY01383069,FAMP,Families\Prevention,COUN,325,Revenue,24X Limited
Brighton & Hove City Council,http://statistics.data.gov.uk/id/local-authority/00ML,Central Services to the Public,BVACEN,Local Tax Collection,LTC,Supplies and Services,E,Communications n Computing,EH,01/04/2021,PAY01363692,REVS,Revenues and Benefits,COUN,185.48,Revenue,3 Business Services
Brighton & Hove City Council,http://statistics.data.gov.uk/id/local-authority/00ML,Housing General Fund,BVAHOG,Hsing Benefits,HGB,Supplies and Services,E,Communications n Computing,EH,01/04/2021,PAY01363692,REVS,Revenues and Benefits,COUN,191.55,Revenue,3 Business Services
Brighton & Hove City Council,http://statistics.data.gov.uk/id/local-authority/00ML,Central Services to the Public,BVACEN,Local Tax Collection,LTC,Supplies and Services,E,Communications n Computing,EH,26/05/2021,PAY01377413,REVS,Revenues and Benefits,COUN,185.48,Revenue,3 Business Services
Brighton & Hove City Council,http://statistics.data.gov.uk/id/local-authority/00ML,Housing General Fund,BVAHOG,Hsing Benefits,HGB,Supplies and Services,E,Communications n Computing,EH,26/05/2021,PAY01377413,REVS,Revenues and Benefits,COUN,191.55,Revenue,3 Business Services
Brighton & Hove City Council,http://statistics.data.gov.uk/id/local-authority/00ML,Central Services to the Public,BVACEN,Local Tax Collection,LTC,Supplies and Services,E,Communications n Computing,EH,11/06/2021,PAY01382669,REVS,Revenues and Benefits,COUN,185.49,Revenue,3 Business Services
Brighton & Hove City Council,http://statistics.data.gov.uk/id/local-authority/00ML,Housing General Fund,BVAHOG,Hsing Benefits,HGB,Supplies and Services,E,Communications n Computing,EH,11/06/2021,PAY01382669,REVS,Revenues and Benefits,COUN,191.54,Revenue,3 Business Services
Brighton & Hove City Council,http://statistics.data.gov.uk/id/local-authority/00ML,Central Support and Overheads,BVACEN,Support Services (SSC),PPT,Supplies and Services,E,Services,EF,28/04/2021,PAY01369470,PROP,Property and Design,COUN,17500,Revenue,3J`s Surveyors & Valuers Ltd
Brighton & Hove City Council,http://statistics.data.gov.uk/id/local-authority/00ML,Non I&E,BVANON,CAP Transport,4TR,New Construction n Conversion,PB,New Construction n Conversion,PBL5,12/05/2021,PAY01373602,TPRS,Transport Projects and Eng,COUN,1595,Capital,40 Seven Limited
Brighton & Hove City Council,http://statistics.data.gov.uk/id/local-authority/00ML,Planning and Development,BVAPLA,Community Development,CDV,Supplies and Services,E,Services,EF,19/05/2021,PAY01375779,CMNY,Communities and Equalities,COUN,4708,Revenue,5th Gen Films 
Brighton & Hove City Council,http://statistics.data.gov.uk/id/local-authority/00ML,Children`s & Education Serv,BVAEDU,Child Srvcs - Fostering,FLF,Third Party Payments,F,Other Establishments,FH,19/05/2021,PAY01375523,CHIC,Fostering and Adoption,COUN,611,Revenue,A G Family Support Ltd.
Brighton & Hove City Council,http://statistics.data.gov.uk/id/local-authority/00ML,Central Support and Overheads,BVACEN,Support Services (SSC),PPT,Premises Related,C,Repair Maint n Alterations,CA,14/04/2021,PAY01365626,PROP,Property and Design,COUN,5950,Revenue,A G M Floors Ltd
Brighton & Hove City Council,http://statistics.data.gov.uk/id/local-authority/00ML,Children`s & Education Serv,BVAEDU,Child Srvcs Leaving Care,FAL,Transfer Payments,G,Other Transfer Payments,GD,28/05/2021,PAY01377756,CARL,Care Leavers,COUN,558.34,Revenue,A G M Floors Ltd
Brighton & Hove City Council,http://statistics.data.gov.uk/id/local-authority/00ML,Environment & Regulatory Serv,BVAERS,Agricultural and Fisheries,AGF,Third Party Payments,F,Private Contractors,FJ,01/04/2021,PAY01362370,PROP,Property and Design,COUN,3257.15,Revenue,A J Taylor Electrical Contractors Ltd
Brighton & Hove City Council,http://statistics.data.gov.uk/id/local-authority/00ML,Non I&E,BVANON,Cap - Housing Services - HRA,4HR,New Construction n Conversion,PB,New Construction n Conversion,PBL5,01/04/2021,PAY01362370,HREG,Head of Regeneration,COUN,105111.17,Capital,A J Taylor Electrical Contractors Ltd
Brighton & Hove City Council,http://statistics.data.gov.uk/id/local-authority/00ML,Central Support and Overheads,BVACEN,Holding Accounts,PPH,Premises Related,C,Repair Maint n Alterations,CA,28/05/2021,PAY01377655,PROP,Property and Design,COUN,880,Revenue,A J Taylor Electrical Contractors Ltd
Brighton & Hove City Council,http://statistics.data.gov.uk/id/local-authority/00ML,Housing General Fund,BVAHOG,Homelessness,HML,Premises Related,C,Cleaning n Domestic Supps,CH,09/06/2021,PAY01381781,TRAV,Travellers,COUN,440,Revenue,A Royal Flush Ltd
Brighton & Hove City Council,http://statistics.data.gov.uk/id/local-authority/00ML,Housing General Fund,BVAHOG,Homelessness,HML,Third Party Payments,F,Other Establishments,FH,01/04/2021,PAY01363549,TAAS,Temp Accom and Allocations,COUN,700,Revenue,A&R Lettings
Brighton & Hove City Council,http://statistics.data.gov.uk/id/local-authority/00ML,Housing General Fund,BVAHOG,Homelessness,HML,Third Party Payments,F,Other Establishments,FH,18/06/2021,PAY01384242,TAAS,Temp Accom and Allocations,COUN,1750,Revenue,A&R Lettings
Brighton & Hove City Council,http://statistics.data.gov.uk/id/local-authority/00ML,Housing General Fund,BVAHOG,Homelessness,HML,Premises Related,C,Repair Maint n Alterations,CA,14/05/2021,PAY01374984,ASSA,Hostel Accommodation,COUN,456,Revenue,A&S Sussex Ltd
Brighton & Hove City Council,http://statistics.data.gov.uk/id/local-authority/00ML,Children`s & Education Serv,BVAEDU,Ed Mgmt and Support Services,EMG,Indirect Employees,B,Training,BM,01/04/2021,PAY01363070,GOVS,Governor Support,COUN,440,Revenue,A1 (Sussex) Ltd
Brighton & Hove City Council,http://statistics.data.gov.uk/id/local-authority/00ML,Children`s & Education Serv,BVAEDU,Ed Mgmt and Support Services,EMG,Indirect Employees,B,Training,BM,11/06/2021,PAY01382309,GOVS,Governor Support,COUN,605,Revenue,A1 (Sussex) Ltd
Brighton & Hove City Council,http://statistics.data.gov.uk/id/local-authority/00ML,Adult Social Care,BVASOC,Social Care Activities,ACM,Supplies and Services,E,Services,EF,16/06/2021,PAY01383218,ASIT,Assessment and SIT,COUN,1400,Revenue,AA Noah Consulting Limited
Brighton & Hove City Council,http://statistics.data.gov.uk/id/local-authority/00ML,Public Health,BVAPHE,Public Health,PHE,Indirect Employees,B,Misc Employee Costs,BP,28/04/2021,PAY01369796,PHCM,PH Commissioning,COUN,7238,Revenue,AAM Business Solutions Ltd t/a Buywise
Brighton & Hove City Council,http://statistics.data.gov.uk/id/local-authority/00ML,Adult Social Care,BVASOC,ASC Learning Disabilities,ALD,Third Party Payments,F,Other Establishments,FH,14/04/2021,PAY01365709,LDIS,Adults LD Community Care,COUN,3061.76,Revenue,Abbey Care Group Ltd-Saxon Court
Brighton & Hove City Council,http://statistics.data.gov.uk/id/local-authority/00ML,Adult Social Care,BVASOC,ASC Learning Disabilities,ALD,Third Party Payments,F,Other Establishments,FH,07/05/2021,PAY01372626,LDIS,Adults LD Community Care,COUN,3061.76,Revenue,Abbey Care Group Ltd-Saxon Court
Brighton & Hove City Council,http://statistics.data.gov.uk/id/local-authority/00ML,Adult Social Care,BVASOC,ASC Learning Disabilities,ALD,Third Party Payments,F,Other Establishments,FH,04/06/2021,PAY01380295,LDIS,Adults LD Community Care,COUN,3061.76,Revenue,Abbey Care Group Ltd-Saxon Court
Brighton & Hove City Council,http://statistics.data.gov.uk/id/local-authority/00ML,Adult Social Care,BVASOC,ASC Memory Cognition Support,MEM,Customer n Client Receipts,M,Fees n Charges,MB,14/04/2021,PAY01366047,COGN,Memory Cognition Support,COUN,-947.08,Revenue,Abbey Retirement Home
Brighton & Hove City Council,http://statistics.data.gov.uk/id/local-authority/00ML,Adult Social Care,BVASOC,ASC Memory Cognition Support,MEM,Third Party Payments,F,Other Establishments,FH,14/04/2021,PAY01366047,COGN,Memory Cognition Support,COUN,2180,Revenue,Abbey Retirement Home
Brighton & Hove City Council,http://statistics.data.gov.uk/id/local-authority/00ML,Adult Social Care,BVASOC,ASC Memory Cognition Support,MEM,Customer n Client Receipts,M,Fees n Charges,MB,07/05/2021,PAY01373090,COGN,Memory Cognition Support,COUN,-947.08,Revenue,Abbey Retirement Home
Brighton & Hove City Council,http://statistics.data.gov.uk/id/local-authority/00ML,Adult Social Care,BVASOC,ASC Memory Cognition Support,MEM,Third Party Payments,F,Other Establishments,FH,07/05/2021,PAY01373090,COGN,Memory Cognition Support,COUN,2180,Revenue,Abbey Retirement Home
Brighton & Hove City Council,http://statistics.data.gov.uk/id/local-authority/00ML,Adult Social Care,BVASOC,ASC Memory Cognition Support,MEM,Customer n Client Receipts,M,Fees n Charges,MB,04/06/2021,PAY01380711,COGN,Memory Cognition Support,COUN,-947.08,Revenue,Abbey Retirement Home
Brighton & Hove City Council,http://statistics.data.gov.uk/id/local-authority/00ML,Adult Social Care,BVASOC,ASC Memory Cognition Support,MEM,Third Party Payments,F,Other Establishments,FH,04/06/2021,PAY01380711,COGN,Memory Cognition Support,COUN,2180,Revenue,Abbey Retirement Home
Brighton & Hove City Council,http://statistics.data.gov.uk/id/local-authority/00ML,Children`s & Education Serv,BVAEDU,Child Srvcs Com and Scl Work,FCW,Supplies and Services,E,Services,EF,14/04/2021,PAY01365597,SPEA,Specialist Assessment,COUN,332.75,Revenue,Abbott Toxicology Ltd
Brighton & Hove City Council,http://statistics.data.gov.uk/id/local-authority/00ML,Children`s & Education Serv,BVAEDU,Child Srvcs Com and Scl Work,FCW,Supplies and Services,E,Services,EF,09/06/2021,PAY01381135,SPEA,Specialist Assessment,COUN,266,Revenue,Abbott Toxicology Ltd
Brighton & Hove City Council,http://statistics.data.gov.uk/id/local-authority/00ML,Children`s & Education Serv,BVAEDU,Child Srvcs - Fostering,FLF,Supplies and Services,E,Miscellaneous Expenses,EM,26/05/2021,PAY01376853,CHIC,Fostering and Adoption,COUN,250,Revenue,ABC Magazine Sussex
Brighton & Hove City Council,http://statistics.data.gov.uk/id/local-authority/00ML,Children`s & Education Serv,BVAEDU,Ed Mgmt and Support Services,EMG,Supplies and Services,E,Miscellaneous Expenses,EM,26/05/2021,PAY01376853,GOVS,Governor Support,COUN,275,Revenue,ABC Magazine Sussex
Brighton & Hove City Council,http://statistics.data.gov.uk/id/local-authority/00ML,Non I&E,BVANON,CAP Other Env Services,4EV,New Construction n Conversion,PB,New Construction n Conversion,PBL5,01/04/2021,PAY01363802,MJPR,Major Projects,COUN,25177.88,Capital,Aberdeen Standard UK Shopping Centre Trust
Brighton & Hove City Council,http://statistics.data.gov.uk/id/local-authority/00ML,Non I&E,BVANON,CAP Other Env Services,4EV,New Construction n Conversion,PB,New Construction n Conversion,PBL5,05/05/2021,PAY01372233,MJPR,Major Projects,COUN,19125,Capital,Aberdeen Standard UK Shopping Centre Trust
Brighton & Hove City Council,http://statistics.data.gov.uk/id/local-authority/00ML,Non I&E,BVANON,CAP Other Env Services,4EV,New Construction n Conversion,PB,New Construction n Conversion,PBL5,11/06/2021,PAY01382728,MJPR,Major Projects,COUN,39125,Capital,Aberdeen Standard UK Shopping Centre Trust
Brighton & Hove City Council,http://statistics.data.gov.uk/id/local-authority/00ML,Adult Social Care,BVASOC,ASC Learning Disabilities,ALD,Customer n Client Receipts,M,Fees n Charges,MB,14/04/2021,PAY01365806,LDIS,Adults LD Community Care,COUN,-424.3,Revenue,Abi House
Brighton & Hove City Council,http://statistics.data.gov.uk/id/local-authority/00ML,Adult Social Care,BVASOC,ASC Learning Disabilities,ALD,Third Party Payments,F,Other Establishments,FH,14/04/2021,PAY01365806,LDIS,Adults LD Community Care,COUN,5220.2,Revenue,Abi House
Brighton & Hove City Council,http://statistics.data.gov.uk/id/local-authority/00ML,Adult Social Care,BVASOC,ASC Learning Disabilities,ALD,Customer n Client Receipts,M,Fees n Charges,MB,07/05/2021,PAY01372717,LDIS,Adults LD Community Care,COUN,-425.6,Revenue,Abi House
Brighton & Hove City Council,http://statistics.data.gov.uk/id/local-authority/00ML,Adult Social Care,BVASOC,ASC Learning Disabilities,ALD,Third Party Payments,F,Other Establishments,FH,07/05/2021,PAY01372717,LDIS,Adults LD Community Care,COUN,5220.2,Revenue,Abi House
Brighton & Hove City Council,http://statistics.data.gov.uk/id/local-authority/00ML,Adult Social Care,BVASOC,ASC Learning Disabilities,ALD,Customer n Client Receipts,M,Fees n Charges,MB,04/06/2021,PAY01380373,LDIS,Adults LD Community Care,COUN,-425.6,Revenue,Abi House
Brighton & Hove City Council,http://statistics.data.gov.uk/id/local-authority/00ML,Adult Social Care,BVASOC,ASC Learning Disabilities,ALD,Third Party Payments,F,Other Establishments,FH,04/06/2021,PAY01380373,LDIS,Adults LD Community Care,COUN,5220.2,Revenue,Abi House
Brighton & Hove City Council,http://statistics.data.gov.uk/id/local-authority/00ML,Non I&E,BVANON,Cap - Housing Services - HRA,4HR,New Construction n Conversion,PB,New Construction n Conversion,PBL5,14/05/2021,PAY01374401,HPAI,Property & Investment,COUN,5800,Capital,ABIR Architects Ltd
Brighton & Hove City Council,http://statistics.data.gov.uk/id/local-authority/00ML,Non I&E,BVANON,Cap - Housing Services - HRA,4HR,New Construction n Conversion,PB,New Construction n Conversion,PBL5,26/05/2021,PAY01377039,HPAI,Property & Investment,COUN,2535,Capital,ABIR Architects Ltd
Brighton & Hove City Council,http://statistics.data.gov.uk/id/local-authority/00ML,Non I&E,BVANON,Cap - Housing Services - HRA,4HR,New Construction n Conversion,PB,New Construction n Conversion,PBL5,28/05/2021,PAY01377996,HPAI,Property & Investment,COUN,1191,Capital,ABIR Architects Ltd
Brighton & Hove City Council,http://statistics.data.gov.uk/id/local-authority/00ML,Non I&E,BVANON,Cap - Housing Services - HRA,4HR,New Construction n Conversion,PB,New Construction n Conversion,PBL5,25/06/2021,PAY01385863,HPAI,Property & Investment,COUN,450,Capital,ABIR Architects Ltd
Brighton & Hove City Council,http://statistics.data.gov.uk/id/local-authority/00ML,Children`s & Education Serv,BVAEDU,Child Srvcs Com and Scl Work,FCW,Supplies and Services,E,Services,EF,05/05/2021,PAY01371962,SPEA,Specialist Assessment,COUN,391.5,Revenue,Ableprime Limited
Brighton & Hove City Council,http://statistics.data.gov.uk/id/local-authority/00ML,Housing Revenue Account,BVAHOU,Hsing Management - HRA,HGM,Supplies and Services,E,Equip't Furniture n Materials,EA,07/04/2021,PAY01364244,HPAI,Property & Investment,COUN,1395.56,Revenue,Abmec Ltd T/A Abbamechatronics
Brighton & Hove City Council,http://statistics.data.gov.uk/id/local-authority/00ML,Housing Revenue Account,BVAHOU,Hsing Management - HRA,HGM,Supplies and Services,E,Equip't Furniture n Materials,EA,14/04/2021,PAY01365987,HPAI,Property & Investment,COUN,9531.07,Revenue,Abmec Ltd T/A Abbamechatronics
Brighton & Hove City Council,http://statistics.data.gov.uk/id/local-authority/00ML,Housing Revenue Account,BVAHOU,Hsing Management - HRA,HGM,Supplies and Services,E,Equip't Furniture n Materials,EA,28/04/2021,PAY01369488,HTEN,Tenancy Services,COUN,275.6,Revenue,Abmec Ltd T/A Abbamechatronics
Brighton & Hove City Council,http://statistics.data.gov.uk/id/local-authority/00ML,Housing Revenue Account,BVAHOU,Hsing Management - HRA,HGM,Supplies and Services,E,Equip't Furniture n Materials,EA,14/05/2021,PAY01374670,HPAI,Property & Investment,COUN,816.98,Revenue,Abmec Ltd T/A Abbamechatronics
Brighton & Hove City Council,http://statistics.data.gov.uk/id/local-authority/00ML,Housing Revenue Account,BVAHOU,Hsing Management - HRA,HGM,Supplies and Services,E,Equip't Furniture n Materials,EA,14/05/2021,PAY01374670,HTEN,Tenancy Services,COUN,112.72,Revenue,Abmec Ltd T/A Abbamechatronics
Brighton & Hove City Council,http://statistics.data.gov.uk/id/local-authority/00ML,Housing Revenue Account,BVAHOU,Hsing Management - HRA,HGM,Supplies and Services,E,Equip't Furniture n Materials,EA,19/05/2021,PAY01375510,HPAI,Property & Investment,COUN,3288.28,Revenue,Abmec Ltd T/A Abbamechatronics
Brighton & Hove City Council,http://statistics.data.gov.uk/id/local-authority/00ML,Housing Revenue Account,BVAHOU,Hsing Management - HRA,HGM,Supplies and Services,E,Equip't Furniture n Materials,EA,26/05/2021,PAY01377197,HPAI,Property & Investment,COUN,5768.4,Revenue,Abmec Ltd T/A Abbamechatronics
Brighton & Hove City Council,http://statistics.data.gov.uk/id/local-authority/00ML,Children`s & Education Serv,BVAEDU,Child Srvcs Leaving Care,FAL,Transfer Payments,G,Other Transfer Payments,GD,11/06/2021,PAY01382743,CARL,Care Leavers,COUN,2165.19,Revenue,Above N Beyond Limited 
Brighton & Hove City Council,http://statistics.data.gov.uk/id/local-authority/00ML,Central Support and Overheads,BVACEN,Holding Accounts,PPH,Premises Related,C,Repair Maint n Alterations,CA,19/05/2021,PAY01375627,PROP,Property and Design,COUN,130.84,Revenue,ABS Electrical Supplies Ltd t/a SELS
Brighton & Hove City Council,http://statistics.data.gov.uk/id/local-authority/00ML,Central Support and Overheads,BVACEN,Support Services (SSC),PPT,Premises Related,C,Repair Maint n Alterations,CA,19/05/2021,PAY01375627,PROP,Property and Design,COUN,318.87,Revenue,ABS Electrical Supplies Ltd t/a SELS
Brighton & Hove City Council,http://statistics.data.gov.uk/id/local-authority/00ML,Central Support and Overheads,BVACEN,Holding Accounts,PPH,Premises Related,C,Repair Maint n Alterations,CA,26/05/2021,PAY01377316,PROP,Property and Design,COUN,5.7,Revenue,ABS Electrical Supplies Ltd t/a SELS
Brighton & Hove City Council,http://statistics.data.gov.uk/id/local-authority/00ML,Central Support and Overheads,BVACEN,Support Services (SSC),PPT,Premises Related,C,Repair Maint n Alterations,CA,26/05/2021,PAY01377316,PROP,Property and Design,COUN,367.15,Revenue,ABS Electrical Supplies Ltd t/a SELS
Brighton & Hove City Council,http://statistics.data.gov.uk/id/local-authority/00ML,Central Support and Overheads,BVACEN,Holding Accounts,PPH,Premises Related,C,Repair Maint n Alterations,CA,04/06/2021,PAY01380791,PROP,Property and Design,COUN,131.95,Revenue,ABS Electrical Supplies Ltd t/a SELS
Brighton & Hove City Council,http://statistics.data.gov.uk/id/local-authority/00ML,Central Support and Overheads,BVACEN,Support Services (SSC),PPT,Premises Related,C,Repair Maint n Alterations,CA,04/06/2021,PAY01380791,PROP,Property and Design,COUN,264.51,Revenue,ABS Electrical Supplies Ltd t/a SELS
Brighton & Hove City Council,http://statistics.data.gov.uk/id/local-authority/00ML,Central Support and Overheads,BVACEN,Holding Accounts,PPH,Premises Related,C,Repair Maint n Alterations,CA,11/06/2021,PAY01382576,PROP,Property and Design,COUN,441.17,Revenue,ABS Electrical Supplies Ltd t/a SELS
Brighton & Hove City Council,http://statistics.data.gov.uk/id/local-authority/00ML,Central Support and Overheads,BVACEN,Support Services (SSC),PPT,Premises Related,C,Repair Maint n Alterations,CA,11/06/2021,PAY01382576,PROP,Property and Design,COUN,350.31,Revenue,ABS Electrical Supplies Ltd t/a SELS
Brighton & Hove City Council,http://statistics.data.gov.uk/id/local-authority/00ML,Housing Revenue Account,BVAHOU,Hsing Management - HRA,HGM,Supplies and Services,E,Equip't Furniture n Materials,EA,12/05/2021,PAY01374015,HIII,Income Involvement Improvement,COUN,1367.88,Revenue,Absolute Home Textiles Ltd
Brighton & Hove City Council,http://statistics.data.gov.uk/id/local-authority/00ML,Children`s & Education Serv,BVAEDU,Management Services (DEC),MGT,Supplies and Services,E,Miscellaneous Expenses,EM,28/04/2021,PAY01369398,SOCK,Social Work,COUN,782.58,Revenue,Absolute Translations Ltd
Brighton & Hove City Council,http://statistics.data.gov.uk/id/local-authority/00ML,Children`s & Education Serv,BVAEDU,Management Services (DEC),MGT,Supplies and Services,E,Miscellaneous Expenses,EM,05/05/2021,PAY01371871,SOCK,Social Work,COUN,2683.16,Revenue,Absolute Translations Ltd
Brighton & Hove City Council,http://statistics.data.gov.uk/id/local-authority/00ML,Children`s & Education Serv,BVAEDU,Management Services (DEC),MGT,Supplies and Services,E,Miscellaneous Expenses,EM,12/05/2021,PAY01373703,SOCK,Social Work,COUN,355.85,Revenue,Absolute Translations Ltd
Brighton & Hove City Council,http://statistics.data.gov.uk/id/local-authority/00ML,Children`s & Education Serv,BVAEDU,Management Services (DEC),MGT,Supplies and Services,E,Miscellaneous Expenses,EM,02/06/2021,PAY01379555,SOCK,Social Work,COUN,3154.8,Revenue,Absolute Translations Ltd
Brighton & Hove City Council,http://statistics.data.gov.uk/id/local-authority/00ML,Children`s & Education Serv,BVAEDU,Management Services (DEC),MGT,Supplies and Services,E,Miscellaneous Expenses,EM,25/06/2021,PAY01386115,SOCK,Social Work,COUN,266.1,Revenue,Absolute Translations Ltd
Brighton & Hove City Council,http://statistics.data.gov.uk/id/local-authority/00ML,Non I&E,BVANON,Cap - Housing Services - HRA,4HR,New Construction n Conversion,PB,New Construction n Conversion,PBL5,01/04/2021,PAY01362966,HPAI,Property & Investment,COUN,1725,Capital,Access & Automation Ltd
Brighton & Hove City Council,http://statistics.data.gov.uk/id/local-authority/00ML,Non I&E,BVANON,Cap - Housing Services - HRA,4HR,New Construction n Conversion,PB,New Construction n Conversion,PBL5,07/04/2021,PAY01364165,HPAI,Property & Investment,COUN,525,Capital,Access & Automation Ltd
Brighton & Hove City Council,http://statistics.data.gov.uk/id/local-authority/00ML,Non I&E,BVANON,Cap - Housing Services - HRA,4HR,New Construction n Conversion,PB,New Construction n Conversion,PBL5,14/04/2021,PAY01365909,HPAI,Property & Investment,COUN,12673,Capital,Access & Automation Ltd
Brighton & Hove City Council,http://statistics.data.gov.uk/id/local-authority/00ML,Non I&E,BVANON,CAP Housing Services GF,4HG,Capital Grants,PF,Capital Grants,PFL5,05/05/2021,PAY01371872,PSHG,Private Sector Housing,COUN,2500,Capital,Access & Automation Ltd
Brighton & Hove City Council,http://statistics.data.gov.uk/id/local-authority/00ML,Non I&E,BVANON,Cap - Housing Services - HRA,4HR,New Construction n Conversion,PB,New Construction n Conversion,PBL5,21/05/2021,PAY01376260,HPAI,Property & Investment,COUN,300,Capital,Access & Automation Ltd
Brighton & Hove City Council,http://statistics.data.gov.uk/id/local-authority/00ML,Highways and Transportation,BVAHRT,Parking Services,PRK,Supplies and Services,E,Services,EF,16/04/2021,PAY01366525,PARK,Parking Services,COUN,1120,Revenue,Access Independent Ltd
Brighton & Hove City Council,http://statistics.data.gov.uk/id/local-authority/00ML,Highways and Transportation,BVAHRT,Parking Services,PRK,Supplies and Services,E,Services,EF,28/05/2021,PAY01377723,PARK,Parking Services,COUN,840,Revenue,Access Independent Ltd
Brighton & Hove City Council,http://statistics.data.gov.uk/id/local-authority/00ML,Highways and Transportation,BVAHRT,Parking Services,PRK,Supplies and Services,E,Services,EF,11/06/2021,PAY01381943,PARK,Parking Services,COUN,1120,Revenue,Access Independent Ltd
Brighton & Hove City Council,http://statistics.data.gov.uk/id/local-authority/00ML,Adult Social Care,BVASOC,ASC Mental Health Support,MHP,Third Party Payments,F,Other Establishments,FH,14/04/2021,PAY01366043,MENH,Mental Health Support,COUN,8680,Revenue,Accomplish Group
Brighton & Hove City Council,http://statistics.data.gov.uk/id/local-authority/00ML,Adult Social Care,BVASOC,ASC Mental Health Support,MHP,Third Party Payments,F,Other Establishments,FH,07/05/2021,PAY01373082,MENH,Mental Health Support,COUN,8680,Revenue,Accomplish Group
Brighton & Hove City Council,http://statistics.data.gov.uk/id/local-authority/00ML,Adult Social Care,BVASOC,ASC Mental Health Support,MHP,Third Party Payments,F,Other Establishments,FH,04/06/2021,PAY01380705,MENH,Mental Health Support,COUN,8680,Revenue,Accomplish Group
Brighton & Hove City Council,http://statistics.data.gov.uk/id/local-authority/00ML,Central Support and Overheads,BVACEN,Support Services (SSC),PPT,Premises Related,C,Repair Maint n Alterations,CA,07/05/2021,PAY01372662,PROP,Property and Design,COUN,595,Revenue,Accurate Roofing Ltd
Brighton & Hove City Council,http://statistics.data.gov.uk/id/local-authority/00ML,Non I&E,BVANON,CAP Housing Services GF,4HG,Capital Grants,PF,Capital Grants,PFL5,09/04/2021,PAY01364848,PSHG,Private Sector Housing,COUN,4905.99,Capital,Ace Glass (Southern) Ltd
Brighton & Hove City Council,http://statistics.data.gov.uk/id/local-authority/00ML,Non I&E,BVANON,CAP Housing Services GF,4HG,Capital Grants,PF,Capital Grants,PFL5,26/05/2021,PAY01377084,PSHG,Private Sector Housing,COUN,841.56,Capital,Ace Glass (Southern) Ltd
Brighton & Hove City Council,http://statistics.data.gov.uk/id/local-authority/00ML,Non I&E,BVANON,CAP Housing Services GF,4HG,Capital Grants,PF,Capital Grants,PFL5,30/06/2021,PAY01387340,PSHG,Private Sector Housing,COUN,9363.04,Capital,Ace Glass (Southern) Ltd
Brighton & Hove City Council,http://statistics.data.gov.uk/id/local-authority/00ML,Children`s & Education Serv,BVAEDU,Ed Ed Other LA Attrib Sch,ELA,Transport Related,D,Public Transport,DD,01/04/2021,PAY01362461,SCOR,School Organisation,COUN,4946.88,Revenue,Ace Travel Ltd
Brighton & Hove City Council,http://statistics.data.gov.uk/id/local-authority/00ML,Children`s & Education Serv,BVAEDU,Ed Ed Other LA Attrib Sch,ELA,Transport Related,D,Other Transport Costs,DG,21/04/2021,PAY01367499,SCOR,School Organisation,COUN,19332.04,Revenue,Ace Travel Ltd
Brighton & Hove City Council,http://statistics.data.gov.uk/id/local-authority/00ML,Children`s & Education Serv,BVAEDU,Ed Ed Other LA Attrib Sch,ELA,Transport Related,D,Public Transport,DD,21/04/2021,PAY01367499,SCOR,School Organisation,COUN,4687.21,Revenue,Ace Travel Ltd
Brighton & Hove City Council,http://statistics.data.gov.uk/id/local-authority/00ML,Children`s & Education Serv,BVAEDU,Ed Ed Other LA Attrib Sch,ELA,Transport Related,D,Other Transport Costs,DG,28/04/2021,PAY01369140,SCOR,School Organisation,COUN,840,Revenue,Ace Travel Ltd
Brighton & Hove City Council,http://statistics.data.gov.uk/id/local-authority/00ML,Children`s & Education Serv,BVAEDU,Ed Ed Other LA Attrib Sch,ELA,Transport Related,D,Public Transport,DD,12/05/2021,PAY01373499,SCOR,School Organisation,COUN,1094.36,Revenue,Ace Travel Ltd
Brighton & Hove City Council,http://statistics.data.gov.uk/id/local-authority/00ML,Children`s & Education Serv,BVAEDU,Ed Ed Other LA Attrib Sch,ELA,Transport Related,D,Other Transport Costs,DG,02/06/2021,PAY01379285,SCOR,School Organisation,COUN,9859.2,Revenue,Ace Travel Ltd
Brighton & Hove City Council,http://statistics.data.gov.uk/id/local-authority/00ML,Children`s & Education Serv,BVAEDU,Ed Ed Other LA Attrib Sch,ELA,Transport Related,D,Public Transport,DD,02/06/2021,PAY01379285,SCOR,School Organisation,COUN,2360.7,Revenue,Ace Travel Ltd
Brighton & Hove City Council,http://statistics.data.gov.uk/id/local-authority/00ML,Children`s & Education Serv,BVAEDU,Ed Ed Other LA Attrib Sch,ELA,Transport Related,D,Other Transport Costs,DG,09/06/2021,PAY01381149,SCOR,School Organisation,COUN,16847.35,Revenue,Ace Travel Ltd
Brighton & Hove City Council,http://statistics.data.gov.uk/id/local-authority/00ML,Children`s & Education Serv,BVAEDU,Ed Ed Other LA Attrib Sch,ELA,Transport Related,D,Public Transport,DD,09/06/2021,PAY01381149,SCOR,School Organisation,COUN,4068.25,Revenue,Ace Travel Ltd
Brighton & Hove City Council,http://statistics.data.gov.uk/id/local-authority/00ML,Public Health,BVAPHE,Public Health,PHE,Third Party Payments,F,Other Establishments,FH,14/05/2021,PAY01374560,PHCM,PH Commissioning,COUN,558.49,Revenue,Ackers Chemists Ltd
Brighton & Hove City Council,http://statistics.data.gov.uk/id/local-authority/00ML,Adult Social Care,BVASOC,ASC Memory Cognition Support,MEM,Customer n Client Receipts,M,Fees n Charges,MB,14/04/2021,PAY01366228,COGN,Memory Cognition Support,COUN,-1598.84,Revenue,Ackroyd House Ltd
Brighton & Hove City Council,http://statistics.data.gov.uk/id/local-authority/00ML,Adult Social Care,BVASOC,ASC Memory Cognition Support,MEM,Third Party Payments,F,Other Establishments,FH,14/04/2021,PAY01366228,COGN,Memory Cognition Support,COUN,3237.92,Revenue,Ackroyd House Ltd
Brighton & Hove City Council,http://statistics.data.gov.uk/id/local-authority/00ML,Adult Social Care,BVASOC,ASC Memory Cognition Support,MEM,Customer n Client Receipts,M,Fees n Charges,MB,07/05/2021,PAY01373266,COGN,Memory Cognition Support,COUN,-1596.2,Revenue,Ackroyd House Ltd
Brighton & Hove City Council,http://statistics.data.gov.uk/id/local-authority/00ML,Adult Social Care,BVASOC,ASC Memory Cognition Support,MEM,Third Party Payments,F,Other Establishments,FH,07/05/2021,PAY01373266,COGN,Memory Cognition Support,COUN,3237.92,Revenue,Ackroyd House Ltd
Brighton & Hove City Council,http://statistics.data.gov.uk/id/local-authority/00ML,Adult Social Care,BVASOC,ASC Memory Cognition Support,MEM,Customer n Client Receipts,M,Fees n Charges,MB,04/06/2021,PAY01380894,COGN,Memory Cognition Support,COUN,-1596.2,Revenue,Ackroyd House Ltd
Brighton & Hove City Council,http://statistics.data.gov.uk/id/local-authority/00ML,Adult Social Care,BVASOC,ASC Memory Cognition Support,MEM,Third Party Payments,F,Other Establishments,FH,04/06/2021,PAY01380894,COGN,Memory Cognition Support,COUN,3237.92,Revenue,Ackroyd House Ltd
Brighton & Hove City Council,http://statistics.data.gov.uk/id/local-authority/00ML,Adult Social Care,BVASOC,ASC Learning Disabilities,ALD,Customer n Client Receipts,M,Fees n Charges,MB,14/04/2021,PAY01365672,LDIS,Adults LD Community Care,COUN,-1450.7,Revenue,Acorn (Watford) Ltd
Brighton & Hove City Council,http://statistics.data.gov.uk/id/local-authority/00ML,Adult Social Care,BVASOC,ASC Learning Disabilities,ALD,Third Party Payments,F,Other Establishments,FH,14/04/2021,PAY01365672,LDIS,Adults LD Community Care,COUN,20378.4,Revenue,Acorn (Watford) Ltd
Brighton & Hove City Council,http://statistics.data.gov.uk/id/local-authority/00ML,Adult Social Care,BVASOC,ASC Learning Disabilities,ALD,Customer n Client Receipts,M,Fees n Charges,MB,07/05/2021,PAY01372592,LDIS,Adults LD Community Care,COUN,-1460,Revenue,Acorn (Watford) Ltd
Brighton & Hove City Council,http://statistics.data.gov.uk/id/local-authority/00ML,Adult Social Care,BVASOC,ASC Learning Disabilities,ALD,Third Party Payments,F,Other Establishments,FH,07/05/2021,PAY01372592,LDIS,Adults LD Community Care,COUN,20450.4,Revenue,Acorn (Watford) Ltd
Brighton & Hove City Council,http://statistics.data.gov.uk/id/local-authority/00ML,Adult Social Care,BVASOC,ASC Learning Disabilities,ALD,Customer n Client Receipts,M,Fees n Charges,MB,04/06/2021,PAY01380258,LDIS,Adults LD Community Care,COUN,-1460,Revenue,Acorn (Watford) Ltd
Brighton & Hove City Council,http://statistics.data.gov.uk/id/local-authority/00ML,Adult Social Care,BVASOC,ASC Learning Disabilities,ALD,Third Party Payments,F,Other Establishments,FH,04/06/2021,PAY01380258,LDIS,Adults LD Community Care,COUN,20450.4,Revenue,Acorn (Watford) Ltd
Brighton & Hove City Council,http://statistics.data.gov.uk/id/local-authority/00ML,Children`s & Education Serv,BVAEDU,Child Srvcs - Residential Svcs,FLR,Third Party Payments,F,Other Establishments,FH,28/04/2021,PAY01369625,AVFM,Agency Placements\VFM,COUN,35280,Revenue,Acorn Care & Education Ltd
Brighton & Hove City Council,http://statistics.data.gov.uk/id/local-authority/00ML,Children`s & Education Serv,BVAEDU,Child Srvcs - Residential Svcs,FLR,Third Party Payments,F,Other Establishments,FH,26/05/2021,PAY01377313,AVFM,Agency Placements\VFM,COUN,35280,Revenue,Acorn Care & Education Ltd
Brighton & Hove City Council,http://statistics.data.gov.uk/id/local-authority/00ML,Children`s & Education Serv,BVAEDU,Child Srvcs - Residential Svcs,FLR,Third Party Payments,F,Other Establishments,FH,23/06/2021,PAY01385046,AVFM,Agency Placements\VFM,COUN,42620,Revenue,Acorn Care & Education Ltd
Brighton & Hove City Council,http://statistics.data.gov.uk/id/local-authority/00ML,Central Support and Overheads,BVACEN,Support Services (SSC),PPT,Premises Related,C,Cleaning n Domestic Supps,CH,07/04/2021,PAY01364129,PROP,Property and Design,COUN,1468.1,Revenue,Acorn Environmental
Brighton & Hove City Council,http://statistics.data.gov.uk/id/local-authority/00ML,Central Support and Overheads,BVACEN,Support Services (SSC),PPT,Premises Related,C,Cleaning n Domestic Supps,CH,19/05/2021,PAY01375383,PROP,Property and Design,COUN,889.58,Revenue,Acorn Environmental
Brighton & Hove City Council,http://statistics.data.gov.uk/id/local-authority/00ML,Central Support and Overheads,BVACEN,Support Services (SSC),PPT,Premises Related,C,Cleaning n Domestic Supps,CH,09/06/2021,PAY01381338,PROP,Property and Design,COUN,237.54,Revenue,Acorn Environmental
Brighton & Hove City Council,http://statistics.data.gov.uk/id/local-authority/00ML,Central Support and Overheads,BVACEN,Support Services (SSC),PPT,Premises Related,C,Cleaning n Domestic Supps,CH,25/06/2021,PAY01385977,PROP,Property and Design,COUN,539.24,Revenue,Acorn Environmental
Brighton & Hove City Council,http://statistics.data.gov.uk/id/local-authority/00ML,Children`s & Education Serv,BVAEDU,Child Srvcs - Residential Svcs,FLR,Third Party Payments,F,Other Establishments,FH,30/04/2021,PAY01370800,AVFM,Agency Placements\VFM,COUN,22714.2,Revenue,Acorn Homes Uk Ltd
Brighton & Hove City Council,http://statistics.data.gov.uk/id/local-authority/00ML,Children`s & Education Serv,BVAEDU,Child Srvcs - Residential Svcs,FLR,Third Party Payments,F,Other Establishments,FH,11/06/2021,PAY01382378,AVFM,Agency Placements\VFM,COUN,23471.34,Revenue,Acorn Homes Uk Ltd
Brighton & Hove City Council,http://statistics.data.gov.uk/id/local-authority/00ML,Children`s & Education Serv,BVAEDU,Ed EY PVI,ENP,Supplies and Services,E,Grants n Subscriptions,EK,07/04/2021,PAY01364011,EYRS,Early Years,COUN,191319.57,Revenue,ACPH Ltd T/a Hopscotch 
Brighton & Hove City Council,http://statistics.data.gov.uk/id/local-authority/00ML,Children`s & Education Serv,BVAEDU,Ed EY PVI,ENP,Supplies and Services,E,Grants n Subscriptions,EK,09/04/2021,PAY01364701,EYRS,Early Years,COUN,16601.76,Revenue,ACPH Ltd T/a Hopscotch 
Brighton & Hove City Council,http://statistics.data.gov.uk/id/local-authority/00ML,Children`s & Education Serv,BVAEDU,Ed EY PVI,ENP,Supplies and Services,E,Grants n Subscriptions,EK,05/05/2021,PAY01371713,EYRS,Early Years,COUN,1097.23,Revenue,ACPH Ltd T/a Hopscotch 
Brighton & Hove City Council,http://statistics.data.gov.uk/id/local-authority/00ML,Children`s & Education Serv,BVAEDU,Ed EY PVI,ENP,Supplies and Services,E,Grants n Subscriptions,EK,26/05/2021,PAY01376955,EYRS,Early Years,COUN,11025,Revenue,ACPH Ltd T/a Hopscotch 
Brighton & Hove City Council,http://statistics.data.gov.uk/id/local-authority/00ML,Children`s & Education Serv,BVAEDU,Ed EY Central,EAE,Third Party Payments,F,Other Establishments,FH,09/06/2021,PAY01381204,EYRS,Early Years,COUN,3000,Revenue,ACPH Ltd T/a Hopscotch 
Brighton & Hove City Council,http://statistics.data.gov.uk/id/local-authority/00ML,Children`s & Education Serv,BVAEDU,Ed EY PVI,ENP,Supplies and Services,E,Grants n Subscriptions,EK,23/06/2021,PAY01384658,EYRS,Early Years,COUN,105483.01,Revenue,ACPH Ltd T/a Hopscotch 
Brighton & Hove City Council,http://statistics.data.gov.uk/id/local-authority/00ML,Children`s & Education Serv,BVAEDU,Ed EY PVI,ENP,Supplies and Services,E,Grants n Subscriptions,EK,25/06/2021,PAY01385649,EYRS,Early Years,COUN,8768.96,Revenue,ACPH Ltd T/a Hopscotch 
Brighton & Hove City Council,http://statistics.data.gov.uk/id/local-authority/00ML,Highways and Transportation,BVAHRT,Transport Plan Policy Strategy,TPP,Customer n Client Receipts,M,Fees n Charges,MB,09/06/2021,PAY01381144,TRPO,Transport Policy and Strategy,COUN,375,Revenue,Act TravelWise
Brighton & Hove City Council,http://statistics.data.gov.uk/id/local-authority/00ML,Adult Social Care,BVASOC,ASC Physical Support,PHY,Third Party Payments,F,Other Establishments,FH,26/05/2021,PAY01377134,PHYS,Physical Support,COUN,250,Revenue,Action Deafness
Brighton & Hove City Council,http://statistics.data.gov.uk/id/local-authority/00ML,Adult Social Care,BVASOC,Social Care Activities,ACM,Supplies and Services,E,Services,EF,12/05/2021,PAY01373877,ASIT,Assessment and SIT,COUN,5358,Revenue,Action First Assessments Ltd
Brighton & Hove City Council,http://statistics.data.gov.uk/id/local-authority/00ML,Adult Social Care,BVASOC,Social Care Activities,ACM,Supplies and Services,E,Services,EF,19/05/2021,PAY01375625,ASIT,Assessment and SIT,COUN,3080,Revenue,Action First Assessments Ltd
Brighton & Hove City Council,http://statistics.data.gov.uk/id/local-authority/00ML,Adult Social Care,BVASOC,Social Care Activities,ACM,Supplies and Services,E,Services,EF,26/05/2021,PAY01377310,ASIT,Assessment and SIT,COUN,2065,Revenue,Action First Assessments Ltd
Brighton & Hove City Council,http://statistics.data.gov.uk/id/local-authority/00ML,Adult Social Care,BVASOC,Social Care Activities,ACM,Supplies and Services,E,Services,EF,11/06/2021,PAY01382574,ASIT,Assessment and SIT,COUN,2933,Revenue,Action First Assessments Ltd
Brighton & Hove City Council,http://statistics.data.gov.uk/id/local-authority/00ML,Children`s & Education Serv,BVAEDU,Ed EY PVI,ENP,Supplies and Services,E,Grants n Subscriptions,EK,07/04/2021,PAY01364369,EYRS,Early Years,COUN,21564.9,Revenue,Active Kids Nursery
Brighton & Hove City Council,http://statistics.data.gov.uk/id/local-authority/00ML,Children`s & Education Serv,BVAEDU,Ed EY PVI,ENP,Supplies and Services,E,Grants n Subscriptions,EK,09/04/2021,PAY01365250,EYRS,Early Years,COUN,783.9,Revenue,Active Kids Nursery
Brighton & Hove City Council,http://statistics.data.gov.uk/id/local-authority/00ML,Children`s & Education Serv,BVAEDU,Ed EY PVI,ENP,Supplies and Services,E,Grants n Subscriptions,EK,05/05/2021,PAY01372084,EYRS,Early Years,COUN,682.5,Revenue,Active Kids Nursery
Brighton & Hove City Council,http://statistics.data.gov.uk/id/local-authority/00ML,Children`s & Education Serv,BVAEDU,Ed EY PVI,ENP,Supplies and Services,E,Grants n Subscriptions,EK,26/05/2021,PAY01377333,EYRS,Early Years,COUN,3307.5,Revenue,Active Kids Nursery
Brighton & Hove City Council,http://statistics.data.gov.uk/id/local-authority/00ML,Children`s & Education Serv,BVAEDU,Ed EY Central,EAE,Third Party Payments,F,Other Establishments,FH,09/06/2021,PAY01381621,EYRS,Early Years,COUN,750,Revenue,Active Kids Nursery
Brighton & Hove City Council,http://statistics.data.gov.uk/id/local-authority/00ML,Children`s & Education Serv,BVAEDU,Ed EY PVI,ENP,Supplies and Services,E,Grants n Subscriptions,EK,23/06/2021,PAY01385064,EYRS,Early Years,COUN,19845.62,Revenue,Active Kids Nursery
Brighton & Hove City Council,http://statistics.data.gov.uk/id/local-authority/00ML,Children`s & Education Serv,BVAEDU,Ed EY PVI,ENP,Supplies and Services,E,Grants n Subscriptions,EK,25/06/2021,PAY01386738,EYRS,Early Years,COUN,1065.3,Revenue,Active Kids Nursery
Brighton & Hove City Council,http://statistics.data.gov.uk/id/local-authority/00ML,Children`s & Education Serv,BVAEDU,Ed EY PVI,ENP,Supplies and Services,E,Grants n Subscriptions,EK,30/06/2021,PAY01387599,EYRS,Early Years,COUN,615,Revenue,Active Kids Nursery
Brighton & Hove City Council,http://statistics.data.gov.uk/id/local-authority/00ML,Adult Social Care,BVASOC,ASC Mental Health Support,MHP,Third Party Payments,F,Other Establishments,FH,28/04/2021,PAY01369531,MENH,Mental Health Support,COUN,3000.48,Revenue,Active Prospects
Brighton & Hove City Council,http://statistics.data.gov.uk/id/local-authority/00ML,Adult Social Care,BVASOC,ASC Mental Health Support,MHP,Third Party Payments,F,Other Establishments,FH,21/05/2021,PAY01376452,MENH,Mental Health Support,COUN,3000.48,Revenue,Active Prospects
Brighton & Hove City Council,http://statistics.data.gov.uk/id/local-authority/00ML,Housing Revenue Account,BVAHOU,Hsing Management - HRA,HGM,Premises Related,C,Repair Maint n Alterations,CA,05/05/2021,PAY01372152,HPAI,Property & Investment,COUN,15683.5,Revenue,Acumen Waste Services Ltd
Brighton & Hove City Council,http://statistics.data.gov.uk/id/local-authority/00ML,Housing Revenue Account,BVAHOU,Hsing Management - HRA,HGM,Premises Related,C,Repair Maint n Alterations,CA,09/06/2021,PAY01381684,HPAI,Property & Investment,COUN,8323.1,Revenue,Acumen Waste Services Ltd
Brighton & Hove City Council,http://statistics.data.gov.uk/id/local-authority/00ML,Housing Revenue Account,BVAHOU,Hsing Management - HRA,HGM,Premises Related,C,Repair Maint n Alterations,CA,25/06/2021,PAY01386840,HPAI,Property & Investment,COUN,7918.99,Revenue,Acumen Waste Services Ltd
Brighton & Hove City Council,http://statistics.data.gov.uk/id/local-authority/00ML,Non I&E,BVANON,Cap - Housing Services - HRA,4HR,New Construction n Conversion,PB,New Construction n Conversion,PBL5,25/06/2021,PAY01385783,HPAI,Property & Investment,COUN,4959.5,Capital,AD Construction Group Architectural Decorators Ltd
Brighton & Hove City Council,http://statistics.data.gov.uk/id/local-authority/00ML,Adult Social Care,BVASOC,Info & Early Intervention,PRV,Supplies and Services,E,Communications n Computing,EH,07/04/2021,PAY01364235,CONT,Contracts,COUN,3183.07,Revenue,adam HTT Ltd t/a adam
Brighton & Hove City Council,http://statistics.data.gov.uk/id/local-authority/00ML,Adult Social Care,BVASOC,Info & Early Intervention,PRV,Supplies and Services,E,Communications n Computing,EH,16/04/2021,PAY01366939,CONT,Contracts,COUN,1111.93,Revenue,adam HTT Ltd t/a adam
Brighton & Hove City Council,http://statistics.data.gov.uk/id/local-authority/00ML,Adult Social Care,BVASOC,Info & Early Intervention,PRV,Supplies and Services,E,Communications n Computing,EH,23/06/2021,PAY01384912,CONT,Contracts,COUN,1632.08,Revenue,adam HTT Ltd t/a adam
Brighton & Hove City Council,http://statistics.data.gov.uk/id/local-authority/00ML,Children`s & Education Serv,BVAEDU,Ed EY PVI,ENP,Supplies and Services,E,Grants n Subscriptions,EK,07/04/2021,PAY01364359,EYRS,Early Years,COUN,47565.27,Revenue,Adams Fothergill Ltd t/a Fizzy Fish Nursery 
Brighton & Hove City Council,http://statistics.data.gov.uk/id/local-authority/00ML,Children`s & Education Serv,BVAEDU,Ed EY PVI,ENP,Supplies and Services,E,Grants n Subscriptions,EK,09/04/2021,PAY01365225,EYRS,Early Years,COUN,783.9,Revenue,Adams Fothergill Ltd t/a Fizzy Fish Nursery 
Brighton & Hove City Council,http://statistics.data.gov.uk/id/local-authority/00ML,Children`s & Education Serv,BVAEDU,Ed EY PVI,ENP,Supplies and Services,E,Grants n Subscriptions,EK,05/05/2021,PAY01372075,EYRS,Early Years,COUN,433.13,Revenue,Adams Fothergill Ltd t/a Fizzy Fish Nursery 
Brighton & Hove City Council,http://statistics.data.gov.uk/id/local-authority/00ML,Children`s & Education Serv,BVAEDU,Ed EY PVI,ENP,Supplies and Services,E,Grants n Subscriptions,EK,26/05/2021,PAY01377319,EYRS,Early Years,COUN,1535.63,Revenue,Adams Fothergill Ltd t/a Fizzy Fish Nursery 
Brighton & Hove City Council,http://statistics.data.gov.uk/id/local-authority/00ML,Children`s & Education Serv,BVAEDU,Ed EY Central,EAE,Third Party Payments,F,Other Establishments,FH,09/06/2021,PAY01381608,EYRS,Early Years,COUN,2250,Revenue,Adams Fothergill Ltd t/a Fizzy Fish Nursery 
Brighton & Hove City Council,http://statistics.data.gov.uk/id/local-authority/00ML,Children`s & Education Serv,BVAEDU,Ed EY PVI,ENP,Supplies and Services,E,Grants n Subscriptions,EK,23/06/2021,PAY01385049,EYRS,Early Years,COUN,37262.02,Revenue,Adams Fothergill Ltd t/a Fizzy Fish Nursery 
Brighton & Hove City Council,http://statistics.data.gov.uk/id/local-authority/00ML,Children`s & Education Serv,BVAEDU,Ed EY PVI,ENP,Supplies and Services,E,Grants n Subscriptions,EK,25/06/2021,PAY01386704,EYRS,Early Years,COUN,5889.3,Revenue,Adams Fothergill Ltd t/a Fizzy Fish Nursery 
Brighton & Hove City Council,http://statistics.data.gov.uk/id/local-authority/00ML,Non I&E,BVANON,CAP Housing Services GF,4HG,Capital Grants,PF,Capital Grants,PFL5,30/04/2021,PAY01371319,PSHG,Private Sector Housing,COUN,6128,Capital,Adaptec Mobility
Brighton & Hove City Council,http://statistics.data.gov.uk/id/local-authority/00ML,Non I&E,BVANON,CAP Housing Services GF,4HG,Capital Grants,PF,Capital Grants,PFL5,26/05/2021,PAY01377447,PSHG,Private Sector Housing,COUN,5040.29,Capital,Adaptec Mobility
Brighton & Hove City Council,http://statistics.data.gov.uk/id/local-authority/00ML,Central Support and Overheads,BVACEN,Support Services (SSC),PPT,Supplies and Services,E,Equip't Furniture n Materials,EA,28/04/2021,PAY01369320,SKEM,Skills and Employment,COUN,405.21,Revenue,Addressing & Mailing Solutions Ltd
Brighton & Hove City Council,http://statistics.data.gov.uk/id/local-authority/00ML,Adult Social Care,BVASOC,ASC Memory Cognition Support,MEM,Third Party Payments,F,Other Establishments,FH,14/04/2021,PAY01365770,COGN,Memory Cognition Support,COUN,12979.64,Revenue,Adelaide Healthcare Ltd
Brighton & Hove City Council,http://statistics.data.gov.uk/id/local-authority/00ML,Adult Social Care,BVASOC,ASC Memory Cognition Support,MEM,Third Party Payments,F,Other Establishments,FH,07/05/2021,PAY01372683,COGN,Memory Cognition Support,COUN,12979.64,Revenue,Adelaide Healthcare Ltd
Brighton & Hove City Council,http://statistics.data.gov.uk/id/local-authority/00ML,Adult Social Care,BVASOC,ASC Memory Cognition Support,MEM,Third Party Payments,F,Other Establishments,FH,04/06/2021,PAY01380345,COGN,Memory Cognition Support,COUN,12979.64,Revenue,Adelaide Healthcare Ltd
Brighton & Hove City Council,http://statistics.data.gov.uk/id/local-authority/00ML,Adult Social Care,BVASOC,ASC Physical Support,PHY,Customer n Client Receipts,M,Fees n Charges,MB,14/04/2021,PAY01365673,PHYS,Physical Support,COUN,-6194.32,Revenue,Adelaide Nursing Home
Brighton & Hove City Council,http://statistics.data.gov.uk/id/local-authority/00ML,Adult Social Care,BVASOC,ASC Physical Support,PHY,Third Party Payments,F,Other Establishments,FH,14/04/2021,PAY01365673,PHYS,Physical Support,COUN,37869.61,Revenue,Adelaide Nursing Home
Brighton & Hove City Council,http://statistics.data.gov.uk/id/local-authority/00ML,Adult Social Care,BVASOC,ASC Physical Support,PHY,Customer n Client Receipts,M,Fees n Charges,MB,07/05/2021,PAY01372593,PHYS,Physical Support,COUN,-9188.12,Revenue,Adelaide Nursing Home
Brighton & Hove City Council,http://statistics.data.gov.uk/id/local-authority/00ML,Adult Social Care,BVASOC,ASC Physical Support,PHY,Third Party Payments,F,Other Establishments,FH,07/05/2021,PAY01372593,PHYS,Physical Support,COUN,46701.84,Revenue,Adelaide Nursing Home
Brighton & Hove City Council,http://statistics.data.gov.uk/id/local-authority/00ML,Adult Social Care,BVASOC,ASC Physical Support,PHY,Customer n Client Receipts,M,Fees n Charges,MB,04/06/2021,PAY01380259,PHYS,Physical Support,COUN,-9188.12,Revenue,Adelaide Nursing Home
Brighton & Hove City Council,http://statistics.data.gov.uk/id/local-authority/00ML,Adult Social Care,BVASOC,ASC Physical Support,PHY,Third Party Payments,F,Other Establishments,FH,04/06/2021,PAY01380259,PHYS,Physical Support,COUN,46701.84,Revenue,Adelaide Nursing Home
Brighton & Hove City Council,http://statistics.data.gov.uk/id/local-authority/00ML,Central Support and Overheads,BVACEN,Holding Accounts,PPH,Premises Related,C,Repair Maint n Alterations,CA,30/04/2021,PAY01370769,PROP,Property and Design,COUN,5149,Revenue,Adept Power Solutions Ltd
Brighton & Hove City Council,http://statistics.data.gov.uk/id/local-authority/00ML,Planning and Development,BVAPLA,Economic Development,ECD,Supplies and Services,E,Grants n Subscriptions,EK,21/04/2021,PAY01367516,ECOD,Economic Development,COUN,6237.5,Revenue,Adur & Worthing Councils
Brighton & Hove City Council,http://statistics.data.gov.uk/id/local-authority/00ML,Planning and Development,BVAPLA,Building Control,BLD,Supplies and Services,E,Services,EF,28/04/2021,PAY01369156,DEVP,Development Planning,COUN,285.33,Revenue,Adur & Worthing Councils
Brighton & Hove City Council,http://statistics.data.gov.uk/id/local-authority/00ML,Planning and Development,BVAPLA,Economic Development,ECD,Supplies and Services,E,Grants n Subscriptions,EK,16/06/2021,PAY01382969,ECOD,Economic Development,COUN,6237.5,Revenue,Adur & Worthing Councils
Brighton & Hove City Council,http://statistics.data.gov.uk/id/local-authority/00ML,Non I&E,BVANON,CAP Housing Services GF,4HG,Capital Grants,PF,Capital Grants,PFL5,09/06/2021,PAY01381036,PSHG,Private Sector Housing,COUN,5448,Capital,Advance Glass
Brighton & Hove City Council,http://statistics.data.gov.uk/id/local-authority/00ML,Central Support and Overheads,BVACEN,Support Services (SSC),PPT,Premises Related,C,Repair Maint n Alterations,CA,16/04/2021,PAY01367264,PROP,Property and Design,COUN,395,Revenue,Advanced Roof Testing Ltd
Brighton & Hove City Council,http://statistics.data.gov.uk/id/local-authority/00ML,Central Support and Overheads,BVACEN,Support Services (SSC),PPT,Premises Related,C,Repair Maint n Alterations,CA,07/05/2021,PAY01373337,PROP,Property and Design,COUN,645,Revenue,Advanced Roof Testing Ltd
Brighton & Hove City Council,http://statistics.data.gov.uk/id/local-authority/00ML,Central Support and Overheads,BVACEN,Support Services (SSC),PPT,Premises Related,C,Repair Maint n Alterations,CA,19/05/2021,PAY01375782,PROP,Property and Design,COUN,595,Revenue,Advanced Roof Testing Ltd
Brighton & Hove City Council,http://statistics.data.gov.uk/id/local-authority/00ML,Non I&E,BVANON,CAP Other Env Services,4EV,New Construction n Conversion,PB,New Construction n Conversion,PBL5,28/05/2021,PAY01379041,PROP,Property and Design,COUN,1580,Capital,Advanced Roof Testing Ltd
Brighton & Hove City Council,http://statistics.data.gov.uk/id/local-authority/00ML,Central Support and Overheads,BVACEN,Support Services (SSC),PPT,Premises Related,C,Repair Maint n Alterations,CA,09/06/2021,PAY01381759,PROP,Property and Design,COUN,2880,Revenue,Advanced Roof Testing Ltd
Brighton & Hove City Council,http://statistics.data.gov.uk/id/local-authority/00ML,Children`s & Education Serv,BVAEDU,Ed Ed Other Other,ENF,Third Party Payments,F,Private Contractors,FJ,23/06/2021,PAY01385201,PROP,Property and Design,COUN,395,Revenue,Advanced Roof Testing Ltd
Brighton & Hove City Council,http://statistics.data.gov.uk/id/local-authority/00ML,Children`s & Education Serv,BVAEDU,Ed Srvcs YP Youth Srvcs,ENY,Third Party Payments,F,Other Establishments,FH,05/05/2021,PAY01371915,SKEM,Skills and Employment,COUN,220,Revenue,Adviza Partnership
Brighton & Hove City Council,http://statistics.data.gov.uk/id/local-authority/00ML,Adult Social Care,BVASOC,ASC Memory Cognition Support,MEM,Customer n Client Receipts,M,Fees n Charges,MB,14/04/2021,PAY01366214,COGN,Memory Cognition Support,COUN,-682.84,Revenue,Affectionate Healthcare Limited t/a Barons Down
Brighton & Hove City Council,http://statistics.data.gov.uk/id/local-authority/00ML,Adult Social Care,BVASOC,ASC Memory Cognition Support,MEM,Third Party Payments,F,Other Establishments,FH,14/04/2021,PAY01366214,COGN,Memory Cognition Support,COUN,3164.32,Revenue,Affectionate Healthcare Limited t/a Barons Down
Brighton & Hove City Council,http://statistics.data.gov.uk/id/local-authority/00ML,Adult Social Care,BVASOC,ASC Mental Health Support,MHP,Third Party Payments,F,Other Establishments,FH,14/04/2021,PAY01366214,MENH,Mental Health Support,COUN,3900,Revenue,Affectionate Healthcare Limited t/a Barons Down
Brighton & Hove City Council,http://statistics.data.gov.uk/id/local-authority/00ML,Adult Social Care,BVASOC,ASC Physical Support,PHY,Customer n Client Receipts,M,Fees n Charges,MB,14/04/2021,PAY01366214,PHYS,Physical Support,COUN,-355.7,Revenue,Affectionate Healthcare Limited t/a Barons Down
Brighton & Hove City Council,http://statistics.data.gov.uk/id/local-authority/00ML,Adult Social Care,BVASOC,ASC Physical Support,PHY,Third Party Payments,F,Other Establishments,FH,14/04/2021,PAY01366214,PHYS,Physical Support,COUN,11850.4,Revenue,Affectionate Healthcare Limited t/a Barons Down
Brighton & Hove City Council,http://statistics.data.gov.uk/id/local-authority/00ML,Adult Social Care,BVASOC,ASC Memory Cognition Support,MEM,Customer n Client Receipts,M,Fees n Charges,MB,07/05/2021,PAY01373252,COGN,Memory Cognition Support,COUN,-682.84,Revenue,Affectionate Healthcare Limited t/a Barons Down
Brighton & Hove City Council,http://statistics.data.gov.uk/id/local-authority/00ML,Adult Social Care,BVASOC,ASC Memory Cognition Support,MEM,Third Party Payments,F,Other Establishments,FH,07/05/2021,PAY01373252,COGN,Memory Cognition Support,COUN,3164.32,Revenue,Affectionate Healthcare Limited t/a Barons Down
Brighton & Hove City Council,http://statistics.data.gov.uk/id/local-authority/00ML,Adult Social Care,BVASOC,ASC Mental Health Support,MHP,Third Party Payments,F,Other Establishments,FH,07/05/2021,PAY01373252,MENH,Mental Health Support,COUN,3900,Revenue,Affectionate Healthcare Limited t/a Barons Down
Brighton & Hove City Council,http://statistics.data.gov.uk/id/local-authority/00ML,Adult Social Care,BVASOC,ASC Physical Support,PHY,Customer n Client Receipts,M,Fees n Charges,MB,07/05/2021,PAY01373252,PHYS,Physical Support,COUN,-356.8,Revenue,Affectionate Healthcare Limited t/a Barons Down
Brighton & Hove City Council,http://statistics.data.gov.uk/id/local-authority/00ML,Adult Social Care,BVASOC,ASC Physical Support,PHY,Third Party Payments,F,Other Establishments,FH,07/05/2021,PAY01373252,PHYS,Physical Support,COUN,11850.4,Revenue,Affectionate Healthcare Limited t/a Barons Down
Brighton & Hove City Council,http://statistics.data.gov.uk/id/local-authority/00ML,Adult Social Care,BVASOC,ASC Memory Cognition Support,MEM,Customer n Client Receipts,M,Fees n Charges,MB,04/06/2021,PAY01380882,COGN,Memory Cognition Support,COUN,-682.84,Revenue,Affectionate Healthcare Limited t/a Barons Down
Brighton & Hove City Council,http://statistics.data.gov.uk/id/local-authority/00ML,Adult Social Care,BVASOC,ASC Memory Cognition Support,MEM,Third Party Payments,F,Other Establishments,FH,04/06/2021,PAY01380882,COGN,Memory Cognition Support,COUN,3164.32,Revenue,Affectionate Healthcare Limited t/a Barons Down
Brighton & Hove City Council,http://statistics.data.gov.uk/id/local-authority/00ML,Adult Social Care,BVASOC,ASC Mental Health Support,MHP,Third Party Payments,F,Other Establishments,FH,04/06/2021,PAY01380882,MENH,Mental Health Support,COUN,3900,Revenue,Affectionate Healthcare Limited t/a Barons Down
Brighton & Hove City Council,http://statistics.data.gov.uk/id/local-authority/00ML,Adult Social Care,BVASOC,ASC Physical Support,PHY,Customer n Client Receipts,M,Fees n Charges,MB,04/06/2021,PAY01380882,PHYS,Physical Support,COUN,-356.8,Revenue,Affectionate Healthcare Limited t/a Barons Down
Brighton & Hove City Council,http://statistics.data.gov.uk/id/local-authority/00ML,Adult Social Care,BVASOC,ASC Physical Support,PHY,Third Party Payments,F,Other Establishments,FH,04/06/2021,PAY01380882,PHYS,Physical Support,COUN,11850.4,Revenue,Affectionate Healthcare Limited t/a Barons Down
Brighton & Hove City Council,http://statistics.data.gov.uk/id/local-authority/00ML,Central Support and Overheads,BVACEN,Corporate and Democratic Core,CDC,Premises Related,C,Repair Maint n Alterations,CA,21/04/2021,PAY01367771,OCIS,Other Corporate Items,COUN,4899.5,Revenue,Aggreko UK Ltd
Brighton & Hove City Council,http://statistics.data.gov.uk/id/local-authority/00ML,Central Support and Overheads,BVACEN,Corporate and Democratic Core,CDC,Premises Related,C,Repair Maint n Alterations,CA,30/04/2021,PAY01370713,OCIS,Other Corporate Items,COUN,13481.14,Revenue,Aggreko UK Ltd
Brighton & Hove City Council,http://statistics.data.gov.uk/id/local-authority/00ML,Central Support and Overheads,BVACEN,Corporate and Democratic Core,CDC,Premises Related,C,Repair Maint n Alterations,CA,05/05/2021,PAY01371930,OCIS,Other Corporate Items,COUN,6152.18,Revenue,Aggreko UK Ltd
Brighton & Hove City Council,http://statistics.data.gov.uk/id/local-authority/00ML,Adult Social Care,BVASOC,ASC Physical Support,PHY,Third Party Payments,F,Other Establishments,FH,14/04/2021,PAY01366006,PHYS,Physical Support,COUN,2149.98,Revenue,Agincare Live in Care Ltd
Brighton & Hove City Council,http://statistics.data.gov.uk/id/local-authority/00ML,Adult Social Care,BVASOC,ASC Physical Support,PHY,Third Party Payments,F,Other Establishments,FH,28/04/2021,PAY01369510,PHYS,Physical Support,COUN,10562.76,Revenue,Agincare Live in Care Ltd
Brighton & Hove City Council,http://statistics.data.gov.uk/id/local-authority/00ML,Adult Social Care,BVASOC,ASC Physical Support,PHY,Third Party Payments,F,Other Establishments,FH,30/04/2021,PAY01370911,PHYS,Physical Support,COUN,7017.2,Revenue,Agincare Live in Care Ltd
Brighton & Hove City Council,http://statistics.data.gov.uk/id/local-authority/00ML,Adult Social Care,BVASOC,ASC Physical Support,PHY,Third Party Payments,F,Other Establishments,FH,12/05/2021,PAY01373792,PHYS,Physical Support,COUN,1700.02,Revenue,Agincare Live in Care Ltd
Brighton & Hove City Council,http://statistics.data.gov.uk/id/local-authority/00ML,Adult Social Care,BVASOC,ASC Physical Support,PHY,Third Party Payments,F,Other Establishments,FH,09/06/2021,PAY01381504,PHYS,Physical Support,COUN,9911.7,Revenue,Agincare Live in Care Ltd
Brighton & Hove City Council,http://statistics.data.gov.uk/id/local-authority/00ML,Adult Social Care,BVASOC,ASC Physical Support,PHY,Third Party Payments,F,Other Establishments,FH,16/06/2021,PAY01383231,PHYS,Physical Support,COUN,2676.24,Revenue,Agincare Live in Care Ltd
Brighton & Hove City Council,http://statistics.data.gov.uk/id/local-authority/00ML,Adult Social Care,BVASOC,ASC Physical Support,PHY,Third Party Payments,F,Other Establishments,FH,30/06/2021,PAY01387478,PHYS,Physical Support,COUN,12725.43,Revenue,Agincare Live in Care Ltd
Brighton & Hove City Council,http://statistics.data.gov.uk/id/local-authority/00ML,Adult Social Care,BVASOC,ASC Learning Disabilities,ALD,Third Party Payments,F,Other Establishments,FH,07/04/2021,PAY01363966,LDIS,Adults LD Community Care,COUN,609.06,Revenue,Agincare UK Ltd
Brighton & Hove City Council,http://statistics.data.gov.uk/id/local-authority/00ML,Adult Social Care,BVASOC,ASC Memory Cognition Support,MEM,Third Party Payments,F,Other Establishments,FH,07/04/2021,PAY01363966,COGN,Memory Cognition Support,COUN,2154.43,Revenue,Agincare UK Ltd
Brighton & Hove City Council,http://statistics.data.gov.uk/id/local-authority/00ML,Adult Social Care,BVASOC,ASC Mental Health Support,MHP,Third Party Payments,F,Other Establishments,FH,07/04/2021,PAY01363966,MENH,Mental Health Support,COUN,2121.28,Revenue,Agincare UK Ltd
Brighton & Hove City Council,http://statistics.data.gov.uk/id/local-authority/00ML,Adult Social Care,BVASOC,ASC Physical Support,PHY,Third Party Payments,F,Other Establishments,FH,07/04/2021,PAY01363966,PHYS,Physical Support,COUN,29401.12,Revenue,Agincare UK Ltd
Brighton & Hove City Council,http://statistics.data.gov.uk/id/local-authority/00ML,Adult Social Care,BVASOC,ASC Sensory Support,AHV,Third Party Payments,F,Other Establishments,FH,07/04/2021,PAY01363966,SORY,Sensory Support,COUN,151.32,Revenue,Agincare UK Ltd
Brighton & Hove City Council,http://statistics.data.gov.uk/id/local-authority/00ML,Adult Social Care,BVASOC,ASC Substance Misuse,ADM,Third Party Payments,F,Other Establishments,FH,07/04/2021,PAY01363966,SUBM,Substance Misuse Support,COUN,188.31,Revenue,Agincare UK Ltd
Brighton & Hove City Council,http://statistics.data.gov.uk/id/local-authority/00ML,Adult Social Care,BVASOC,ASC Learning Disabilities,ALD,Third Party Payments,F,Other Establishments,FH,14/04/2021,PAY01365605,LDIS,Adults LD Community Care,COUN,648.72,Revenue,Agincare UK Ltd
Brighton & Hove City Council,http://statistics.data.gov.uk/id/local-authority/00ML,Adult Social Care,BVASOC,ASC Memory Cognition Support,MEM,Third Party Payments,F,Other Establishments,FH,14/04/2021,PAY01365605,COGN,Memory Cognition Support,COUN,2605.62,Revenue,Agincare UK Ltd
Brighton & Hove City Council,http://statistics.data.gov.uk/id/local-authority/00ML,Adult Social Care,BVASOC,ASC Mental Health Support,MHP,Third Party Payments,F,Other Establishments,FH,14/04/2021,PAY01365605,MENH,Mental Health Support,COUN,2008.36,Revenue,Agincare UK Ltd
Brighton & Hove City Council,http://statistics.data.gov.uk/id/local-authority/00ML,Adult Social Care,BVASOC,ASC Physical Support,PHY,Third Party Payments,F,Other Establishments,FH,14/04/2021,PAY01365605,PHYS,Physical Support,COUN,23247.09,Revenue,Agincare UK Ltd
Brighton & Hove City Council,http://statistics.data.gov.uk/id/local-authority/00ML,Adult Social Care,BVASOC,ASC Sensory Support,AHV,Third Party Payments,F,Other Establishments,FH,14/04/2021,PAY01365605,SORY,Sensory Support,COUN,284.34,Revenue,Agincare UK Ltd
Brighton & Hove City Council,http://statistics.data.gov.uk/id/local-authority/00ML,Adult Social Care,BVASOC,ASC Learning Disabilities,ALD,Third Party Payments,F,Other Establishments,FH,30/04/2021,PAY01370112,LDIS,Adults LD Community Care,COUN,11939.76,Revenue,Agincare UK Ltd
Brighton & Hove City Council,http://statistics.data.gov.uk/id/local-authority/00ML,Adult Social Care,BVASOC,ASC Physical Support,PHY,Third Party Payments,F,Other Establishments,FH,30/04/2021,PAY01370112,PHYS,Physical Support,COUN,2732.07,Revenue,Agincare UK Ltd
Brighton & Hove City Council,http://statistics.data.gov.uk/id/local-authority/00ML,Adult Social Care,BVASOC,ASC Physical Support,PHY,Third Party Payments,F,Other Establishments,FH,05/05/2021,PAY01371661,PHYS,Physical Support,COUN,9146.68,Revenue,Agincare UK Ltd
Brighton & Hove City Council,http://statistics.data.gov.uk/id/local-authority/00ML,Adult Social Care,BVASOC,ASC Learning Disabilities,ALD,Third Party Payments,F,Other Establishments,FH,12/05/2021,PAY01373495,LDIS,Adults LD Community Care,COUN,667.9,Revenue,Agincare UK Ltd
Brighton & Hove City Council,http://statistics.data.gov.uk/id/local-authority/00ML,Adult Social Care,BVASOC,ASC Memory Cognition Support,MEM,Third Party Payments,F,Other Establishments,FH,12/05/2021,PAY01373495,COGN,Memory Cognition Support,COUN,2830.77,Revenue,Agincare UK Ltd
Brighton & Hove City Council,http://statistics.data.gov.uk/id/local-authority/00ML,Adult Social Care,BVASOC,ASC Mental Health Support,MHP,Third Party Payments,F,Other Establishments,FH,12/05/2021,PAY01373495,MENH,Mental Health Support,COUN,2162.72,Revenue,Agincare UK Ltd
Brighton & Hove City Council,http://statistics.data.gov.uk/id/local-authority/00ML,Adult Social Care,BVASOC,ASC Physical Support,PHY,Third Party Payments,F,Other Establishments,FH,12/05/2021,PAY01373495,PHYS,Physical Support,COUN,25758.34,Revenue,Agincare UK Ltd
Brighton & Hove City Council,http://statistics.data.gov.uk/id/local-authority/00ML,Adult Social Care,BVASOC,ASC Sensory Support,AHV,Third Party Payments,F,Other Establishments,FH,12/05/2021,PAY01373495,SORY,Sensory Support,COUN,259.27,Revenue,Agincare UK Ltd
Brighton & Hove City Council,http://statistics.data.gov.uk/id/local-authority/00ML,Adult Social Care,BVASOC,ASC Learning Disabilities,ALD,Third Party Payments,F,Other Establishments,FH,19/05/2021,PAY01375206,LDIS,Adults LD Community Care,COUN,1955.14,Revenue,Agincare UK Ltd
Brighton & Hove City Council,http://statistics.data.gov.uk/id/local-authority/00ML,Adult Social Care,BVASOC,ASC Memory Cognition Support,MEM,Third Party Payments,F,Other Establishments,FH,19/05/2021,PAY01375206,COGN,Memory Cognition Support,COUN,7942.28,Revenue,Agincare UK Ltd
Brighton & Hove City Council,http://statistics.data.gov.uk/id/local-authority/00ML,Adult Social Care,BVASOC,ASC Mental Health Support,MHP,Third Party Payments,F,Other Establishments,FH,19/05/2021,PAY01375206,MENH,Mental Health Support,COUN,6668.31,Revenue,Agincare UK Ltd
Brighton & Hove City Council,http://statistics.data.gov.uk/id/local-authority/00ML,Adult Social Care,BVASOC,ASC Physical Support,PHY,Third Party Payments,F,Other Establishments,FH,19/05/2021,PAY01375206,PHYS,Physical Support,COUN,73720.36,Revenue,Agincare UK Ltd
Brighton & Hove City Council,http://statistics.data.gov.uk/id/local-authority/00ML,Adult Social Care,BVASOC,ASC Sensory Support,AHV,Third Party Payments,F,Other Establishments,FH,19/05/2021,PAY01375206,SORY,Sensory Support,COUN,535.84,Revenue,Agincare UK Ltd
Brighton & Hove City Council,http://statistics.data.gov.uk/id/local-authority/00ML,Adult Social Care,BVASOC,ASC Learning Disabilities,ALD,Third Party Payments,F,Other Establishments,FH,26/05/2021,PAY01376898,LDIS,Adults LD Community Care,COUN,1349.91,Revenue,Agincare UK Ltd
Brighton & Hove City Council,http://statistics.data.gov.uk/id/local-authority/00ML,Adult Social Care,BVASOC,ASC Memory Cognition Support,MEM,Third Party Payments,F,Other Establishments,FH,26/05/2021,PAY01376898,COGN,Memory Cognition Support,COUN,5282.04,Revenue,Agincare UK Ltd
Brighton & Hove City Council,http://statistics.data.gov.uk/id/local-authority/00ML,Adult Social Care,BVASOC,ASC Mental Health Support,MHP,Third Party Payments,F,Other Establishments,FH,26/05/2021,PAY01376898,MENH,Mental Health Support,COUN,4273.78,Revenue,Agincare UK Ltd
Brighton & Hove City Council,http://statistics.data.gov.uk/id/local-authority/00ML,Adult Social Care,BVASOC,ASC Physical Support,PHY,Third Party Payments,F,Other Establishments,FH,26/05/2021,PAY01376898,PHYS,Physical Support,COUN,47723.93,Revenue,Agincare UK Ltd
Brighton & Hove City Council,http://statistics.data.gov.uk/id/local-authority/00ML,Adult Social Care,BVASOC,ASC Sensory Support,AHV,Third Party Payments,F,Other Establishments,FH,26/05/2021,PAY01376898,SORY,Sensory Support,COUN,444.96,Revenue,Agincare UK Ltd
Brighton & Hove City Council,http://statistics.data.gov.uk/id/local-authority/00ML,Adult Social Care,BVASOC,ASC Physical Support,PHY,Third Party Payments,F,Other Establishments,FH,02/06/2021,PAY01379280,PHYS,Physical Support,COUN,9146.68,Revenue,Agincare UK Ltd
Brighton & Hove City Council,http://statistics.data.gov.uk/id/local-authority/00ML,Adult Social Care,BVASOC,ASC Learning Disabilities,ALD,Third Party Payments,F,Other Establishments,FH,16/06/2021,PAY01382957,LDIS,Adults LD Community Care,COUN,1989.96,Revenue,Agincare UK Ltd
Brighton & Hove City Council,http://statistics.data.gov.uk/id/local-authority/00ML,Adult Social Care,BVASOC,ASC Learning Disabilities,ALD,Third Party Payments,F,Other Establishments,FH,23/06/2021,PAY01384597,LDIS,Adults LD Community Care,COUN,1971.34,Revenue,Agincare UK Ltd
Brighton & Hove City Council,http://statistics.data.gov.uk/id/local-authority/00ML,Adult Social Care,BVASOC,ASC Memory Cognition Support,MEM,Third Party Payments,F,Other Establishments,FH,23/06/2021,PAY01384597,COGN,Memory Cognition Support,COUN,8250.83,Revenue,Agincare UK Ltd
Brighton & Hove City Council,http://statistics.data.gov.uk/id/local-authority/00ML,Adult Social Care,BVASOC,ASC Mental Health Support,MHP,Third Party Payments,F,Other Establishments,FH,23/06/2021,PAY01384597,MENH,Mental Health Support,COUN,5659.07,Revenue,Agincare UK Ltd
Brighton & Hove City Council,http://statistics.data.gov.uk/id/local-authority/00ML,Adult Social Care,BVASOC,ASC Physical Support,PHY,Third Party Payments,F,Other Establishments,FH,23/06/2021,PAY01384597,PHYS,Physical Support,COUN,74666.38,Revenue,Agincare UK Ltd
Brighton & Hove City Council,http://statistics.data.gov.uk/id/local-authority/00ML,Adult Social Care,BVASOC,ASC Sensory Support,AHV,Third Party Payments,F,Other Establishments,FH,23/06/2021,PAY01384597,SORY,Sensory Support,COUN,475.12,Revenue,Agincare UK Ltd
Brighton & Hove City Council,http://statistics.data.gov.uk/id/local-authority/00ML,Adult Social Care,BVASOC,ASC Substance Misuse,ADM,Third Party Payments,F,Other Establishments,FH,23/06/2021,PAY01384597,SUBM,Substance Misuse Support,COUN,376.98,Revenue,Agincare UK Ltd
Brighton & Hove City Council,http://statistics.data.gov.uk/id/local-authority/00ML,Adult Social Care,BVASOC,ASC Learning Disabilities,ALD,Third Party Payments,F,Other Establishments,FH,30/06/2021,PAY01387167,LDIS,Adults LD Community Care,COUN,4563.87,Revenue,Agincare UK Ltd
Brighton & Hove City Council,http://statistics.data.gov.uk/id/local-authority/00ML,Adult Social Care,BVASOC,ASC Memory Cognition Support,MEM,Third Party Payments,F,Other Establishments,FH,30/06/2021,PAY01387167,COGN,Memory Cognition Support,COUN,2800.85,Revenue,Agincare UK Ltd
Brighton & Hove City Council,http://statistics.data.gov.uk/id/local-authority/00ML,Adult Social Care,BVASOC,ASC Mental Health Support,MHP,Third Party Payments,F,Other Establishments,FH,30/06/2021,PAY01387167,MENH,Mental Health Support,COUN,1802.81,Revenue,Agincare UK Ltd
Brighton & Hove City Council,http://statistics.data.gov.uk/id/local-authority/00ML,Adult Social Care,BVASOC,ASC Physical Support,PHY,Third Party Payments,F,Other Establishments,FH,30/06/2021,PAY01387167,PHYS,Physical Support,COUN,33629.8,Revenue,Agincare UK Ltd
Brighton & Hove City Council,http://statistics.data.gov.uk/id/local-authority/00ML,Adult Social Care,BVASOC,ASC Sensory Support,AHV,Third Party Payments,F,Other Establishments,FH,30/06/2021,PAY01387167,SORY,Sensory Support,COUN,163.7,Revenue,Agincare UK Ltd
Brighton & Hove City Council,http://statistics.data.gov.uk/id/local-authority/00ML,Adult Social Care,BVASOC,ASC Substance Misuse,ADM,Third Party Payments,F,Other Establishments,FH,30/06/2021,PAY01387167,SUBM,Substance Misuse Support,COUN,146.79,Revenue,Agincare UK Ltd
Brighton & Hove City Council,http://statistics.data.gov.uk/id/local-authority/00ML,Central Support and Overheads,BVACEN,Support Services (SSC),PPT,Premises Related,C,Repair Maint n Alterations,CA,14/04/2021,PAY01366154,PROP,Property and Design,COUN,314.82,Revenue,Air Engineering Group Ltd
Brighton & Hove City Council,http://statistics.data.gov.uk/id/local-authority/00ML,Adult Social Care,BVASOC,ASC Learning Disabilities,ALD,Customer n Client Receipts,M,Fees n Charges,MB,14/04/2021,PAY01365609,LDIS,Adults LD Community Care,COUN,-3126.7,Revenue,Aitch Care Homes (London) Ltd
Brighton & Hove City Council,http://statistics.data.gov.uk/id/local-authority/00ML,Adult Social Care,BVASOC,ASC Learning Disabilities,ALD,Third Party Payments,F,Other Establishments,FH,14/04/2021,PAY01365609,LDIS,Adults LD Community Care,COUN,56132.28,Revenue,Aitch Care Homes (London) Ltd
Brighton & Hove City Council,http://statistics.data.gov.uk/id/local-authority/00ML,Public Health,BVAPHE,Public Health,PHE,Third Party Payments,F,Other Establishments,FH,28/04/2021,PAY01369034,PHCM,PH Commissioning,COUN,3506.01,Revenue,Albion Street Surgery
Brighton & Hove City Council,http://statistics.data.gov.uk/id/local-authority/00ML,Environment & Regulatory Serv,BVAERS,Environmental Health,EVH,Supplies and Services,E,Print Stat & Gen Office Exps,ED,16/04/2021,PAY01366547,SCOM,Safer Communties,COUN,1601.24,Revenue,Aldrington Press Ltd
Brighton & Hove City Council,http://statistics.data.gov.uk/id/local-authority/00ML,Environment & Regulatory Serv,BVAERS,Environmental Health,EVH,Supplies and Services,E,Print Stat & Gen Office Exps,ED,05/05/2021,PAY01371672,SCOM,Safer Communties,COUN,748.2,Revenue,Aldrington Press Ltd
Brighton & Hove City Council,http://statistics.data.gov.uk/id/local-authority/00ML,Children`s & Education Serv,BVAEDU,Ed Ed Other Other,ENF,Supplies and Services,E,Miscellaneous Expenses,EM,07/04/2021,PAY01364065,SACH,Standards and Achievement,COUN,1500,Revenue,Alembic TV Ltd
Brighton & Hove City Council,http://statistics.data.gov.uk/id/local-authority/00ML,Children`s & Education Serv,BVAEDU,Child Srvcs Other,FAX,Supplies and Services,E,Services,EF,14/04/2021,PAY01366303,SAFE,Safeguarding,COUN,650,Revenue,Alex Walters Consultancy Limited
Brighton & Hove City Council,http://statistics.data.gov.uk/id/local-authority/00ML,Non I&E,BVANON,CAP Other Env Services,4EV,New Construction n Conversion,PB,New Construction n Conversion,PBL5,05/05/2021,PAY01371768,PROP,Property and Design,COUN,706.29,Capital,Alfa Electric Ltd
Brighton & Hove City Council,http://statistics.data.gov.uk/id/local-authority/00ML,Children`s & Education Serv,BVAEDU,Child Srvcs Adoption,FAA,Supplies and Services,E,Services,EF,21/04/2021,PAY01367809,CHIC,Fostering and Adoption,COUN,500,Revenue,Alice Mallorie Therapy Services
Brighton & Hove City Council,http://statistics.data.gov.uk/id/local-authority/00ML,Children`s & Education Serv,BVAEDU,Child Srvcs Adoption,FAA,Supplies and Services,E,Services,EF,28/04/2021,PAY01369513,CHIC,Fostering and Adoption,COUN,1480,Revenue,Alice Mallorie Therapy Services
Brighton & Hove City Council,http://statistics.data.gov.uk/id/local-authority/00ML,Children`s & Education Serv,BVAEDU,Ed Ed Other Other,ENF,Third Party Payments,F,Other Establishments,FH,19/05/2021,PAY01375529,VSCH,Virtual School,COUN,360,Revenue,Alice Mallorie Therapy Services
Brighton & Hove City Council,http://statistics.data.gov.uk/id/local-authority/00ML,Children`s & Education Serv,BVAEDU,Ed Ed Other Other,ENF,Third Party Payments,F,Other Establishments,FH,26/05/2021,PAY01377218,VSCH,Virtual School,COUN,360,Revenue,Alice Mallorie Therapy Services
Brighton & Hove City Council,http://statistics.data.gov.uk/id/local-authority/00ML,Adult Social Care,BVASOC,ASC Memory Cognition Support,MEM,Third Party Payments,F,Other Establishments,FH,21/04/2021,PAY01367766,COGN,Memory Cognition Support,COUN,517.17,Revenue,Alina Homecare Ltd
Brighton & Hove City Council,http://statistics.data.gov.uk/id/local-authority/00ML,Adult Social Care,BVASOC,ASC Physical Support,PHY,Third Party Payments,F,Other Establishments,FH,21/04/2021,PAY01367766,PHYS,Physical Support,COUN,17870.56,Revenue,Alina Homecare Ltd
Brighton & Hove City Council,http://statistics.data.gov.uk/id/local-authority/00ML,Adult Social Care,BVASOC,ASC Memory Cognition Support,MEM,Third Party Payments,F,Other Establishments,FH,19/05/2021,PAY01375468,COGN,Memory Cognition Support,COUN,4385.3,Revenue,Alina Homecare Ltd
Brighton & Hove City Council,http://statistics.data.gov.uk/id/local-authority/00ML,Adult Social Care,BVASOC,ASC Physical Support,PHY,Customer n Client Receipts,M,Fees n Charges,MB,19/05/2021,PAY01375468,PHYS,Physical Support,COUN,-91,Revenue,Alina Homecare Ltd
Brighton & Hove City Council,http://statistics.data.gov.uk/id/local-authority/00ML,Adult Social Care,BVASOC,ASC Physical Support,PHY,Third Party Payments,F,Other Establishments,FH,19/05/2021,PAY01375468,PHYS,Physical Support,COUN,52077.75,Revenue,Alina Homecare Ltd
Brighton & Hove City Council,http://statistics.data.gov.uk/id/local-authority/00ML,Adult Social Care,BVASOC,ASC Memory Cognition Support,MEM,Third Party Payments,F,Other Establishments,FH,02/06/2021,PAY01379611,COGN,Memory Cognition Support,COUN,1033.62,Revenue,Alina Homecare Ltd
Brighton & Hove City Council,http://statistics.data.gov.uk/id/local-authority/00ML,Adult Social Care,BVASOC,ASC Physical Support,PHY,Third Party Payments,F,Other Establishments,FH,02/06/2021,PAY01379611,PHYS,Physical Support,COUN,7488.88,Revenue,Alina Homecare Ltd
Brighton & Hove City Council,http://statistics.data.gov.uk/id/local-authority/00ML,Adult Social Care,BVASOC,ASC Physical Support,PHY,Third Party Payments,F,Other Establishments,FH,09/06/2021,PAY01381444,PHYS,Physical Support,COUN,19680.8,Revenue,Alina Homecare Ltd
Brighton & Hove City Council,http://statistics.data.gov.uk/id/local-authority/00ML,Adult Social Care,BVASOC,ASC Memory Cognition Support,MEM,Third Party Payments,F,Other Establishments,FH,16/06/2021,PAY01383179,COGN,Memory Cognition Support,COUN,3896.55,Revenue,Alina Homecare Ltd
Brighton & Hove City Council,http://statistics.data.gov.uk/id/local-authority/00ML,Adult Social Care,BVASOC,ASC Physical Support,PHY,Third Party Payments,F,Other Establishments,FH,16/06/2021,PAY01383179,PHYS,Physical Support,COUN,101834.11,Revenue,Alina Homecare Ltd
Brighton & Hove City Council,http://statistics.data.gov.uk/id/local-authority/00ML,Adult Social Care,BVASOC,ASC Physical Support,PHY,Third Party Payments,F,Other Establishments,FH,18/06/2021,PAY01384010,PHYS,Physical Support,COUN,15744.38,Revenue,Alina Homecare Ltd
Brighton & Hove City Council,http://statistics.data.gov.uk/id/local-authority/00ML,Adult Social Care,BVASOC,ASC Memory Cognition Support,MEM,Third Party Payments,F,Other Establishments,FH,23/06/2021,PAY01384879,COGN,Memory Cognition Support,COUN,479.77,Revenue,Alina Homecare Ltd
Brighton & Hove City Council,http://statistics.data.gov.uk/id/local-authority/00ML,Adult Social Care,BVASOC,ASC Physical Support,PHY,Third Party Payments,F,Other Establishments,FH,23/06/2021,PAY01384879,PHYS,Physical Support,COUN,11745.15,Revenue,Alina Homecare Ltd
Brighton & Hove City Council,http://statistics.data.gov.uk/id/local-authority/00ML,Non I&E,BVANON,CAP Housing Services GF,4HG,Capital Grants,PF,Capital Grants,PFL5,05/05/2021,PAY01372174,PSHG,Private Sector Housing,COUN,1745,Capital,All Said and Done Brighton
Brighton & Hove City Council,http://statistics.data.gov.uk/id/local-authority/00ML,Central Services to the Public,BVACEN,Elections,ELE,Premises Related,C,Rents Payable,CC,11/06/2021,PAY01381872,ELEC,Elections,COUN,300,Revenue,All Saints Hove
Brighton & Hove City Council,http://statistics.data.gov.uk/id/local-authority/00ML,Central Services to the Public,BVACEN,Elections,ELE,Premises Related,C,Rents Payable,CC,28/05/2021,PAY01377682,ELEC,Elections,COUN,495,Revenue,All Saints Patcham PCC
Brighton & Hove City Council,http://statistics.data.gov.uk/id/local-authority/00ML,Central Support and Overheads,BVACEN,Support Services (SSC),PPT,Direct Employees,A,Salaries,AA,30/06/2021,PAY01387741,FINS,Financial Services,COUN,21450,Revenue,Allen Lane Ltd
Brighton & Hove City Council,http://statistics.data.gov.uk/id/local-authority/00ML,Environment & Regulatory Serv,BVAERS,Consumer Protection,CNP,Supplies and Services,E,Services,EF,23/06/2021,PAY01385223,SCOM,Safer Communties,COUN,340,Revenue,Allergy Research Ltd
Brighton & Hove City Council,http://statistics.data.gov.uk/id/local-authority/00ML,Adult Social Care,BVASOC,ASC Mental Health Support,MHP,Customer n Client Receipts,M,Fees n Charges,MB,14/04/2021,PAY01365991,MENH,Mental Health Support,COUN,-424.3,Revenue,Alliance Home Care Ltd
Brighton & Hove City Council,http://statistics.data.gov.uk/id/local-authority/00ML,Adult Social Care,BVASOC,ASC Mental Health Support,MHP,Third Party Payments,F,Other Establishments,FH,14/04/2021,PAY01365991,MENH,Mental Health Support,COUN,3920,Revenue,Alliance Home Care Ltd
Brighton & Hove City Council,http://statistics.data.gov.uk/id/local-authority/00ML,Adult Social Care,BVASOC,ASC Mental Health Support,MHP,Customer n Client Receipts,M,Fees n Charges,MB,07/05/2021,PAY01372992,MENH,Mental Health Support,COUN,-425.6,Revenue,Alliance Home Care Ltd
Brighton & Hove City Council,http://statistics.data.gov.uk/id/local-authority/00ML,Adult Social Care,BVASOC,ASC Mental Health Support,MHP,Third Party Payments,F,Other Establishments,FH,07/05/2021,PAY01372992,MENH,Mental Health Support,COUN,3920,Revenue,Alliance Home Care Ltd
Brighton & Hove City Council,http://statistics.data.gov.uk/id/local-authority/00ML,Adult Social Care,BVASOC,ASC Mental Health Support,MHP,Customer n Client Receipts,M,Fees n Charges,MB,04/06/2021,PAY01380624,MENH,Mental Health Support,COUN,-425.6,Revenue,Alliance Home Care Ltd
Brighton & Hove City Council,http://statistics.data.gov.uk/id/local-authority/00ML,Adult Social Care,BVASOC,ASC Mental Health Support,MHP,Third Party Payments,F,Other Establishments,FH,04/06/2021,PAY01380624,MENH,Mental Health Support,COUN,3920,Revenue,Alliance Home Care Ltd
Brighton & Hove City Council,http://statistics.data.gov.uk/id/local-authority/00ML,Adult Social Care,BVASOC,ASC Learning Disabilities,ALD,Third Party Payments,F,Other Establishments,FH,14/04/2021,PAY01365550,LDIS,Adults LD Community Care,COUN,229.8,Revenue,Allied Healthcare
Brighton & Hove City Council,http://statistics.data.gov.uk/id/local-authority/00ML,Adult Social Care,BVASOC,ASC Memory Cognition Support,MEM,Third Party Payments,F,Other Establishments,FH,14/04/2021,PAY01365550,COGN,Memory Cognition Support,COUN,252.87,Revenue,Allied Healthcare
Brighton & Hove City Council,http://statistics.data.gov.uk/id/local-authority/00ML,Adult Social Care,BVASOC,ASC Mental Health Support,MHP,Third Party Payments,F,Other Establishments,FH,14/04/2021,PAY01365550,MENH,Mental Health Support,COUN,1009.8,Revenue,Allied Healthcare
Brighton & Hove City Council,http://statistics.data.gov.uk/id/local-authority/00ML,Adult Social Care,BVASOC,ASC Physical Support,PHY,Third Party Payments,F,Other Establishments,FH,14/04/2021,PAY01365550,PHYS,Physical Support,COUN,4673.4,Revenue,Allied Healthcare
Brighton & Hove City Council,http://statistics.data.gov.uk/id/local-authority/00ML,Adult Social Care,BVASOC,ASC Sensory Support,AHV,Third Party Payments,F,Other Establishments,FH,14/04/2021,PAY01365550,SORY,Sensory Support,COUN,13.64,Revenue,Allied Healthcare
Brighton & Hove City Council,http://statistics.data.gov.uk/id/local-authority/00ML,Adult Social Care,BVASOC,ASC Learning Disabilities,ALD,Third Party Payments,F,Other Establishments,FH,21/04/2021,PAY01367475,LDIS,Adults LD Community Care,COUN,249.23,Revenue,Allied Healthcare
Brighton & Hove City Council,http://statistics.data.gov.uk/id/local-authority/00ML,Adult Social Care,BVASOC,ASC Memory Cognition Support,MEM,Third Party Payments,F,Other Establishments,FH,21/04/2021,PAY01367475,COGN,Memory Cognition Support,COUN,269.51,Revenue,Allied Healthcare
Brighton & Hove City Council,http://statistics.data.gov.uk/id/local-authority/00ML,Adult Social Care,BVASOC,ASC Mental Health Support,MHP,Third Party Payments,F,Other Establishments,FH,21/04/2021,PAY01367475,MENH,Mental Health Support,COUN,1067.74,Revenue,Allied Healthcare
Brighton & Hove City Council,http://statistics.data.gov.uk/id/local-authority/00ML,Adult Social Care,BVASOC,ASC Physical Support,PHY,Third Party Payments,F,Other Establishments,FH,21/04/2021,PAY01367475,PHYS,Physical Support,COUN,4864.05,Revenue,Allied Healthcare
Brighton & Hove City Council,http://statistics.data.gov.uk/id/local-authority/00ML,Adult Social Care,BVASOC,ASC Sensory Support,AHV,Third Party Payments,F,Other Establishments,FH,21/04/2021,PAY01367475,SORY,Sensory Support,COUN,11.24,Revenue,Allied Healthcare
Brighton & Hove City Council,http://statistics.data.gov.uk/id/local-authority/00ML,Adult Social Care,BVASOC,ASC Learning Disabilities,ALD,Third Party Payments,F,Other Establishments,FH,28/04/2021,PAY01369104,LDIS,Adults LD Community Care,COUN,250.79,Revenue,Allied Healthcare
Brighton & Hove City Council,http://statistics.data.gov.uk/id/local-authority/00ML,Adult Social Care,BVASOC,ASC Memory Cognition Support,MEM,Third Party Payments,F,Other Establishments,FH,28/04/2021,PAY01369104,COGN,Memory Cognition Support,COUN,301.69,Revenue,Allied Healthcare
Brighton & Hove City Council,http://statistics.data.gov.uk/id/local-authority/00ML,Adult Social Care,BVASOC,ASC Mental Health Support,MHP,Third Party Payments,F,Other Establishments,FH,28/04/2021,PAY01369104,MENH,Mental Health Support,COUN,1083.07,Revenue,Allied Healthcare
Brighton & Hove City Council,http://statistics.data.gov.uk/id/local-authority/00ML,Adult Social Care,BVASOC,ASC Physical Support,PHY,Third Party Payments,F,Other Establishments,FH,28/04/2021,PAY01369104,PHYS,Physical Support,COUN,5047.89,Revenue,Allied Healthcare
Brighton & Hove City Council,http://statistics.data.gov.uk/id/local-authority/00ML,Adult Social Care,BVASOC,ASC Sensory Support,AHV,Third Party Payments,F,Other Establishments,FH,28/04/2021,PAY01369104,SORY,Sensory Support,COUN,9.36,Revenue,Allied Healthcare
Brighton & Hove City Council,http://statistics.data.gov.uk/id/local-authority/00ML,Adult Social Care,BVASOC,ASC Learning Disabilities,ALD,Third Party Payments,F,Other Establishments,FH,19/05/2021,PAY01375187,LDIS,Adults LD Community Care,COUN,943.78,Revenue,Allied Healthcare
Brighton & Hove City Council,http://statistics.data.gov.uk/id/local-authority/00ML,Adult Social Care,BVASOC,ASC Memory Cognition Support,MEM,Third Party Payments,F,Other Establishments,FH,19/05/2021,PAY01375187,COGN,Memory Cognition Support,COUN,1103.07,Revenue,Allied Healthcare
Brighton & Hove City Council,http://statistics.data.gov.uk/id/local-authority/00ML,Adult Social Care,BVASOC,ASC Mental Health Support,MHP,Third Party Payments,F,Other Establishments,FH,19/05/2021,PAY01375187,MENH,Mental Health Support,COUN,4251.43,Revenue,Allied Healthcare
Brighton & Hove City Council,http://statistics.data.gov.uk/id/local-authority/00ML,Adult Social Care,BVASOC,ASC Physical Support,PHY,Third Party Payments,F,Other Establishments,FH,19/05/2021,PAY01375187,PHYS,Physical Support,COUN,20756.74,Revenue,Allied Healthcare
Brighton & Hove City Council,http://statistics.data.gov.uk/id/local-authority/00ML,Adult Social Care,BVASOC,ASC Sensory Support,AHV,Third Party Payments,F,Other Establishments,FH,19/05/2021,PAY01375187,SORY,Sensory Support,COUN,39.63,Revenue,Allied Healthcare
Brighton & Hove City Council,http://statistics.data.gov.uk/id/local-authority/00ML,Adult Social Care,BVASOC,ASC Learning Disabilities,ALD,Third Party Payments,F,Other Establishments,FH,26/05/2021,PAY01376876,LDIS,Adults LD Community Care,COUN,241.41,Revenue,Allied Healthcare
Brighton & Hove City Council,http://statistics.data.gov.uk/id/local-authority/00ML,Adult Social Care,BVASOC,ASC Memory Cognition Support,MEM,Third Party Payments,F,Other Establishments,FH,26/05/2021,PAY01376876,COGN,Memory Cognition Support,COUN,394.75,Revenue,Allied Healthcare
Brighton & Hove City Council,http://statistics.data.gov.uk/id/local-authority/00ML,Adult Social Care,BVASOC,ASC Mental Health Support,MHP,Third Party Payments,F,Other Establishments,FH,26/05/2021,PAY01376876,MENH,Mental Health Support,COUN,1022.13,Revenue,Allied Healthcare
Brighton & Hove City Council,http://statistics.data.gov.uk/id/local-authority/00ML,Adult Social Care,BVASOC,ASC Physical Support,PHY,Third Party Payments,F,Other Establishments,FH,26/05/2021,PAY01376876,PHYS,Physical Support,COUN,5213.52,Revenue,Allied Healthcare
Brighton & Hove City Council,http://statistics.data.gov.uk/id/local-authority/00ML,Adult Social Care,BVASOC,ASC Sensory Support,AHV,Third Party Payments,F,Other Establishments,FH,26/05/2021,PAY01376876,SORY,Sensory Support,COUN,10.61,Revenue,Allied Healthcare
Brighton & Hove City Council,http://statistics.data.gov.uk/id/local-authority/00ML,Adult Social Care,BVASOC,ASC Learning Disabilities,ALD,Third Party Payments,F,Other Establishments,FH,28/05/2021,PAY01377692,LDIS,Adults LD Community Care,COUN,1089.03,Revenue,Allied Healthcare
Brighton & Hove City Council,http://statistics.data.gov.uk/id/local-authority/00ML,Adult Social Care,BVASOC,ASC Memory Cognition Support,MEM,Third Party Payments,F,Other Establishments,FH,28/05/2021,PAY01377692,COGN,Memory Cognition Support,COUN,8961.28,Revenue,Allied Healthcare
Brighton & Hove City Council,http://statistics.data.gov.uk/id/local-authority/00ML,Adult Social Care,BVASOC,ASC Physical Support,PHY,Third Party Payments,F,Other Establishments,FH,28/05/2021,PAY01377692,PHYS,Physical Support,COUN,26826.71,Revenue,Allied Healthcare
Brighton & Hove City Council,http://statistics.data.gov.uk/id/local-authority/00ML,Adult Social Care,BVASOC,ASC Learning Disabilities,ALD,Third Party Payments,F,Other Establishments,FH,02/06/2021,PAY01379251,LDIS,Adults LD Community Care,COUN,242.98,Revenue,Allied Healthcare
Brighton & Hove City Council,http://statistics.data.gov.uk/id/local-authority/00ML,Adult Social Care,BVASOC,ASC Memory Cognition Support,MEM,Third Party Payments,F,Other Establishments,FH,02/06/2021,PAY01379251,COGN,Memory Cognition Support,COUN,468.15,Revenue,Allied Healthcare
Brighton & Hove City Council,http://statistics.data.gov.uk/id/local-authority/00ML,Adult Social Care,BVASOC,ASC Mental Health Support,MHP,Third Party Payments,F,Other Establishments,FH,02/06/2021,PAY01379251,MENH,Mental Health Support,COUN,1022.76,Revenue,Allied Healthcare
Brighton & Hove City Council,http://statistics.data.gov.uk/id/local-authority/00ML,Adult Social Care,BVASOC,ASC Physical Support,PHY,Third Party Payments,F,Other Establishments,FH,02/06/2021,PAY01379251,PHYS,Physical Support,COUN,5770,Revenue,Allied Healthcare
Brighton & Hove City Council,http://statistics.data.gov.uk/id/local-authority/00ML,Adult Social Care,BVASOC,ASC Sensory Support,AHV,Third Party Payments,F,Other Establishments,FH,02/06/2021,PAY01379251,SORY,Sensory Support,COUN,11.24,Revenue,Allied Healthcare
Brighton & Hove City Council,http://statistics.data.gov.uk/id/local-authority/00ML,Adult Social Care,BVASOC,ASC Learning Disabilities,ALD,Third Party Payments,F,Other Establishments,FH,16/06/2021,PAY01382932,LDIS,Adults LD Community Care,COUN,434.44,Revenue,Allied Healthcare
Brighton & Hove City Council,http://statistics.data.gov.uk/id/local-authority/00ML,Adult Social Care,BVASOC,ASC Memory Cognition Support,MEM,Third Party Payments,F,Other Establishments,FH,16/06/2021,PAY01382932,COGN,Memory Cognition Support,COUN,970.62,Revenue,Allied Healthcare
Brighton & Hove City Council,http://statistics.data.gov.uk/id/local-authority/00ML,Adult Social Care,BVASOC,ASC Mental Health Support,MHP,Third Party Payments,F,Other Establishments,FH,16/06/2021,PAY01382932,MENH,Mental Health Support,COUN,2035.77,Revenue,Allied Healthcare
Brighton & Hove City Council,http://statistics.data.gov.uk/id/local-authority/00ML,Adult Social Care,BVASOC,ASC Physical Support,PHY,Third Party Payments,F,Other Establishments,FH,16/06/2021,PAY01382932,PHYS,Physical Support,COUN,11418.9,Revenue,Allied Healthcare
Brighton & Hove City Council,http://statistics.data.gov.uk/id/local-authority/00ML,Adult Social Care,BVASOC,ASC Sensory Support,AHV,Third Party Payments,F,Other Establishments,FH,16/06/2021,PAY01382932,SORY,Sensory Support,COUN,19.67,Revenue,Allied Healthcare
Brighton & Hove City Council,http://statistics.data.gov.uk/id/local-authority/00ML,Adult Social Care,BVASOC,ASC Memory Cognition Support,MEM,Third Party Payments,F,Other Establishments,FH,18/06/2021,PAY01383692,COGN,Memory Cognition Support,COUN,4250.19,Revenue,Allied Healthcare
Brighton & Hove City Council,http://statistics.data.gov.uk/id/local-authority/00ML,Adult Social Care,BVASOC,ASC Physical Support,PHY,Third Party Payments,F,Other Establishments,FH,18/06/2021,PAY01383692,PHYS,Physical Support,COUN,773.08,Revenue,Allied Healthcare
Brighton & Hove City Council,http://statistics.data.gov.uk/id/local-authority/00ML,Adult Social Care,BVASOC,ASC Learning Disabilities,ALD,Third Party Payments,F,Other Establishments,FH,23/06/2021,PAY01384574,LDIS,Adults LD Community Care,COUN,225.49,Revenue,Allied Healthcare
Brighton & Hove City Council,http://statistics.data.gov.uk/id/local-authority/00ML,Adult Social Care,BVASOC,ASC Memory Cognition Support,MEM,Third Party Payments,F,Other Establishments,FH,23/06/2021,PAY01384574,COGN,Memory Cognition Support,COUN,431.88,Revenue,Allied Healthcare
Brighton & Hove City Council,http://statistics.data.gov.uk/id/local-authority/00ML,Adult Social Care,BVASOC,ASC Mental Health Support,MHP,Third Party Payments,F,Other Establishments,FH,23/06/2021,PAY01384574,MENH,Mental Health Support,COUN,1076.18,Revenue,Allied Healthcare
Brighton & Hove City Council,http://statistics.data.gov.uk/id/local-authority/00ML,Adult Social Care,BVASOC,ASC Physical Support,PHY,Third Party Payments,F,Other Establishments,FH,23/06/2021,PAY01384574,PHYS,Physical Support,COUN,7010.66,Revenue,Allied Healthcare
Brighton & Hove City Council,http://statistics.data.gov.uk/id/local-authority/00ML,Adult Social Care,BVASOC,ASC Sensory Support,AHV,Third Party Payments,F,Other Establishments,FH,23/06/2021,PAY01384574,SORY,Sensory Support,COUN,11.71,Revenue,Allied Healthcare
Brighton & Hove City Council,http://statistics.data.gov.uk/id/local-authority/00ML,Adult Social Care,BVASOC,ASC Learning Disabilities,ALD,Third Party Payments,F,Other Establishments,FH,30/06/2021,PAY01387148,LDIS,Adults LD Community Care,COUN,155.82,Revenue,Allied Healthcare
Brighton & Hove City Council,http://statistics.data.gov.uk/id/local-authority/00ML,Adult Social Care,BVASOC,ASC Memory Cognition Support,MEM,Third Party Payments,F,Other Establishments,FH,30/06/2021,PAY01387148,COGN,Memory Cognition Support,COUN,1873.65,Revenue,Allied Healthcare
Brighton & Hove City Council,http://statistics.data.gov.uk/id/local-authority/00ML,Adult Social Care,BVASOC,ASC Mental Health Support,MHP,Third Party Payments,F,Other Establishments,FH,30/06/2021,PAY01387148,MENH,Mental Health Support,COUN,1101.68,Revenue,Allied Healthcare
Brighton & Hove City Council,http://statistics.data.gov.uk/id/local-authority/00ML,Adult Social Care,BVASOC,ASC Physical Support,PHY,Third Party Payments,F,Other Establishments,FH,30/06/2021,PAY01387148,PHYS,Physical Support,COUN,7139.26,Revenue,Allied Healthcare
Brighton & Hove City Council,http://statistics.data.gov.uk/id/local-authority/00ML,Adult Social Care,BVASOC,ASC Sensory Support,AHV,Third Party Payments,F,Other Establishments,FH,30/06/2021,PAY01387148,SORY,Sensory Support,COUN,10.61,Revenue,Allied Healthcare
Brighton & Hove City Council,http://statistics.data.gov.uk/id/local-authority/00ML,Highways and Transportation,BVAHRT,Parking Services,PRK,Supplies and Services,E,Print Stat & Gen Office Exps,ED,16/04/2021,PAY01367108,PARK,Parking Services,COUN,969.92,Revenue,Allied Publicity Servcies (Manchester) Ltd
Brighton & Hove City Council,http://statistics.data.gov.uk/id/local-authority/00ML,Highways and Transportation,BVAHRT,Parking Services,PRK,Supplies and Services,E,Print Stat & Gen Office Exps,ED,28/05/2021,PAY01378780,PARK,Parking Services,COUN,964.55,Revenue,Allied Publicity Servcies (Manchester) Ltd
Brighton & Hove City Council,http://statistics.data.gov.uk/id/local-authority/00ML,Highways and Transportation,BVAHRT,Parking Services,PRK,Supplies and Services,E,Print Stat & Gen Office Exps,ED,30/06/2021,PAY01387579,PARK,Parking Services,COUN,1295.09,Revenue,Allied Publicity Servcies (Manchester) Ltd
Brighton & Hove City Council,http://statistics.data.gov.uk/id/local-authority/00ML,Central Support and Overheads,BVACEN,Support Services (SSC),PPT,Premises Related,C,Repair Maint n Alterations,CA,14/04/2021,PAY01365543,PROP,Property and Design,COUN,525.9,Revenue,Allsop & Francis Ltd
Brighton & Hove City Council,http://statistics.data.gov.uk/id/local-authority/00ML,Housing Revenue Account,BVAHOU,Hsing Management - HRA,HGM,Premises Related,C,Cleaning n Domestic Supps,CH,14/04/2021,PAY01365543,HTEN,Tenancy Services,COUN,271.56,Revenue,Allsop & Francis Ltd
Brighton & Hove City Council,http://statistics.data.gov.uk/id/local-authority/00ML,Adult Social Care,BVASOC,ASC Learning Disabilities,ALD,Premises Related,C,Repair Maint n Alterations,CA,21/04/2021,PAY01367464,LDAS,Adults LD Accomodation Service,COUN,420,Revenue,Allsop & Francis Ltd
Brighton & Hove City Council,http://statistics.data.gov.uk/id/local-authority/00ML,Central Support and Overheads,BVACEN,Support Services (SSC),PPT,Premises Related,C,Repair Maint n Alterations,CA,21/04/2021,PAY01367464,PROP,Property and Design,COUN,352,Revenue,Allsop & Francis Ltd
Brighton & Hove City Council,http://statistics.data.gov.uk/id/local-authority/00ML,Central Support and Overheads,BVACEN,Support Services (SSC),PPT,Premises Related,C,Repair Maint n Alterations,CA,28/04/2021,PAY01369098,PROP,Property and Design,COUN,216.68,Revenue,Allsop & Francis Ltd
Brighton & Hove City Council,http://statistics.data.gov.uk/id/local-authority/00ML,Children`s & Education Serv,BVAEDU,Ed EY Central,EAE,Premises Related,C,Repair Maint n Alterations,CA,28/04/2021,PAY01369098,EYRS,Early Years,COUN,2653.75,Revenue,Allsop & Francis Ltd
Brighton & Hove City Council,http://statistics.data.gov.uk/id/local-authority/00ML,Central Support and Overheads,BVACEN,Support Services (SSC),PPT,Premises Related,C,Repair Maint n Alterations,CA,19/05/2021,PAY01375180,PROP,Property and Design,COUN,599.74,Revenue,Allsop & Francis Ltd
Brighton & Hove City Council,http://statistics.data.gov.uk/id/local-authority/00ML,Central Support and Overheads,BVACEN,Support Services (SSC),PPT,Premises Related,C,Repair Maint n Alterations,CA,02/06/2021,PAY01379239,PROP,Property and Design,COUN,525.27,Revenue,Allsop & Francis Ltd
Brighton & Hove City Council,http://statistics.data.gov.uk/id/local-authority/00ML,Central Support and Overheads,BVACEN,Holding Accounts,PPH,Premises Related,C,Repair Maint n Alterations,CA,30/06/2021,PAY01387137,PROP,Property and Design,COUN,221.2,Revenue,Allsop & Francis Ltd
Brighton & Hove City Council,http://statistics.data.gov.uk/id/local-authority/00ML,Planning and Development,BVAPLA,Community Development,CDV,Supplies and Services,E,Grants n Subscriptions,EK,09/04/2021,PAY01364561,CMNY,Communities and Equalities,COUN,8938.5,Revenue,Allsorts Youth Project
Brighton & Hove City Council,http://statistics.data.gov.uk/id/local-authority/00ML,Public Health,BVAPHE,Public Health,PHE,Third Party Payments,F,Other Establishments,FH,16/04/2021,PAY01366485,PHCM,PH Commissioning,COUN,19433,Revenue,Allsorts Youth Project
Brighton & Hove City Council,http://statistics.data.gov.uk/id/local-authority/00ML,Children`s & Education Serv,BVAEDU,Ed Srvcs YP Youth Srvcs,ENY,Third Party Payments,F,Other Establishments,FH,28/05/2021,PAY01377662,YOTS,Youth Service,COUN,9500,Revenue,Allsorts Youth Project
Brighton & Hove City Council,http://statistics.data.gov.uk/id/local-authority/00ML,Central Support and Overheads,BVACEN,Holding Accounts,PPH,Transport Related,D,Direct Transport Costs,DA,23/04/2021,PAY01368445,CICL,City Clean,COUN,13277.9,Revenue,Allstar Business Solutions Ltd
Brighton & Hove City Council,http://statistics.data.gov.uk/id/local-authority/00ML,Central Support and Overheads,BVACEN,Holding Accounts,PPH,Transport Related,D,Direct Transport Costs,DA,07/05/2021,PAY01372797,CICL,City Clean,COUN,11121.55,Revenue,Allstar Business Solutions Ltd
Brighton & Hove City Council,http://statistics.data.gov.uk/id/local-authority/00ML,Central Support and Overheads,BVACEN,Holding Accounts,PPH,Transport Related,D,Direct Transport Costs,DA,19/05/2021,PAY01375413,CICL,City Clean,COUN,12950.29,Revenue,Allstar Business Solutions Ltd
Brighton & Hove City Council,http://statistics.data.gov.uk/id/local-authority/00ML,Central Support and Overheads,BVACEN,Holding Accounts,PPH,Transport Related,D,Direct Transport Costs,DA,09/06/2021,PAY01381376,CICL,City Clean,COUN,12664.07,Revenue,Allstar Business Solutions Ltd
Brighton & Hove City Council,http://statistics.data.gov.uk/id/local-authority/00ML,Central Support and Overheads,BVACEN,Holding Accounts,PPH,Transport Related,D,Direct Transport Costs,DA,18/06/2021,PAY01383927,CICL,City Clean,COUN,13200.46,Revenue,Allstar Business Solutions Ltd
Brighton & Hove City Council,http://statistics.data.gov.uk/id/local-authority/00ML,Environment & Regulatory Serv,BVAERS,Street Cleansing,CLE,Third Party Payments,F,Private Contractors,FJ,01/04/2021,PAY01362562,CICL,City Clean,COUN,1100,Revenue,Allweather Roofing & Construction Ltd.
Brighton & Hove City Council,http://statistics.data.gov.uk/id/local-authority/00ML,Housing Revenue Account,BVAHOU,Hsing Management - HRA,HGM,Premises Related,C,Repair Maint n Alterations,CA,01/04/2021,PAY01362562,HPAI,Property & Investment,COUN,17328,Revenue,Allweather Roofing & Construction Ltd.
Brighton & Hove City Council,http://statistics.data.gov.uk/id/local-authority/00ML,Children`s & Education Serv,BVAEDU,Ed Ed Other Other,ENF,Premises Related,C,Repair Maint n Alterations,CA,07/04/2021,PAY01364003,PROP,Property and Design,COUN,750,Revenue,Allweather Roofing & Construction Ltd.
Brighton & Hove City Council,http://statistics.data.gov.uk/id/local-authority/00ML,Environment & Regulatory Serv,BVAERS,Street Cleansing,CLE,Third Party Payments,F,Private Contractors,FJ,16/04/2021,PAY01366625,CICL,City Clean,COUN,550,Revenue,Allweather Roofing & Construction Ltd.
Brighton & Hove City Council,http://statistics.data.gov.uk/id/local-authority/00ML,Environment & Regulatory Serv,BVAERS,Street Cleansing,CLE,Third Party Payments,F,Private Contractors,FJ,05/05/2021,PAY01371707,CICL,City Clean,COUN,1430,Revenue,Allweather Roofing & Construction Ltd.
Brighton & Hove City Council,http://statistics.data.gov.uk/id/local-authority/00ML,Environment & Regulatory Serv,BVAERS,Street Cleansing,CLE,Third Party Payments,F,Private Contractors,FJ,26/05/2021,PAY01376948,CICL,City Clean,COUN,940,Revenue,Allweather Roofing & Construction Ltd.
Brighton & Hove City Council,http://statistics.data.gov.uk/id/local-authority/00ML,Non I&E,BVANON,CAP Other Env Services,4EV,New Construction n Conversion,PB,New Construction n Conversion,PBL5,26/05/2021,PAY01376948,PROP,Property and Design,COUN,400,Capital,Allweather Roofing & Construction Ltd.
Brighton & Hove City Council,http://statistics.data.gov.uk/id/local-authority/00ML,Cultural and Related Serv,BVACUL,Recreation and Sport,REC,Supplies and Services,E,Services,EF,04/06/2021,PAY01380260,SPLE,Sport and Leisure,COUN,480,Revenue,Allweather Roofing & Construction Ltd.
Brighton & Hove City Council,http://statistics.data.gov.uk/id/local-authority/00ML,Non I&E,BVANON,CAP Education Services,4ED,New Construction n Conversion,PB,New Construction n Conversion,PBL5,18/06/2021,PAY01383781,EYRS,Early Years,COUN,9400,Capital,Allweather Roofing & Construction Ltd.
Brighton & Hove City Council,http://statistics.data.gov.uk/id/local-authority/00ML,Adult Social Care,BVASOC,Social Care Activities,ACM,Third Party Payments,F,Other Establishments,FH,16/04/2021,PAY01366702,MENH,Mental Health Support,COUN,610,Revenue,Alphaguard K9 Ltd
Brighton & Hove City Council,http://statistics.data.gov.uk/id/local-authority/00ML,Environment & Regulatory Serv,BVAERS,Environmental Health,EVH,Supplies and Services,E,Services,EF,28/04/2021,PAY01369303,SCOM,Safer Communties,COUN,2830,Revenue,Alphaguard K9 Ltd
Brighton & Hove City Council,http://statistics.data.gov.uk/id/local-authority/00ML,Adult Social Care,BVASOC,ASC Physical Support,PHY,Third Party Payments,F,Other Establishments,FH,09/06/2021,PAY01381289,PHYS,Physical Support,COUN,870,Revenue,Alphaguard K9 Ltd
Brighton & Hove City Council,http://statistics.data.gov.uk/id/local-authority/00ML,Environment & Regulatory Serv,BVAERS,Environmental Health,EVH,Supplies and Services,E,Services,EF,18/06/2021,PAY01383858,SCOM,Safer Communties,COUN,1884,Revenue,Alphaguard K9 Ltd
Brighton & Hove City Council,http://statistics.data.gov.uk/id/local-authority/00ML,Central Support and Overheads,BVACEN,Support Services (SSC),PPT,Supplies and Services,E,Communications n Computing,EH,09/04/2021,PAY01364776,ICTA,ICT,COUN,29193.18,Revenue,Altodigital Networks Ltd
Brighton & Hove City Council,http://statistics.data.gov.uk/id/local-authority/00ML,Central Support and Overheads,BVACEN,Support Services (SSC),PPT,Supplies and Services,E,Services,EF,28/04/2021,PAY01369280,SKEM,Skills and Employment,COUN,369.62,Revenue,Altodigital Networks Ltd
Brighton & Hove City Council,http://statistics.data.gov.uk/id/local-authority/00ML,Central Support and Overheads,BVACEN,Support Services (SSC),PPT,Supplies and Services,E,Communications n Computing,EH,11/06/2021,PAY01382122,ICTA,ICT,COUN,1190.71,Revenue,Altodigital Networks Ltd
Brighton & Hove City Council,http://statistics.data.gov.uk/id/local-authority/00ML,Central Support and Overheads,BVACEN,Support Services (SSC),PPT,Supplies and Services,E,Communications n Computing,EH,25/06/2021,PAY01385798,ICTA,ICT,COUN,6330.05,Revenue,Altodigital Networks Ltd
Brighton & Hove City Council,http://statistics.data.gov.uk/id/local-authority/00ML,Library Services,BVACUL,Library Service,LBR,Indirect Employees,B,Training,BM,19/05/2021,PAY01375675,LIBS,Libraries,COUN,1000,Revenue,Always Possible Ltd
Brighton & Hove City Council,http://statistics.data.gov.uk/id/local-authority/00ML,Housing General Fund,BVAHOG,Homelessness,HML,Supplies and Services,E,Services,EF,07/04/2021,PAY01363982,TRAV,Travellers,COUN,757.71,Revenue,AM Security Ltd t/a AM Fire & Security Group
Brighton & Hove City Council,http://statistics.data.gov.uk/id/local-authority/00ML,Cultural and Related Serv,BVACUL,Open Spaces,PEN,Premises Related,C,Repair Maint n Alterations,CA,09/04/2021,PAY01364625,CIPK,City Parks,COUN,818.95,Revenue,AM Security Ltd t/a AM Fire & Security Group
Brighton & Hove City Council,http://statistics.data.gov.uk/id/local-authority/00ML,Central Support and Overheads,BVACEN,Support Services (SSC),PPT,Supplies and Services,E,Equip't Furniture n Materials,EA,14/04/2021,PAY01365627,PROP,Property and Design,COUN,3891.2,Revenue,AM Security Ltd t/a AM Fire & Security Group
Brighton & Hove City Council,http://statistics.data.gov.uk/id/local-authority/00ML,Highways and Transportation,BVAHRT,Parking Services,PRK,Supplies and Services,E,Equip't Furniture n Materials,EA,14/04/2021,PAY01365627,PARK,Parking Services,COUN,139.67,Revenue,AM Security Ltd t/a AM Fire & Security Group
Brighton & Hove City Council,http://statistics.data.gov.uk/id/local-authority/00ML,Non I&E,BVANON,CAP Education Services,4ED,New Construction n Conversion,PB,New Construction n Conversion,PBL5,23/04/2021,PAY01368230,OEDS,Other Education Support,COUN,5362.55,Capital,AM Security Ltd t/a AM Fire & Security Group
Brighton & Hove City Council,http://statistics.data.gov.uk/id/local-authority/00ML,Central Support and Overheads,BVACEN,Support Services (SSC),PPT,Premises Related,C,Repair Maint n Alterations,CA,28/04/2021,PAY01369159,PROP,Property and Design,COUN,23970.1,Revenue,AM Security Ltd t/a AM Fire & Security Group
Brighton & Hove City Council,http://statistics.data.gov.uk/id/local-authority/00ML,Library Services,BVACUL,Library Service,LBR,Supplies and Services,E,Services,EF,28/04/2021,PAY01369159,LIBS,Libraries,COUN,28342.57,Revenue,AM Security Ltd t/a AM Fire & Security Group
Brighton & Hove City Council,http://statistics.data.gov.uk/id/local-authority/00ML,Central Support and Overheads,BVACEN,Support Services (SSC),PPT,Premises Related,C,Repair Maint n Alterations,CA,30/04/2021,PAY01370133,PROP,Property and Design,COUN,20768.2,Revenue,AM Security Ltd t/a AM Fire & Security Group
Brighton & Hove City Council,http://statistics.data.gov.uk/id/local-authority/00ML,Central Services to the Public,BVACEN,Elections,ELE,Premises Related,C,Repair Maint n Alterations,CA,19/05/2021,PAY01375226,ELEC,Elections,COUN,1150.76,Revenue,AM Security Ltd t/a AM Fire & Security Group
Brighton & Hove City Council,http://statistics.data.gov.uk/id/local-authority/00ML,Housing General Fund,BVAHOG,Homelessness,HML,Supplies and Services,E,Services,EF,19/05/2021,PAY01375226,TRAV,Travellers,COUN,410.76,Revenue,AM Security Ltd t/a AM Fire & Security Group
Brighton & Hove City Council,http://statistics.data.gov.uk/id/local-authority/00ML,Central Support and Overheads,BVACEN,Support Services (SSC),PPT,Supplies and Services,E,Services,EF,21/05/2021,PAY01376028,PROP,Property and Design,COUN,210,Revenue,AM Security Ltd t/a AM Fire & Security Group
Brighton & Hove City Council,http://statistics.data.gov.uk/id/local-authority/00ML,Environment & Regulatory Serv,BVAERS,Management Services (DEC),MGT,Premises Related,C,Repair Maint n Alterations,CA,02/06/2021,PAY01379296,CICL,City Clean,COUN,3656.09,Revenue,AM Security Ltd t/a AM Fire & Security Group
Brighton & Hove City Council,http://statistics.data.gov.uk/id/local-authority/00ML,Library Services,BVACUL,Library Service,LBR,Supplies and Services,E,Services,EF,02/06/2021,PAY01379296,LIBS,Libraries,COUN,174.97,Revenue,AM Security Ltd t/a AM Fire & Security Group
Brighton & Hove City Council,http://statistics.data.gov.uk/id/local-authority/00ML,Non I&E,BVANON,CAP Mgmnt and Suppt Services,4PT,New Construction n Conversion,PB,New Construction n Conversion,PBL5,02/06/2021,PAY01379296,PROP,Property and Design,COUN,4743.32,Capital,AM Security Ltd t/a AM Fire & Security Group
Brighton & Hove City Council,http://statistics.data.gov.uk/id/local-authority/00ML,Children`s & Education Serv,BVAEDU,Ed Ed Other Other,ENF,Premises Related,C,Repair Maint n Alterations,CA,04/06/2021,PAY01380188,PROP,Property and Design,COUN,100.9,Revenue,AM Security Ltd t/a AM Fire & Security Group
Brighton & Hove City Council,http://statistics.data.gov.uk/id/local-authority/00ML,Non I&E,BVANON,CAP Mgmnt and Suppt Services,4PT,New Construction n Conversion,PB,New Construction n Conversion,PBL5,04/06/2021,PAY01380188,PROP,Property and Design,COUN,7616.33,Capital,AM Security Ltd t/a AM Fire & Security Group
Brighton & Hove City Council,http://statistics.data.gov.uk/id/local-authority/00ML,Housing General Fund,BVAHOG,Homelessness,HML,Supplies and Services,E,Services,EF,09/06/2021,PAY01381165,TRAV,Travellers,COUN,420.7,Revenue,AM Security Ltd t/a AM Fire & Security Group
Brighton & Hove City Council,http://statistics.data.gov.uk/id/local-authority/00ML,Central Support and Overheads,BVACEN,Support Services (SSC),PPT,Premises Related,C,Repair Maint n Alterations,CA,23/06/2021,PAY01384618,PROP,Property and Design,COUN,201.8,Revenue,AM Security Ltd t/a AM Fire & Security Group
Brighton & Hove City Council,http://statistics.data.gov.uk/id/local-authority/00ML,Environment & Regulatory Serv,BVAERS,Management Services (DEC),MGT,Third Party Payments,F,Private Contractors,FJ,23/06/2021,PAY01384618,CICL,City Clean,COUN,3579.08,Revenue,AM Security Ltd t/a AM Fire & Security Group
Brighton & Hove City Council,http://statistics.data.gov.uk/id/local-authority/00ML,Highways and Transportation,BVAHRT,Parking Services,PRK,Premises Related,C,Repair Maint n Alterations,CA,23/06/2021,PAY01384618,PARK,Parking Services,COUN,478.28,Revenue,AM Security Ltd t/a AM Fire & Security Group
Brighton & Hove City Council,http://statistics.data.gov.uk/id/local-authority/00ML,Housing General Fund,BVAHOG,Homelessness,HML,Supplies and Services,E,Services,EF,23/06/2021,PAY01384618,TRAV,Travellers,COUN,226.49,Revenue,AM Security Ltd t/a AM Fire & Security Group
Brighton & Hove City Council,http://statistics.data.gov.uk/id/local-authority/00ML,Central Support and Overheads,BVACEN,Holding Accounts,PPH,Premises Related,C,Repair Maint n Alterations,CA,25/06/2021,PAY01385547,PROP,Property and Design,COUN,1953.26,Revenue,AM Security Ltd t/a AM Fire & Security Group
Brighton & Hove City Council,http://statistics.data.gov.uk/id/local-authority/00ML,Housing General Fund,BVAHOG,Homelessness,HML,Premises Related,C,Repair Maint n Alterations,CA,25/06/2021,PAY01385547,TRAV,Travellers,COUN,100.9,Revenue,AM Security Ltd t/a AM Fire & Security Group
Brighton & Hove City Council,http://statistics.data.gov.uk/id/local-authority/00ML,Central Support and Overheads,BVACEN,Holding Accounts,PPH,Premises Related,C,Repair Maint n Alterations,CA,18/06/2021,PAY01383925,PROP,Property and Design,COUN,17958,Revenue,Amalgamated Lifts Ltd
Brighton & Hove City Council,http://statistics.data.gov.uk/id/local-authority/00ML,Planning and Development,BVAPLA,Community Development,CDV,Supplies and Services,E,Grants n Subscriptions,EK,09/04/2021,PAY01364554,CMNY,Communities and Equalities,COUN,12248.5,Revenue,Amaze Brighton & Hove
Brighton & Hove City Council,http://statistics.data.gov.uk/id/local-authority/00ML,Central Support and Overheads,BVACEN,Support Services (SSC),PPT,Supplies and Services,E,Communications n Computing,EH,01/04/2021,PAY01363694,ICTA,ICT,COUN,378.01,Revenue,Amazon Payments UK Ltd
Brighton & Hove City Council,http://statistics.data.gov.uk/id/local-authority/00ML,Central Support and Overheads,BVACEN,Support Services (SSC),PPT,Supplies and Services,E,Communications n Computing,EH,01/04/2021,PAY01363694,PROP,Property and Design,COUN,30.17,Revenue,Amazon Payments UK Ltd
Brighton & Hove City Council,http://statistics.data.gov.uk/id/local-authority/00ML,Central Support and Overheads,BVACEN,Support Services (SSC),PPT,Supplies and Services,E,Print Stat & Gen Office Exps,ED,01/04/2021,PAY01363694,LEGS,Legal Services,COUN,8.74,Revenue,Amazon Payments UK Ltd
Brighton & Hove City Council,http://statistics.data.gov.uk/id/local-authority/00ML,Central Support and Overheads,BVACEN,Support Services (SSC),PPT,Supplies and Services,E,Services,EF,01/04/2021,PAY01363694,LEGS,Legal Services,COUN,39.16,Revenue,Amazon Payments UK Ltd
Brighton & Hove City Council,http://statistics.data.gov.uk/id/local-authority/00ML,Housing Revenue Account,BVAHOU,Hsing Management - HRA,HGM,Supplies and Services,E,Communications n Computing,EH,01/04/2021,PAY01363694,HPAI,Property & Investment,COUN,120.45,Revenue,Amazon Payments UK Ltd
Brighton & Hove City Council,http://statistics.data.gov.uk/id/local-authority/00ML,Housing Revenue Account,BVAHOU,Hsing Management - HRA,HGM,Supplies and Services,E,Communications n Computing,EH,01/04/2021,PAY01363694,HTEN,Tenancy Services,COUN,87.2,Revenue,Amazon Payments UK Ltd
Brighton & Hove City Council,http://statistics.data.gov.uk/id/local-authority/00ML,Central Support and Overheads,BVACEN,Support Services (SSC),PPT,Supplies and Services,E,Print Stat & Gen Office Exps,ED,14/04/2021,PAY01366229,LEGS,Legal Services,COUN,264.99,Revenue,Amazon Payments UK Ltd
Brighton & Hove City Council,http://statistics.data.gov.uk/id/local-authority/00ML,Children`s & Education Serv,BVAEDU,Ed Special Ed,EKE,Supplies and Services,E,Equip't Furniture n Materials,EA,14/04/2021,PAY01366229,PSEN,Pre School SEN,COUN,570.82,Revenue,Amazon Payments UK Ltd
Brighton & Hove City Council,http://statistics.data.gov.uk/id/local-authority/00ML,Housing General Fund,BVAHOG,Homelessness,HML,Third Party Payments,F,Other Establishments,FH,14/04/2021,PAY01366229,TAAS,Temp Accom and Allocations,COUN,149.29,Revenue,Amazon Payments UK Ltd
Brighton & Hove City Council,http://statistics.data.gov.uk/id/local-authority/00ML,Adult Social Care,BVASOC,ASC Learning Disabilities,ALD,Premises Related,C,Repair Maint n Alterations,CA,16/04/2021,PAY01367207,LDAS,Adults LD Accomodation Service,COUN,223.34,Revenue,Amazon Payments UK Ltd
Brighton & Hove City Council,http://statistics.data.gov.uk/id/local-authority/00ML,Central Support and Overheads,BVACEN,Support Services (SSC),PPT,Supplies and Services,E,Communications n Computing,EH,16/04/2021,PAY01367207,ICTA,ICT,COUN,141.6,Revenue,Amazon Payments UK Ltd
Brighton & Hove City Council,http://statistics.data.gov.uk/id/local-authority/00ML,Central Support and Overheads,BVACEN,Support Services (SSC),PPT,Supplies and Services,E,Equip't Furniture n Materials,EA,16/04/2021,PAY01367207,FINS,Financial Services,COUN,16.24,Revenue,Amazon Payments UK Ltd
Brighton & Hove City Council,http://statistics.data.gov.uk/id/local-authority/00ML,Children`s & Education Serv,BVAEDU,Ed Special Ed,EKE,Supplies and Services,E,Equip't Furniture n Materials,EA,16/04/2021,PAY01367207,PSEN,Pre School SEN,COUN,1393.04,Revenue,Amazon Payments UK Ltd
Brighton & Hove City Council,http://statistics.data.gov.uk/id/local-authority/00ML,Adult Social Care,BVASOC,ASC Learning Disabilities,ALD,Premises Related,C,Repair Maint n Alterations,CA,21/04/2021,PAY01367977,LDAS,Adults LD Accomodation Service,COUN,238.7,Revenue,Amazon Payments UK Ltd
Brighton & Hove City Council,http://statistics.data.gov.uk/id/local-authority/00ML,Central Support and Overheads,BVACEN,Support Services (SSC),PPT,Supplies and Services,E,Communications n Computing,EH,21/04/2021,PAY01367977,PROC,Procurement,COUN,78.88,Revenue,Amazon Payments UK Ltd
Brighton & Hove City Council,http://statistics.data.gov.uk/id/local-authority/00ML,Children`s & Education Serv,BVAEDU,Ed Special Ed,EKE,Supplies and Services,E,Equip't Furniture n Materials,EA,21/04/2021,PAY01367977,PSEN,Pre School SEN,COUN,12.49,Revenue,Amazon Payments UK Ltd
Brighton & Hove City Council,http://statistics.data.gov.uk/id/local-authority/00ML,Housing General Fund,BVAHOG,Homelessness,HML,Third Party Payments,F,Other Establishments,FH,05/05/2021,PAY01372158,TAAS,Temp Accom and Allocations,COUN,412.4,Revenue,Amazon Payments UK Ltd
Brighton & Hove City Council,http://statistics.data.gov.uk/id/local-authority/00ML,Central Support and Overheads,BVACEN,Support Services (SSC),PPT,Supplies and Services,E,Communications n Computing,EH,07/05/2021,PAY01373267,ICTA,ICT,COUN,429.86,Revenue,Amazon Payments UK Ltd
Brighton & Hove City Council,http://statistics.data.gov.uk/id/local-authority/00ML,Children`s & Education Serv,BVAEDU,Ed Special Ed,EKE,Supplies and Services,E,Equip't Furniture n Materials,EA,28/05/2021,PAY01378943,PSEN,Pre School SEN,COUN,1599.84,Revenue,Amazon Payments UK Ltd
Brighton & Hove City Council,http://statistics.data.gov.uk/id/local-authority/00ML,Highways and Transportation,BVAHRT,Highways and Roads - Mntnce,HRM,Supplies and Services,E,Print Stat & Gen Office Exps,ED,28/05/2021,PAY01378943,HIGH,Traffic Management,COUN,17.49,Revenue,Amazon Payments UK Ltd
Brighton & Hove City Council,http://statistics.data.gov.uk/id/local-authority/00ML,Central Support and Overheads,BVACEN,Support Services (SSC),PPT,Supplies and Services,E,Communications n Computing,EH,09/06/2021,PAY01381693,ICTA,ICT,COUN,288.24,Revenue,Amazon Payments UK Ltd
Brighton & Hove City Council,http://statistics.data.gov.uk/id/local-authority/00ML,Children`s & Education Serv,BVAEDU,Ed Special Ed,EKE,Supplies and Services,E,Equip't Furniture n Materials,EA,09/06/2021,PAY01381693,PSEN,Pre School SEN,COUN,23.28,Revenue,Amazon Payments UK Ltd
Brighton & Hove City Council,http://statistics.data.gov.uk/id/local-authority/00ML,Highways and Transportation,BVAHRT,Highways and Roads - Mntnce,HRM,Supplies and Services,E,Clothing Uniforms n Laundry,EC,09/06/2021,PAY01381693,HIGH,Traffic Management,COUN,64,Revenue,Amazon Payments UK Ltd
Brighton & Hove City Council,http://statistics.data.gov.uk/id/local-authority/00ML,Central Support and Overheads,BVACEN,Support Services (SSC),PPT,Supplies and Services,E,Communications n Computing,EH,11/06/2021,PAY01382672,ICTA,ICT,COUN,23.28,Revenue,Amazon Payments UK Ltd
Brighton & Hove City Council,http://statistics.data.gov.uk/id/local-authority/00ML,Housing General Fund,BVAHOG,Homelessness,HML,Third Party Payments,F,Other Establishments,FH,11/06/2021,PAY01382672,TAAS,Temp Accom and Allocations,COUN,196.24,Revenue,Amazon Payments UK Ltd
Brighton & Hove City Council,http://statistics.data.gov.uk/id/local-authority/00ML,Adult Social Care,BVASOC,ASC Learning Disabilities,ALD,Supplies and Services,E,Miscellaneous Expenses,EM,25/06/2021,PAY01386854,LDSE,Adults LD Day Services,COUN,374.96,Revenue,Amazon Payments UK Ltd
Brighton & Hove City Council,http://statistics.data.gov.uk/id/local-authority/00ML,Central Support and Overheads,BVACEN,Support Services (SSC),PPT,Supplies and Services,E,Communications n Computing,EH,25/06/2021,PAY01386854,ICTA,ICT,COUN,1345.76,Revenue,Amazon Payments UK Ltd
Brighton & Hove City Council,http://statistics.data.gov.uk/id/local-authority/00ML,Central Support and Overheads,BVACEN,Support Services (SSC),PPT,Supplies and Services,E,Equip't Furniture n Materials,EA,25/06/2021,PAY01386854,ICTA,ICT,COUN,39.91,Revenue,Amazon Payments UK Ltd
Brighton & Hove City Council,http://statistics.data.gov.uk/id/local-authority/00ML,Children`s & Education Serv,BVAEDU,Ed Special Ed,EKE,Premises Related,C,Cleaning n Domestic Supps,CH,25/06/2021,PAY01386854,PSEN,Pre School SEN,COUN,11.62,Revenue,Amazon Payments UK Ltd
Brighton & Hove City Council,http://statistics.data.gov.uk/id/local-authority/00ML,Highways and Transportation,BVAHRT,Highways and Roads - Mntnce,HRM,Supplies and Services,E,Print Stat & Gen Office Exps,ED,25/06/2021,PAY01386854,HIGH,Traffic Management,COUN,4.95,Revenue,Amazon Payments UK Ltd
Brighton & Hove City Council,http://statistics.data.gov.uk/id/local-authority/00ML,Housing General Fund,BVAHOG,Homelessness,HML,Third Party Payments,F,Other Establishments,FH,25/06/2021,PAY01386854,TAAS,Temp Accom and Allocations,COUN,19.96,Revenue,Amazon Payments UK Ltd
Brighton & Hove City Council,http://statistics.data.gov.uk/id/local-authority/00ML,Central Support and Overheads,BVACEN,Support Services (SSC),PPT,Indirect Employees,B,Training,BM,09/06/2021,PAY01381489,ORGD,Organisational Development,COUN,968,Revenue,Amber & Greene
Brighton & Hove City Council,http://statistics.data.gov.uk/id/local-authority/00ML,Children`s & Education Serv,BVAEDU,Ed EY Central,EAE,Indirect Employees,B,Training,BM,09/06/2021,PAY01381489,EYRS,Early Years,COUN,250,Revenue,Amber & Greene
Brighton & Hove City Council,http://statistics.data.gov.uk/id/local-authority/00ML,Central Support and Overheads,BVACEN,Support Services (SSC),PPT,Indirect Employees,B,Training,BM,11/06/2021,PAY01382406,ORGD,Organisational Development,COUN,250,Revenue,Amber & Greene
Brighton & Hove City Council,http://statistics.data.gov.uk/id/local-authority/00ML,Housing Revenue Account,BVAHOU,Hsing Management - HRA,HGM,Premises Related,C,Repair Maint n Alterations,CA,01/04/2021,PAY01362481,HPAI,Property & Investment,COUN,962.5,Revenue,Amenity & Horticultural Services Ltd
Brighton & Hove City Council,http://statistics.data.gov.uk/id/local-authority/00ML,Housing General Fund,BVAHOG,Homelessness,HML,Third Party Payments,F,Other Establishments,FH,14/04/2021,PAY01365772,TAAS,Temp Accom and Allocations,COUN,745,Revenue,Amherst Leisure Ltd
Brighton & Hove City Council,http://statistics.data.gov.uk/id/local-authority/00ML,Housing General Fund,BVAHOG,Homelessness,HML,Third Party Payments,F,Other Establishments,FH,21/04/2021,PAY01367625,TAAS,Temp Accom and Allocations,COUN,500,Revenue,Amherst Leisure Ltd
Brighton & Hove City Council,http://statistics.data.gov.uk/id/local-authority/00ML,Children`s & Education Serv,BVAEDU,Ed EY PVI,ENP,Supplies and Services,E,Grants n Subscriptions,EK,07/04/2021,PAY01364012,EYRS,Early Years,COUN,11684.66,Revenue,Amigos Pre-School Playgroup
Brighton & Hove City Council,http://statistics.data.gov.uk/id/local-authority/00ML,Children`s & Education Serv,BVAEDU,Ed EY PVI,ENP,Supplies and Services,E,Grants n Subscriptions,EK,09/04/2021,PAY01364702,EYRS,Early Years,COUN,2858.58,Revenue,Amigos Pre-School Playgroup
Brighton & Hove City Council,http://statistics.data.gov.uk/id/local-authority/00ML,Children`s & Education Serv,BVAEDU,Ed EY PVI,ENP,Supplies and Services,E,Grants n Subscriptions,EK,05/05/2021,PAY01371714,EYRS,Early Years,COUN,787.51,Revenue,Amigos Pre-School Playgroup
Brighton & Hove City Council,http://statistics.data.gov.uk/id/local-authority/00ML,Children`s & Education Serv,BVAEDU,Ed EY PVI,ENP,Supplies and Services,E,Grants n Subscriptions,EK,26/05/2021,PAY01376957,EYRS,Early Years,COUN,2008.13,Revenue,Amigos Pre-School Playgroup
Brighton & Hove City Council,http://statistics.data.gov.uk/id/local-authority/00ML,Children`s & Education Serv,BVAEDU,Ed EY Central,EAE,Third Party Payments,F,Other Establishments,FH,09/06/2021,PAY01381205,EYRS,Early Years,COUN,750,Revenue,Amigos Pre-School Playgroup
Brighton & Hove City Council,http://statistics.data.gov.uk/id/local-authority/00ML,Children`s & Education Serv,BVAEDU,Ed EY PVI,ENP,Supplies and Services,E,Grants n Subscriptions,EK,23/06/2021,PAY01384660,EYRS,Early Years,COUN,6250.05,Revenue,Amigos Pre-School Playgroup
Brighton & Hove City Council,http://statistics.data.gov.uk/id/local-authority/00ML,Children`s & Education Serv,BVAEDU,Ed EY PVI,ENP,Supplies and Services,E,Grants n Subscriptions,EK,25/06/2021,PAY01385650,EYRS,Early Years,COUN,783.9,Revenue,Amigos Pre-School Playgroup
Brighton & Hove City Council,http://statistics.data.gov.uk/id/local-authority/00ML,Planning and Development,BVAPLA,Economic Development,ECD,Supplies and Services,E,Miscellaneous Expenses,EM,14/04/2021,PAY01366020,SUAI,Sustainability & International,COUN,720,Revenue,Amillionmonkeys Ltd
Brighton & Hove City Council,http://statistics.data.gov.uk/id/local-authority/00ML,Cultural and Related Serv,BVACUL,Open Spaces,PEN,Supplies and Services,E,Equip't Furniture n Materials,EA,07/04/2021,PAY01363981,CIPK,City Parks,COUN,2691,Revenue,AMP Groundcare Machinery Services Ltd
Brighton & Hove City Council,http://statistics.data.gov.uk/id/local-authority/00ML,Cultural and Related Serv,BVACUL,Open Spaces,PEN,Supplies and Services,E,Equip't Furniture n Materials,EA,09/04/2021,PAY01364624,CIPK,City Parks,COUN,7822.66,Revenue,AMP Groundcare Machinery Services Ltd
Brighton & Hove City Council,http://statistics.data.gov.uk/id/local-authority/00ML,Cultural and Related Serv,BVACUL,Open Spaces,PEN,Supplies and Services,E,Equip't Furniture n Materials,EA,21/04/2021,PAY01367517,CIPK,City Parks,COUN,115.14,Revenue,AMP Groundcare Machinery Services Ltd
Brighton & Hove City Council,http://statistics.data.gov.uk/id/local-authority/00ML,Environment & Regulatory Serv,BVAERS,Management Services (DEC),MGT,Transport Related,D,Direct Transport Costs,DA,21/04/2021,PAY01367517,CICL,City Clean,COUN,791.8,Revenue,AMP Groundcare Machinery Services Ltd
Brighton & Hove City Council,http://statistics.data.gov.uk/id/local-authority/00ML,Environment & Regulatory Serv,BVAERS,Management Services (DEC),MGT,Supplies and Services,E,Equip't Furniture n Materials,EA,23/04/2021,PAY01368229,CICL,City Clean,COUN,795,Revenue,AMP Groundcare Machinery Services Ltd
Brighton & Hove City Council,http://statistics.data.gov.uk/id/local-authority/00ML,Environment & Regulatory Serv,BVAERS,Management Services (DEC),MGT,Transport Related,D,Direct Transport Costs,DA,23/04/2021,PAY01368229,CICL,City Clean,COUN,269.12,Revenue,AMP Groundcare Machinery Services Ltd
Brighton & Hove City Council,http://statistics.data.gov.uk/id/local-authority/00ML,Cultural and Related Serv,BVACUL,Open Spaces,PEN,Supplies and Services,E,Equip't Furniture n Materials,EA,19/05/2021,PAY01375225,CIPK,City Parks,COUN,1370,Revenue,AMP Groundcare Machinery Services Ltd
Brighton & Hove City Council,http://statistics.data.gov.uk/id/local-authority/00ML,Cultural and Related Serv,BVACUL,Open Spaces,PEN,Supplies and Services,E,Equip't Furniture n Materials,EA,21/05/2021,PAY01376027,CIPK,City Parks,COUN,3449,Revenue,AMP Groundcare Machinery Services Ltd
Brighton & Hove City Council,http://statistics.data.gov.uk/id/local-authority/00ML,Cultural and Related Serv,BVACUL,Open Spaces,PEN,Supplies and Services,E,Equip't Furniture n Materials,EA,26/05/2021,PAY01376916,CIPK,City Parks,COUN,725,Revenue,AMP Groundcare Machinery Services Ltd
Brighton & Hove City Council,http://statistics.data.gov.uk/id/local-authority/00ML,Environment & Regulatory Serv,BVAERS,Management Services (DEC),MGT,Transport Related,D,Direct Transport Costs,DA,28/05/2021,PAY01377757,CICL,City Clean,COUN,127.78,Revenue,AMP Groundcare Machinery Services Ltd
Brighton & Hove City Council,http://statistics.data.gov.uk/id/local-authority/00ML,Housing Revenue Account,BVAHOU,Hsing Management - HRA,HGM,Supplies and Services,E,Equip't Furniture n Materials,EA,28/05/2021,PAY01377757,HTEN,Tenancy Services,COUN,192.66,Revenue,AMP Groundcare Machinery Services Ltd
Brighton & Hove City Council,http://statistics.data.gov.uk/id/local-authority/00ML,Cultural and Related Serv,BVACUL,Open Spaces,PEN,Supplies and Services,E,Equip't Furniture n Materials,EA,02/06/2021,PAY01379295,CIPK,City Parks,COUN,255,Revenue,AMP Groundcare Machinery Services Ltd
Brighton & Hove City Council,http://statistics.data.gov.uk/id/local-authority/00ML,Cultural and Related Serv,BVACUL,Open Spaces,PEN,Supplies and Services,E,Equip't Furniture n Materials,EA,04/06/2021,PAY01380187,CIPK,City Parks,COUN,225,Revenue,AMP Groundcare Machinery Services Ltd
Brighton & Hove City Council,http://statistics.data.gov.uk/id/local-authority/00ML,Environment & Regulatory Serv,BVAERS,Management Services (DEC),MGT,Transport Related,D,Direct Transport Costs,DA,11/06/2021,PAY01381961,CICL,City Clean,COUN,301.54,Revenue,AMP Groundcare Machinery Services Ltd
Brighton & Hove City Council,http://statistics.data.gov.uk/id/local-authority/00ML,Environment & Regulatory Serv,BVAERS,Management Services (DEC),MGT,Transport Related,D,Direct Transport Costs,DA,23/06/2021,PAY01384617,CICL,City Clean,COUN,383.06,Revenue,AMP Groundcare Machinery Services Ltd
Brighton & Hove City Council,http://statistics.data.gov.uk/id/local-authority/00ML,Cultural and Related Serv,BVACUL,Open Spaces,PEN,Supplies and Services,E,Equip't Furniture n Materials,EA,30/06/2021,PAY01387181,CIPK,City Parks,COUN,679,Revenue,AMP Groundcare Machinery Services Ltd
Brighton & Hove City Council,http://statistics.data.gov.uk/id/local-authority/00ML,Central Support and Overheads,BVACEN,Support Services (SSC),PPT,Premises Related,C,Rents Payable,CC,23/06/2021,PAY01384865,SKEM,Skills and Employment,COUN,12500,Revenue,Amplicon Group Ltd
Brighton & Hove City Council,http://statistics.data.gov.uk/id/local-authority/00ML,Adult Social Care,BVASOC,ASC Substance Misuse,ADM,Third Party Payments,F,Other Establishments,FH,28/04/2021,PAY01369266,SUBM,Substance Misuse Support,COUN,724.25,Revenue,ANA Treatment Centres Ltd
Brighton & Hove City Council,http://statistics.data.gov.uk/id/local-authority/00ML,Adult Social Care,BVASOC,ASC Substance Misuse,ADM,Third Party Payments,F,Other Establishments,FH,30/04/2021,PAY01370266,SUBM,Substance Misuse Support,COUN,3207.39,Revenue,ANA Treatment Centres Ltd
Brighton & Hove City Council,http://statistics.data.gov.uk/id/local-authority/00ML,Adult Social Care,BVASOC,Info & Early Intervention,PRV,Third Party Payments,F,Other Establishments,FH,09/04/2021,PAY01364618,CONT,Contracts,COUN,44500,Revenue,Anchor Hanover Group
Brighton & Hove City Council,http://statistics.data.gov.uk/id/local-authority/00ML,Non I&E,BVANON,CAP Education Services,4ED,New Construction n Conversion,PB,New Construction n Conversion,PBL5,28/04/2021,PAY01369245,OEDS,Other Education Support,COUN,950,Capital,Anderson Acoustics Ltd
Brighton & Hove City Council,http://statistics.data.gov.uk/id/local-authority/00ML,Corporate Income & Expenditure,BVAOEX,Non Service Costs,NVC,Other Grants Reimbs n Conts,L,Contributions,LC,09/04/2021,PAY01365264,FINS,Financial Services,COUN,750,Revenue,Andrew Pridell Associates Ltd
Brighton & Hove City Council,http://statistics.data.gov.uk/id/local-authority/00ML,Adult Social Care,BVASOC,ASC Physical Support,PHY,Customer n Client Receipts,M,Fees n Charges,MB,14/04/2021,PAY01366142,PHYS,Physical Support,COUN,-424.3,Revenue,Angel Healthcare Limited
Brighton & Hove City Council,http://statistics.data.gov.uk/id/local-authority/00ML,Adult Social Care,BVASOC,ASC Physical Support,PHY,Third Party Payments,F,Other Establishments,FH,14/04/2021,PAY01366142,PHYS,Physical Support,COUN,3400,Revenue,Angel Healthcare Limited
Brighton & Hove City Council,http://statistics.data.gov.uk/id/local-authority/00ML,Adult Social Care,BVASOC,ASC Physical Support,PHY,Customer n Client Receipts,M,Fees n Charges,MB,04/06/2021,PAY01380830,PHYS,Physical Support,COUN,-851.2,Revenue,Angel Healthcare Limited
Brighton & Hove City Council,http://statistics.data.gov.uk/id/local-authority/00ML,Adult Social Care,BVASOC,ASC Physical Support,PHY,Third Party Payments,F,Other Establishments,FH,04/06/2021,PAY01380830,PHYS,Physical Support,COUN,19205.1,Revenue,Angel Healthcare Limited
Brighton & Hove City Council,http://statistics.data.gov.uk/id/local-authority/00ML,Environment & Regulatory Serv,BVAERS,Management Services (DEC),MGT,Supplies and Services,E,Equip't Furniture n Materials,EA,01/04/2021,PAY01363767,CICL,City Clean,COUN,312,Revenue,Anglers National Line Recycling Scheme
Brighton & Hove City Council,http://statistics.data.gov.uk/id/local-authority/00ML,Planning and Development,BVAPLA,Economic Development,ECD,Supplies and Services,E,Miscellaneous Expenses,EM,14/04/2021,PAY01366318,SUAI,Sustainability & International,COUN,4800,Revenue,Anthesis (UK) Ltd
Brighton & Hove City Council,http://statistics.data.gov.uk/id/local-authority/00ML,Children`s & Education Serv,BVAEDU,Ed Ed Other LA Attrib Sch,ELA,Transport Related,D,Public Transport,DD,02/06/2021,PAY01379769,SCOR,School Organisation,COUN,1334,Revenue,Anthony & Catherine Ltd
Brighton & Hove City Council,http://statistics.data.gov.uk/id/local-authority/00ML,Environment & Regulatory Serv,BVAERS,Street Cleansing,CLE,Third Party Payments,F,Private Contractors,FJ,11/06/2021,PAY01382086,CICL,City Clean,COUN,11484,Revenue,Anti-Graffiti Systems Limited
Brighton & Hove City Council,http://statistics.data.gov.uk/id/local-authority/00ML,Environment & Regulatory Serv,BVAERS,Street Cleansing,CLE,Third Party Payments,F,Private Contractors,FJ,30/06/2021,PAY01387257,CICL,City Clean,COUN,957.14,Revenue,Anti-Graffiti Systems Limited
Brighton & Hove City Council,http://statistics.data.gov.uk/id/local-authority/00ML,Housing General Fund,BVAHOG,Homelessness,HML,Supplies and Services,E,Services,EF,14/04/2021,PAY01365637,TAAS,Temp Accom and Allocations,COUN,57254.14,Revenue,Anya Hotels T/A The Brighton Hotel
Brighton & Hove City Council,http://statistics.data.gov.uk/id/local-authority/00ML,Housing General Fund,BVAHOG,Homelessness,HML,Supplies and Services,E,Services,EF,16/04/2021,PAY01366555,TAAS,Temp Accom and Allocations,COUN,6647.5,Revenue,Anya Hotels T/A The Brighton Hotel
Brighton & Hove City Council,http://statistics.data.gov.uk/id/local-authority/00ML,Housing General Fund,BVAHOG,Homelessness,HML,Supplies and Services,E,Services,EF,05/05/2021,PAY01371682,TAAS,Temp Accom and Allocations,COUN,18480,Revenue,Anya Hotels T/A The Brighton Hotel
Brighton & Hove City Council,http://statistics.data.gov.uk/id/local-authority/00ML,Housing General Fund,BVAHOG,Homelessness,HML,Supplies and Services,E,Services,EF,07/05/2021,PAY01372530,TAAS,Temp Accom and Allocations,COUN,33600,Revenue,Anya Hotels T/A The Brighton Hotel
Brighton & Hove City Council,http://statistics.data.gov.uk/id/local-authority/00ML,Housing General Fund,BVAHOG,Homelessness,HML,Supplies and Services,E,Services,EF,21/05/2021,PAY01376035,TAAS,Temp Accom and Allocations,COUN,16150,Revenue,Anya Hotels T/A The Brighton Hotel
Brighton & Hove City Council,http://statistics.data.gov.uk/id/local-authority/00ML,Housing General Fund,BVAHOG,Homelessness,HML,Supplies and Services,E,Services,EF,02/06/2021,PAY01379304,TAAS,Temp Accom and Allocations,COUN,39558.33,Revenue,Anya Hotels T/A The Brighton Hotel
Brighton & Hove City Council,http://statistics.data.gov.uk/id/local-authority/00ML,Housing General Fund,BVAHOG,Homelessness,HML,Supplies and Services,E,Services,EF,09/06/2021,PAY01381173,TAAS,Temp Accom and Allocations,COUN,6791.67,Revenue,Anya Hotels T/A The Brighton Hotel
Brighton & Hove City Council,http://statistics.data.gov.uk/id/local-authority/00ML,Housing General Fund,BVAHOG,Homelessness,HML,Supplies and Services,E,Services,EF,16/06/2021,PAY01382981,TAAS,Temp Accom and Allocations,COUN,16800,Revenue,Anya Hotels T/A The Brighton Hotel
Brighton & Hove City Council,http://statistics.data.gov.uk/id/local-authority/00ML,Children`s & Education Serv,BVAEDU,Child Srvcs - Othr LAC Svcs,FLX,Third Party Payments,F,Other Establishments,FH,28/04/2021,PAY01369589,AVFM,Agency Placements\VFM,COUN,10328,Revenue,Anytime Homes Ltd T/A Anytime Care 2020
Brighton & Hove City Council,http://statistics.data.gov.uk/id/local-authority/00ML,Children`s & Education Serv,BVAEDU,Child Srvcs - Othr LAC Svcs,FLX,Third Party Payments,F,Other Establishments,FH,26/05/2021,PAY01377281,AVFM,Agency Placements\VFM,COUN,7033.14,Revenue,Anytime Homes Ltd T/A Anytime Care 2020
Brighton & Hove City Council,http://statistics.data.gov.uk/id/local-authority/00ML,Children`s & Education Serv,BVAEDU,Child Srvcs - Othr LAC Svcs,FLX,Third Party Payments,F,Other Establishments,FH,23/06/2021,PAY01385009,AVFM,Agency Placements\VFM,COUN,12153.14,Revenue,Anytime Homes Ltd T/A Anytime Care 2020
Brighton & Hove City Council,http://statistics.data.gov.uk/id/local-authority/00ML,Central Support and Overheads,BVACEN,Support Services (SSC),PPT,Supplies and Services,E,Services,EF,28/04/2021,PAY01369408,PROP,Property and Design,COUN,82025.44,Revenue,AP Security (APS) Ltd
Brighton & Hove City Council,http://statistics.data.gov.uk/id/local-authority/00ML,Highways and Transportation,BVAHRT,Parking Services,PRK,Supplies and Services,E,Services,EF,30/04/2021,PAY01370596,PARK,Parking Services,COUN,4756.74,Revenue,AP Security (APS) Ltd
Brighton & Hove City Council,http://statistics.data.gov.uk/id/local-authority/00ML,Central Support and Overheads,BVACEN,Support Services (SSC),PPT,Supplies and Services,E,Services,EF,05/05/2021,PAY01371888,PROP,Property and Design,COUN,25248.09,Revenue,AP Security (APS) Ltd
Brighton & Hove City Council,http://statistics.data.gov.uk/id/local-authority/00ML,Central Support and Overheads,BVACEN,Support Services (SSC),PPT,Supplies and Services,E,Services,EF,21/05/2021,PAY01376268,PROP,Property and Design,COUN,160129.5,Revenue,AP Security (APS) Ltd
Brighton & Hove City Council,http://statistics.data.gov.uk/id/local-authority/00ML,Central Support and Overheads,BVACEN,Support Services (SSC),PPT,Premises Related,C,Repair Maint n Alterations,CA,28/05/2021,PAY01378251,PROP,Property and Design,COUN,122.5,Revenue,AP Security (APS) Ltd
Brighton & Hove City Council,http://statistics.data.gov.uk/id/local-authority/00ML,Library Services,BVACUL,Library Service,LBR,Supplies and Services,E,Services,EF,28/05/2021,PAY01378251,LIBS,Libraries,COUN,867.16,Revenue,AP Security (APS) Ltd
Brighton & Hove City Council,http://statistics.data.gov.uk/id/local-authority/00ML,Central Services to the Public,BVACEN,Elections,ELE,Supplies and Services,E,Services,EF,18/06/2021,PAY01383964,ELEC,Elections,COUN,29853,Revenue,AP Security (APS) Ltd
Brighton & Hove City Council,http://statistics.data.gov.uk/id/local-authority/00ML,Central Services to the Public,BVACEN,Elections,ELE,Supplies and Services,E,Services,EF,25/06/2021,PAY01386144,ELEC,Elections,COUN,7074.08,Revenue,AP Security (APS) Ltd
Brighton & Hove City Council,http://statistics.data.gov.uk/id/local-authority/00ML,Central Support and Overheads,BVACEN,Support Services (SSC),PPT,Premises Related,C,Repair Maint n Alterations,CA,25/06/2021,PAY01386144,PROP,Property and Design,COUN,122.5,Revenue,AP Security (APS) Ltd
Brighton & Hove City Council,http://statistics.data.gov.uk/id/local-authority/00ML,Highways and Transportation,BVAHRT,Parking Services,PRK,Supplies and Services,E,Services,EF,25/06/2021,PAY01386144,PARK,Parking Services,COUN,3,Revenue,AP Security (APS) Ltd
Brighton & Hove City Council,http://statistics.data.gov.uk/id/local-authority/00ML,Central Support and Overheads,BVACEN,Support Services (SSC),PPT,Supplies and Services,E,Services,EF,30/06/2021,PAY01387392,PROP,Property and Design,COUN,19752.49,Revenue,AP Security (APS) Ltd
Brighton & Hove City Council,http://statistics.data.gov.uk/id/local-authority/00ML,Central Support and Overheads,BVACEN,Trading Services,TRD,Supplies and Services,E,Services,EF,30/06/2021,PAY01387392,PROP,Property and Design,COUN,160,Revenue,AP Security (APS) Ltd
Brighton & Hove City Council,http://statistics.data.gov.uk/id/local-authority/00ML,Corporate Income & Expenditure,BVAOEX,Non Service Costs,NVC,Premises Related,C,Departmental Administration,CHA,30/06/2021,PAY01387392,FINS,Financial Services,COUN,80,Revenue,AP Security (APS) Ltd
Brighton & Hove City Council,http://statistics.data.gov.uk/id/local-authority/00ML,Cultural and Related Serv,BVACUL,Recreation and Sport,REC,Supplies and Services,E,Services,EF,30/06/2021,PAY01387392,SPLE,Sport and Leisure,COUN,80,Revenue,AP Security (APS) Ltd
Brighton & Hove City Council,http://statistics.data.gov.uk/id/local-authority/00ML,Environment & Regulatory Serv,BVAERS,Agricultural and Fisheries,AGF,Supplies and Services,E,Services,EF,30/06/2021,PAY01387392,PROP,Property and Design,COUN,80,Revenue,AP Security (APS) Ltd
Brighton & Hove City Council,http://statistics.data.gov.uk/id/local-authority/00ML,Non I&E,BVANON,Cap - Housing Services - HRA,4HR,New Construction n Conversion,PB,New Construction n Conversion,PBL5,30/06/2021,PAY01387392,HREG,Head of Regeneration,COUN,80,Capital,AP Security (APS) Ltd
Brighton & Hove City Council,http://statistics.data.gov.uk/id/local-authority/00ML,Adult Social Care,BVASOC,ASC Learning Disabilities,ALD,Third Party Payments,F,Other Establishments,FH,07/04/2021,PAY01363954,LDIS,Adults LD Community Care,COUN,198.87,Revenue,Apex Prime Care Ltd
Brighton & Hove City Council,http://statistics.data.gov.uk/id/local-authority/00ML,Adult Social Care,BVASOC,ASC Memory Cognition Support,MEM,Third Party Payments,F,Other Establishments,FH,07/04/2021,PAY01363954,COGN,Memory Cognition Support,COUN,330.47,Revenue,Apex Prime Care Ltd
Brighton & Hove City Council,http://statistics.data.gov.uk/id/local-authority/00ML,Adult Social Care,BVASOC,ASC Mental Health Support,MHP,Third Party Payments,F,Other Establishments,FH,07/04/2021,PAY01363954,MENH,Mental Health Support,COUN,922.73,Revenue,Apex Prime Care Ltd
Brighton & Hove City Council,http://statistics.data.gov.uk/id/local-authority/00ML,Adult Social Care,BVASOC,ASC Physical Support,PHY,Third Party Payments,F,Other Establishments,FH,07/04/2021,PAY01363954,PHYS,Physical Support,COUN,13046.34,Revenue,Apex Prime Care Ltd
Brighton & Hove City Council,http://statistics.data.gov.uk/id/local-authority/00ML,Adult Social Care,BVASOC,ASC Learning Disabilities,ALD,Third Party Payments,F,Other Establishments,FH,14/04/2021,PAY01365557,LDIS,Adults LD Community Care,COUN,200.4,Revenue,Apex Prime Care Ltd
Brighton & Hove City Council,http://statistics.data.gov.uk/id/local-authority/00ML,Adult Social Care,BVASOC,ASC Memory Cognition Support,MEM,Third Party Payments,F,Other Establishments,FH,14/04/2021,PAY01365557,COGN,Memory Cognition Support,COUN,312.87,Revenue,Apex Prime Care Ltd
Brighton & Hove City Council,http://statistics.data.gov.uk/id/local-authority/00ML,Adult Social Care,BVASOC,ASC Mental Health Support,MHP,Third Party Payments,F,Other Establishments,FH,14/04/2021,PAY01365557,MENH,Mental Health Support,COUN,802.95,Revenue,Apex Prime Care Ltd
Brighton & Hove City Council,http://statistics.data.gov.uk/id/local-authority/00ML,Adult Social Care,BVASOC,ASC Physical Support,PHY,Third Party Payments,F,Other Establishments,FH,14/04/2021,PAY01365557,PHYS,Physical Support,COUN,12779.17,Revenue,Apex Prime Care Ltd
Brighton & Hove City Council,http://statistics.data.gov.uk/id/local-authority/00ML,Adult Social Care,BVASOC,ASC Learning Disabilities,ALD,Third Party Payments,F,Other Establishments,FH,21/04/2021,PAY01367476,LDIS,Adults LD Community Care,COUN,189.27,Revenue,Apex Prime Care Ltd
Brighton & Hove City Council,http://statistics.data.gov.uk/id/local-authority/00ML,Adult Social Care,BVASOC,ASC Memory Cognition Support,MEM,Third Party Payments,F,Other Establishments,FH,21/04/2021,PAY01367476,COGN,Memory Cognition Support,COUN,284.8,Revenue,Apex Prime Care Ltd
Brighton & Hove City Council,http://statistics.data.gov.uk/id/local-authority/00ML,Adult Social Care,BVASOC,ASC Mental Health Support,MHP,Third Party Payments,F,Other Establishments,FH,21/04/2021,PAY01367476,MENH,Mental Health Support,COUN,890.67,Revenue,Apex Prime Care Ltd
Brighton & Hove City Council,http://statistics.data.gov.uk/id/local-authority/00ML,Adult Social Care,BVASOC,ASC Physical Support,PHY,Third Party Payments,F,Other Establishments,FH,21/04/2021,PAY01367476,PHYS,Physical Support,COUN,13123.54,Revenue,Apex Prime Care Ltd
Brighton & Hove City Council,http://statistics.data.gov.uk/id/local-authority/00ML,Adult Social Care,BVASOC,ASC Learning Disabilities,ALD,Third Party Payments,F,Other Establishments,FH,28/04/2021,PAY01369106,LDIS,Adults LD Community Care,COUN,181.15,Revenue,Apex Prime Care Ltd
Brighton & Hove City Council,http://statistics.data.gov.uk/id/local-authority/00ML,Adult Social Care,BVASOC,ASC Memory Cognition Support,MEM,Third Party Payments,F,Other Establishments,FH,28/04/2021,PAY01369106,COGN,Memory Cognition Support,COUN,306.02,Revenue,Apex Prime Care Ltd
Brighton & Hove City Council,http://statistics.data.gov.uk/id/local-authority/00ML,Adult Social Care,BVASOC,ASC Mental Health Support,MHP,Third Party Payments,F,Other Establishments,FH,28/04/2021,PAY01369106,MENH,Mental Health Support,COUN,817.28,Revenue,Apex Prime Care Ltd
Brighton & Hove City Council,http://statistics.data.gov.uk/id/local-authority/00ML,Adult Social Care,BVASOC,ASC Physical Support,PHY,Third Party Payments,F,Other Establishments,FH,28/04/2021,PAY01369106,PHYS,Physical Support,COUN,13202.85,Revenue,Apex Prime Care Ltd
Brighton & Hove City Council,http://statistics.data.gov.uk/id/local-authority/00ML,Adult Social Care,BVASOC,ASC Learning Disabilities,ALD,Third Party Payments,F,Other Establishments,FH,05/05/2021,PAY01371638,LDIS,Adults LD Community Care,COUN,195.2,Revenue,Apex Prime Care Ltd
Brighton & Hove City Council,http://statistics.data.gov.uk/id/local-authority/00ML,Adult Social Care,BVASOC,ASC Memory Cognition Support,MEM,Third Party Payments,F,Other Establishments,FH,05/05/2021,PAY01371638,COGN,Memory Cognition Support,COUN,419.68,Revenue,Apex Prime Care Ltd
Brighton & Hove City Council,http://statistics.data.gov.uk/id/local-authority/00ML,Adult Social Care,BVASOC,ASC Mental Health Support,MHP,Third Party Payments,F,Other Establishments,FH,05/05/2021,PAY01371638,MENH,Mental Health Support,COUN,1125.64,Revenue,Apex Prime Care Ltd
Brighton & Hove City Council,http://statistics.data.gov.uk/id/local-authority/00ML,Adult Social Care,BVASOC,ASC Physical Support,PHY,Third Party Payments,F,Other Establishments,FH,05/05/2021,PAY01371638,PHYS,Physical Support,COUN,13605.61,Revenue,Apex Prime Care Ltd
Brighton & Hove City Council,http://statistics.data.gov.uk/id/local-authority/00ML,Adult Social Care,BVASOC,ASC Physical Support,PHY,Third Party Payments,F,Other Establishments,FH,12/05/2021,PAY01373468,PHYS,Physical Support,COUN,987.18,Revenue,Apex Prime Care Ltd
Brighton & Hove City Council,http://statistics.data.gov.uk/id/local-authority/00ML,Adult Social Care,BVASOC,ASC Learning Disabilities,ALD,Third Party Payments,F,Other Establishments,FH,19/05/2021,PAY01375188,LDIS,Adults LD Community Care,COUN,193.95,Revenue,Apex Prime Care Ltd
Brighton & Hove City Council,http://statistics.data.gov.uk/id/local-authority/00ML,Adult Social Care,BVASOC,ASC Memory Cognition Support,MEM,Third Party Payments,F,Other Establishments,FH,19/05/2021,PAY01375188,COGN,Memory Cognition Support,COUN,388.13,Revenue,Apex Prime Care Ltd
Brighton & Hove City Council,http://statistics.data.gov.uk/id/local-authority/00ML,Adult Social Care,BVASOC,ASC Mental Health Support,MHP,Third Party Payments,F,Other Establishments,FH,19/05/2021,PAY01375188,MENH,Mental Health Support,COUN,973.41,Revenue,Apex Prime Care Ltd
Brighton & Hove City Council,http://statistics.data.gov.uk/id/local-authority/00ML,Adult Social Care,BVASOC,ASC Physical Support,PHY,Third Party Payments,F,Other Establishments,FH,19/05/2021,PAY01375188,PHYS,Physical Support,COUN,13728.88,Revenue,Apex Prime Care Ltd
Brighton & Hove City Council,http://statistics.data.gov.uk/id/local-authority/00ML,Adult Social Care,BVASOC,ASC Learning Disabilities,ALD,Third Party Payments,F,Other Establishments,FH,26/05/2021,PAY01376879,LDIS,Adults LD Community Care,COUN,189.27,Revenue,Apex Prime Care Ltd
Brighton & Hove City Council,http://statistics.data.gov.uk/id/local-authority/00ML,Adult Social Care,BVASOC,ASC Memory Cognition Support,MEM,Third Party Payments,F,Other Establishments,FH,26/05/2021,PAY01376879,COGN,Memory Cognition Support,COUN,562.43,Revenue,Apex Prime Care Ltd
Brighton & Hove City Council,http://statistics.data.gov.uk/id/local-authority/00ML,Adult Social Care,BVASOC,ASC Mental Health Support,MHP,Third Party Payments,F,Other Establishments,FH,26/05/2021,PAY01376879,MENH,Mental Health Support,COUN,939.43,Revenue,Apex Prime Care Ltd
Brighton & Hove City Council,http://statistics.data.gov.uk/id/local-authority/00ML,Adult Social Care,BVASOC,ASC Physical Support,PHY,Third Party Payments,F,Other Establishments,FH,26/05/2021,PAY01376879,PHYS,Physical Support,COUN,14464.62,Revenue,Apex Prime Care Ltd
Brighton & Hove City Council,http://statistics.data.gov.uk/id/local-authority/00ML,Adult Social Care,BVASOC,ASC Learning Disabilities,ALD,Third Party Payments,F,Other Establishments,FH,02/06/2021,PAY01379253,LDIS,Adults LD Community Care,COUN,196.44,Revenue,Apex Prime Care Ltd
Brighton & Hove City Council,http://statistics.data.gov.uk/id/local-authority/00ML,Adult Social Care,BVASOC,ASC Memory Cognition Support,MEM,Third Party Payments,F,Other Establishments,FH,02/06/2021,PAY01379253,COGN,Memory Cognition Support,COUN,405.01,Revenue,Apex Prime Care Ltd
Brighton & Hove City Council,http://statistics.data.gov.uk/id/local-authority/00ML,Adult Social Care,BVASOC,ASC Mental Health Support,MHP,Third Party Payments,F,Other Establishments,FH,02/06/2021,PAY01379253,MENH,Mental Health Support,COUN,904.7,Revenue,Apex Prime Care Ltd
Brighton & Hove City Council,http://statistics.data.gov.uk/id/local-authority/00ML,Adult Social Care,BVASOC,ASC Physical Support,PHY,Third Party Payments,F,Other Establishments,FH,02/06/2021,PAY01379253,PHYS,Physical Support,COUN,14259.73,Revenue,Apex Prime Care Ltd
Brighton & Hove City Council,http://statistics.data.gov.uk/id/local-authority/00ML,Adult Social Care,BVASOC,ASC Learning Disabilities,ALD,Third Party Payments,F,Other Establishments,FH,09/06/2021,PAY01381114,LDIS,Adults LD Community Care,COUN,381.97,Revenue,Apex Prime Care Ltd
Brighton & Hove City Council,http://statistics.data.gov.uk/id/local-authority/00ML,Adult Social Care,BVASOC,ASC Memory Cognition Support,MEM,Third Party Payments,F,Other Establishments,FH,09/06/2021,PAY01381114,COGN,Memory Cognition Support,COUN,767.87,Revenue,Apex Prime Care Ltd
Brighton & Hove City Council,http://statistics.data.gov.uk/id/local-authority/00ML,Adult Social Care,BVASOC,ASC Mental Health Support,MHP,Third Party Payments,F,Other Establishments,FH,09/06/2021,PAY01381114,MENH,Mental Health Support,COUN,1912.48,Revenue,Apex Prime Care Ltd
Brighton & Hove City Council,http://statistics.data.gov.uk/id/local-authority/00ML,Adult Social Care,BVASOC,ASC Physical Support,PHY,Third Party Payments,F,Other Establishments,FH,09/06/2021,PAY01381114,PHYS,Physical Support,COUN,28046.39,Revenue,Apex Prime Care Ltd
Brighton & Hove City Council,http://statistics.data.gov.uk/id/local-authority/00ML,Adult Social Care,BVASOC,ASC Learning Disabilities,ALD,Third Party Payments,F,Other Establishments,FH,23/06/2021,PAY01384577,LDIS,Adults LD Community Care,COUN,200.88,Revenue,Apex Prime Care Ltd
Brighton & Hove City Council,http://statistics.data.gov.uk/id/local-authority/00ML,Adult Social Care,BVASOC,ASC Memory Cognition Support,MEM,Third Party Payments,F,Other Establishments,FH,23/06/2021,PAY01384577,COGN,Memory Cognition Support,COUN,390.28,Revenue,Apex Prime Care Ltd
Brighton & Hove City Council,http://statistics.data.gov.uk/id/local-authority/00ML,Adult Social Care,BVASOC,ASC Mental Health Support,MHP,Third Party Payments,F,Other Establishments,FH,23/06/2021,PAY01384577,MENH,Mental Health Support,COUN,940.29,Revenue,Apex Prime Care Ltd
Brighton & Hove City Council,http://statistics.data.gov.uk/id/local-authority/00ML,Adult Social Care,BVASOC,ASC Physical Support,PHY,Third Party Payments,F,Other Establishments,FH,23/06/2021,PAY01384577,PHYS,Physical Support,COUN,14802.05,Revenue,Apex Prime Care Ltd
Brighton & Hove City Council,http://statistics.data.gov.uk/id/local-authority/00ML,Adult Social Care,BVASOC,ASC Learning Disabilities,ALD,Third Party Payments,F,Other Establishments,FH,30/06/2021,PAY01387150,LDIS,Adults LD Community Care,COUN,373.51,Revenue,Apex Prime Care Ltd
Brighton & Hove City Council,http://statistics.data.gov.uk/id/local-authority/00ML,Adult Social Care,BVASOC,ASC Memory Cognition Support,MEM,Third Party Payments,F,Other Establishments,FH,30/06/2021,PAY01387150,COGN,Memory Cognition Support,COUN,932.81,Revenue,Apex Prime Care Ltd
Brighton & Hove City Council,http://statistics.data.gov.uk/id/local-authority/00ML,Adult Social Care,BVASOC,ASC Mental Health Support,MHP,Third Party Payments,F,Other Establishments,FH,30/06/2021,PAY01387150,MENH,Mental Health Support,COUN,1699.24,Revenue,Apex Prime Care Ltd
Brighton & Hove City Council,http://statistics.data.gov.uk/id/local-authority/00ML,Adult Social Care,BVASOC,ASC Physical Support,PHY,Third Party Payments,F,Other Establishments,FH,30/06/2021,PAY01387150,PHYS,Physical Support,COUN,29141.88,Revenue,Apex Prime Care Ltd
Brighton & Hove City Council,http://statistics.data.gov.uk/id/local-authority/00ML,Housing General Fund,BVAHOG,Homelessness,HML,Premises Related,C,Rents Payable,CC,14/04/2021,PAY01365783,TAAS,Temp Accom and Allocations,COUN,1400,Revenue,Applegate Properties Ltd
Brighton & Hove City Council,http://statistics.data.gov.uk/id/local-authority/00ML,Housing General Fund,BVAHOG,Homelessness,HML,Premises Related,C,Rents Payable,CC,14/05/2021,PAY01374379,TAAS,Temp Accom and Allocations,COUN,1400,Revenue,Applegate Properties Ltd
Brighton & Hove City Council,http://statistics.data.gov.uk/id/local-authority/00ML,Housing General Fund,BVAHOG,Homelessness,HML,Premises Related,C,Rents Payable,CC,11/06/2021,PAY01382121,TAAS,Temp Accom and Allocations,COUN,1400,Revenue,Applegate Properties Ltd
Brighton & Hove City Council,http://statistics.data.gov.uk/id/local-authority/00ML,Central Support and Overheads,BVACEN,Support Services (SSC),PPT,Supplies and Services,E,Equip't Furniture n Materials,EA,14/04/2021,PAY01366109,SKEM,Skills and Employment,COUN,265,Revenue,Application Tape Company Ltd
Brighton & Hove City Council,http://statistics.data.gov.uk/id/local-authority/00ML,Highways and Transportation,BVAHRT,Parking Services,PRK,Supplies and Services,E,Equip't Furniture n Materials,EA,01/04/2021,PAY01362832,PARK,Parking Services,COUN,400.8,Revenue,APS Aegis Limited
Brighton & Hove City Council,http://statistics.data.gov.uk/id/local-authority/00ML,Highways and Transportation,BVAHRT,Parking Services,PRK,Supplies and Services,E,Equip't Furniture n Materials,EA,07/04/2021,PAY01364133,PARK,Parking Services,COUN,5485.88,Revenue,APS Aegis Limited
Brighton & Hove City Council,http://statistics.data.gov.uk/id/local-authority/00ML,Highways and Transportation,BVAHRT,Parking Services,PRK,Premises Related,C,Repair Maint n Alterations,CA,09/04/2021,PAY01364841,PARK,Parking Services,COUN,24826.5,Revenue,APS Aegis Limited
Brighton & Hove City Council,http://statistics.data.gov.uk/id/local-authority/00ML,Highways and Transportation,BVAHRT,Parking Services,PRK,Supplies and Services,E,Equip't Furniture n Materials,EA,21/04/2021,PAY01367687,PARK,Parking Services,COUN,1461.24,Revenue,APS Aegis Limited
Brighton & Hove City Council,http://statistics.data.gov.uk/id/local-authority/00ML,Highways and Transportation,BVAHRT,Parking Services,PRK,Supplies and Services,E,Equip't Furniture n Materials,EA,28/04/2021,PAY01369350,PARK,Parking Services,COUN,2220.56,Revenue,APS Aegis Limited
Brighton & Hove City Council,http://statistics.data.gov.uk/id/local-authority/00ML,Highways and Transportation,BVAHRT,Parking Services,PRK,Supplies and Services,E,Equip't Furniture n Materials,EA,09/06/2021,PAY01381341,PARK,Parking Services,COUN,687.2,Revenue,APS Aegis Limited
Brighton & Hove City Council,http://statistics.data.gov.uk/id/local-authority/00ML,Highways and Transportation,BVAHRT,Parking Services,PRK,Supplies and Services,E,Equip't Furniture n Materials,EA,25/06/2021,PAY01385981,PARK,Parking Services,COUN,3283,Revenue,APS Aegis Limited
Brighton & Hove City Council,http://statistics.data.gov.uk/id/local-authority/00ML,Highways and Transportation,BVAHRT,Parking Services,PRK,Supplies and Services,E,Equip't Furniture n Materials,EA,28/04/2021,PAY01369132,PARK,Parking Services,COUN,17286.93,Revenue,APT Skidata Ltd
Brighton & Hove City Council,http://statistics.data.gov.uk/id/local-authority/00ML,Highways and Transportation,BVAHRT,Parking Services,PRK,Supplies and Services,E,Equip't Furniture n Materials,EA,04/06/2021,PAY01380174,PARK,Parking Services,COUN,463,Revenue,APT Skidata Ltd
Brighton & Hove City Council,http://statistics.data.gov.uk/id/local-authority/00ML,Highways and Transportation,BVAHRT,Parking Services,PRK,Supplies and Services,E,Equip't Furniture n Materials,EA,09/06/2021,PAY01381134,PARK,Parking Services,COUN,425,Revenue,APT Skidata Ltd
Brighton & Hove City Council,http://statistics.data.gov.uk/id/local-authority/00ML,Central Services to the Public,BVACEN,Reg - Birth Death and Marriage,RBD,Supplies and Services,E,Miscellaneous Expenses,EM,04/06/2021,PAY01380134,REGI,Registrars,COUN,257.4,Revenue,AquAid South Coast Franchising Limited
Brighton & Hove City Council,http://statistics.data.gov.uk/id/local-authority/00ML,Housing Revenue Account,BVAHOU,Hsing Management - HRA,HGM,Supplies and Services,E,Equip't Furniture n Materials,EA,21/04/2021,PAY01367784,HPAI,Property & Investment,COUN,310.8,Revenue,Aquam Water Services
Brighton & Hove City Council,http://statistics.data.gov.uk/id/local-authority/00ML,Housing Revenue Account,BVAHOU,Hsing Management - HRA,HGM,Supplies and Services,E,Equip't Furniture n Materials,EA,26/05/2021,PAY01377188,HPAI,Property & Investment,COUN,313.91,Revenue,Aquam Water Services
Brighton & Hove City Council,http://statistics.data.gov.uk/id/local-authority/00ML,Housing Revenue Account,BVAHOU,Hsing Management - HRA,HGM,Supplies and Services,E,Equip't Furniture n Materials,EA,23/06/2021,PAY01384908,HPAI,Property & Investment,COUN,285.5,Revenue,Aquam Water Services
Brighton & Hove City Council,http://statistics.data.gov.uk/id/local-authority/00ML,Environment & Regulatory Serv,BVAERS,Street Cleansing,CLE,Third Party Payments,F,Private Contractors,FJ,28/04/2021,PAY01369160,CICL,City Clean,COUN,3169.8,Revenue,Aquarius Solutions
Brighton & Hove City Council,http://statistics.data.gov.uk/id/local-authority/00ML,Environment & Regulatory Serv,BVAERS,Street Cleansing,CLE,Supplies and Services,E,Equip't Furniture n Materials,EA,16/06/2021,PAY01382970,CICL,City Clean,COUN,442.8,Revenue,Aquarius Solutions
Brighton & Hove City Council,http://statistics.data.gov.uk/id/local-authority/00ML,Environment & Regulatory Serv,BVAERS,Street Cleansing,CLE,Supplies and Services,E,Equip't Furniture n Materials,EA,23/06/2021,PAY01384619,CICL,City Clean,COUN,342,Revenue,Aquarius Solutions
Brighton & Hove City Council,http://statistics.data.gov.uk/id/local-authority/00ML,Public Health,BVAPHE,Public Health,PHE,Supplies and Services,E,Services,EF,21/04/2021,PAY01367818,PHCM,PH Commissioning,COUN,7452,Revenue,ARCH Health CIC
Brighton & Hove City Council,http://statistics.data.gov.uk/id/local-authority/00ML,Public Health,BVAPHE,Public Health,PHE,Third Party Payments,F,Other Establishments,FH,28/04/2021,PAY01369525,PHCM,PH Commissioning,COUN,1855.75,Revenue,ARCH Health CIC
Brighton & Hove City Council,http://statistics.data.gov.uk/id/local-authority/00ML,Planning and Development,BVAPLA,Planning Policy,PLP,Supplies and Services,E,Services,EF,23/04/2021,PAY01368871,DEVP,Development Planning,COUN,1300,Revenue,Architectural Aerodynamics
Brighton & Hove City Council,http://statistics.data.gov.uk/id/local-authority/00ML,Adult Social Care,BVASOC,ASC Memory Cognition Support,MEM,Customer n Client Receipts,M,Fees n Charges,MB,04/06/2021,PAY01380129,COGN,Memory Cognition Support,COUN,9594.67,Revenue,Archmore Care Services Ltd T/A Birchwood Grove NH
Brighton & Hove City Council,http://statistics.data.gov.uk/id/local-authority/00ML,Adult Social Care,BVASOC,ASC Memory Cognition Support,MEM,Third Party Payments,F,Other Establishments,FH,04/06/2021,PAY01380129,COGN,Memory Cognition Support,COUN,-22489.52,Revenue,Archmore Care Services Ltd T/A Birchwood Grove NH
Brighton & Hove City Council,http://statistics.data.gov.uk/id/local-authority/00ML,Adult Social Care,BVASOC,ASC Physical Support,PHY,Third Party Payments,F,Other Establishments,FH,04/06/2021,PAY01380129,PHYS,Physical Support,COUN,14874.96,Revenue,Archmore Care Services Ltd T/A Birchwood Grove NH
Brighton & Hove City Council,http://statistics.data.gov.uk/id/local-authority/00ML,Public Health,BVAPHE,Public Health,PHE,Third Party Payments,F,Other Establishments,FH,28/04/2021,PAY01369125,PHCM,PH Commissioning,COUN,7719.26,Revenue,Ardingly Court Surgery
Brighton & Hove City Council,http://statistics.data.gov.uk/id/local-authority/00ML,Children`s & Education Serv,BVAEDU,Child Srvcs - Fostering,FLF,Third Party Payments,F,Other Establishments,FH,01/04/2021,PAY01362470,CHIC,Fostering and Adoption,COUN,14.36,Revenue,Argos Business Solutions Ltd
Brighton & Hove City Council,http://statistics.data.gov.uk/id/local-authority/00ML,Children`s & Education Serv,BVAEDU,Child Srvcs - Other Fam Supp,FFX,Transfer Payments,G,Other Transfer Payments,GD,01/04/2021,PAY01362470,FAMP,Families\Prevention,COUN,40.09,Revenue,Argos Business Solutions Ltd
Brighton & Hove City Council,http://statistics.data.gov.uk/id/local-authority/00ML,Housing General Fund,BVAHOG,Hsing Benefits,HGB,Transfer Payments,G,Other Transfer Payments,GD,01/04/2021,PAY01362470,REVS,Revenues and Benefits,COUN,389.2,Revenue,Argos Business Solutions Ltd
Brighton & Hove City Council,http://statistics.data.gov.uk/id/local-authority/00ML,Housing General Fund,BVAHOG,Hsing Benefits,HGB,Transfer Payments,G,Other Transfer Payments,GD,09/04/2021,PAY01364617,REVS,Revenues and Benefits,COUN,893.85,Revenue,Argos Business Solutions Ltd
Brighton & Hove City Council,http://statistics.data.gov.uk/id/local-authority/00ML,Housing Revenue Account,BVAHOU,Hsing Management - HRA,HGM,Supplies and Services,E,Miscellaneous Expenses,EM,09/04/2021,PAY01364617,HTEN,Tenancy Services,COUN,246.56,Revenue,Argos Business Solutions Ltd
Brighton & Hove City Council,http://statistics.data.gov.uk/id/local-authority/00ML,Housing General Fund,BVAHOG,Hsing Benefits,HGB,Transfer Payments,G,Other Transfer Payments,GD,14/04/2021,PAY01365616,REVS,Revenues and Benefits,COUN,102.79,Revenue,Argos Business Solutions Ltd
Brighton & Hove City Council,http://statistics.data.gov.uk/id/local-authority/00ML,Non I&E,BVANON,CAP Social Services,4RV,Plant Machinery n Equipment,PE2,Plant Machinery n Equipment,PE2L5,14/04/2021,PAY01365616,ASIT,Assessment and SIT,COUN,181.11,Capital,Argos Business Solutions Ltd
Brighton & Hove City Council,http://statistics.data.gov.uk/id/local-authority/00ML,Housing General Fund,BVAHOG,Hsing Benefits,HGB,Transfer Payments,G,Other Transfer Payments,GD,21/04/2021,PAY01367509,REVS,Revenues and Benefits,COUN,818.62,Revenue,Argos Business Solutions Ltd
Brighton & Hove City Council,http://statistics.data.gov.uk/id/local-authority/00ML,Children`s & Education Serv,BVAEDU,Child Srvcs - Other Fam Supp,FFX,Transfer Payments,G,Other Transfer Payments,GD,23/04/2021,PAY01368225,FAMP,Families\Prevention,COUN,51.28,Revenue,Argos Business Solutions Ltd
Brighton & Hove City Council,http://statistics.data.gov.uk/id/local-authority/00ML,Housing General Fund,BVAHOG,Hsing Benefits,HGB,Transfer Payments,G,Other Transfer Payments,GD,23/04/2021,PAY01368225,REVS,Revenues and Benefits,COUN,346.06,Revenue,Argos Business Solutions Ltd
Brighton & Hove City Council,http://statistics.data.gov.uk/id/local-authority/00ML,Housing General Fund,BVAHOG,Hsing Benefits,HGB,Transfer Payments,G,Other Transfer Payments,GD,28/04/2021,PAY01369148,REVS,Revenues and Benefits,COUN,1310.37,Revenue,Argos Business Solutions Ltd
Brighton & Hove City Council,http://statistics.data.gov.uk/id/local-authority/00ML,Housing Revenue Account,BVAHOU,Hsing Management - HRA,HGM,Supplies and Services,E,Miscellaneous Expenses,EM,28/04/2021,PAY01369148,HTEN,Tenancy Services,COUN,181.79,Revenue,Argos Business Solutions Ltd
Brighton & Hove City Council,http://statistics.data.gov.uk/id/local-authority/00ML,Housing Revenue Account,BVAHOU,Hsing Management - HRA,HGM,Supplies and Services,E,Print Stat & Gen Office Exps,ED,28/04/2021,PAY01369148,HIII,Income Involvement Improvement,COUN,64.16,Revenue,Argos Business Solutions Ltd
Brighton & Hove City Council,http://statistics.data.gov.uk/id/local-authority/00ML,Housing General Fund,BVAHOG,Hsing Benefits,HGB,Transfer Payments,G,Other Transfer Payments,GD,30/04/2021,PAY01370124,REVS,Revenues and Benefits,COUN,591.28,Revenue,Argos Business Solutions Ltd
Brighton & Hove City Council,http://statistics.data.gov.uk/id/local-authority/00ML,Housing General Fund,BVAHOG,Hsing Benefits,HGB,Transfer Payments,G,Other Transfer Payments,GD,12/05/2021,PAY01373503,REVS,Revenues and Benefits,COUN,669.82,Revenue,Argos Business Solutions Ltd
Brighton & Hove City Council,http://statistics.data.gov.uk/id/local-authority/00ML,Housing Revenue Account,BVAHOU,Hsing Management - HRA,HGM,Supplies and Services,E,Miscellaneous Expenses,EM,09/06/2021,PAY01381159,HTEN,Tenancy Services,COUN,347.99,Revenue,Argos Business Solutions Ltd
Brighton & Hove City Council,http://statistics.data.gov.uk/id/local-authority/00ML,Housing Revenue Account,BVAHOU,Hsing Management - HRA,HGM,Supplies and Services,E,Equip't Furniture n Materials,EA,25/06/2021,PAY01385534,HTEN,Tenancy Services,COUN,216,Revenue,Argos Business Solutions Ltd
Brighton & Hove City Council,http://statistics.data.gov.uk/id/local-authority/00ML,Non I&E,BVANON,CAP Social Services,4RV,Plant Machinery n Equipment,PE2,Plant Machinery n Equipment,PE2L5,25/06/2021,PAY01385534,ASIT,Assessment and SIT,COUN,205.36,Capital,Argos Business Solutions Ltd
Brighton & Hove City Council,http://statistics.data.gov.uk/id/local-authority/00ML,Housing Revenue Account,BVAHOU,Hsing Management - HRA,HGM,Supplies and Services,E,Services,EF,30/06/2021,PAY01387423,HPAI,Property & Investment,COUN,4452,Revenue,ARP Research Ltd
Brighton & Hove City Council,http://statistics.data.gov.uk/id/local-authority/00ML,Adult Social Care,BVASOC,S Svcs Other Adult Services,ADT,Indirect Employees,B,Training,BM,01/04/2021,PAY01362423,ORGD,Organisational Development,COUN,103,Revenue,Artagent Ltd t/a David Taylor Training
Brighton & Hove City Council,http://statistics.data.gov.uk/id/local-authority/00ML,Central Support and Overheads,BVACEN,Support Services (SSC),PPT,Indirect Employees,B,Training,BM,01/04/2021,PAY01362423,OHAS,Occupational Health and Safety,COUN,175,Revenue,Artagent Ltd t/a David Taylor Training
Brighton & Hove City Council,http://statistics.data.gov.uk/id/local-authority/00ML,Central Support and Overheads,BVACEN,Support Services (SSC),PPT,Indirect Employees,B,Training,BM,01/04/2021,PAY01362423,ORGD,Organisational Development,COUN,72,Revenue,Artagent Ltd t/a David Taylor Training
Brighton & Hove City Council,http://statistics.data.gov.uk/id/local-authority/00ML,Adult Social Care,BVASOC,S Svcs Other Adult Services,ADT,Indirect Employees,B,Training,BM,09/06/2021,PAY01381121,ORGD,Organisational Development,COUN,334.6,Revenue,Artagent Ltd t/a David Taylor Training
Brighton & Hove City Council,http://statistics.data.gov.uk/id/local-authority/00ML,Central Support and Overheads,BVACEN,ORBIS Partnership,ORB,Indirect Employees,B,Training,BM,09/06/2021,PAY01381121,ORBOHS,OccupationalHealth&SafetyORBIS,COUN,175,Revenue,Artagent Ltd t/a David Taylor Training
Brighton & Hove City Council,http://statistics.data.gov.uk/id/local-authority/00ML,Central Support and Overheads,BVACEN,Support Services (SSC),PPT,Indirect Employees,B,Training,BM,09/06/2021,PAY01381121,ORGD,Organisational Development,COUN,400.4,Revenue,Artagent Ltd t/a David Taylor Training
Brighton & Hove City Council,http://statistics.data.gov.uk/id/local-authority/00ML,Adult Social Care,BVASOC,S Svcs Other Adult Services,ADT,Indirect Employees,B,Training,BM,30/06/2021,PAY01387156,ORGD,Organisational Development,COUN,98,Revenue,Artagent Ltd t/a David Taylor Training
Brighton & Hove City Council,http://statistics.data.gov.uk/id/local-authority/00ML,Central Support and Overheads,BVACEN,ORBIS Partnership,ORB,Indirect Employees,B,Training,BM,30/06/2021,PAY01387156,ORBOHS,OccupationalHealth&SafetyORBIS,COUN,175,Revenue,Artagent Ltd t/a David Taylor Training
Brighton & Hove City Council,http://statistics.data.gov.uk/id/local-authority/00ML,Central Support and Overheads,BVACEN,Support Services (SSC),PPT,Indirect Employees,B,Training,BM,30/06/2021,PAY01387156,ORGD,Organisational Development,COUN,77,Revenue,Artagent Ltd t/a David Taylor Training
Brighton & Hove City Council,http://statistics.data.gov.uk/id/local-authority/00ML,Library Services,BVACUL,Library Service,LBR,Supplies and Services,E,Communications n Computing,EH,14/04/2021,PAY01365495,LIBS,Libraries,COUN,3180,Revenue,Artifax Software Ltd
Brighton & Hove City Council,http://statistics.data.gov.uk/id/local-authority/00ML,Library Services,BVACUL,Library Service,LBR,Supplies and Services,E,Miscellaneous Expenses,EM,14/04/2021,PAY01365495,LIBS,Libraries,COUN,524.4,Revenue,Artifax Software Ltd
Brighton & Hove City Council,http://statistics.data.gov.uk/id/local-authority/00ML,Children`s & Education Serv,BVAEDU,Child Srvcs Leaving Care,FAL,Transfer Payments,G,Other Transfer Payments,GD,30/06/2021,PAY01387759,CARL,Care Leavers,COUN,1200,Revenue,Arty Property Development Limited
Brighton & Hove City Council,http://statistics.data.gov.uk/id/local-authority/00ML,Children`s & Education Serv,BVAEDU,Child Srvcs - Fostering,FLF,Third Party Payments,F,Other Establishments,FH,11/06/2021,PAY01382774,CHIC,Fostering and Adoption,COUN,10526.92,Revenue,Arun Estate Agencies Limited
Brighton & Hove City Council,http://statistics.data.gov.uk/id/local-authority/00ML,Central Support and Overheads,BVACEN,Support Services (SSC),PPT,Premises Related,C,Repair Maint n Alterations,CA,01/04/2021,PAY01362483,PROP,Property and Design,COUN,232.5,Revenue,Arun Pumps Ltd
Brighton & Hove City Council,http://statistics.data.gov.uk/id/local-authority/00ML,Adult Social Care,BVASOC,ASC Learning Disabilities,ALD,Customer n Client Receipts,M,Fees n Charges,MB,07/04/2021,PAY01364089,LDIS,Adults LD Community Care,COUN,-3304,Revenue,Arundel Domiciliary Care Services
Brighton & Hove City Council,http://statistics.data.gov.uk/id/local-authority/00ML,Adult Social Care,BVASOC,ASC Learning Disabilities,ALD,Third Party Payments,F,Other Establishments,FH,07/04/2021,PAY01364089,LDIS,Adults LD Community Care,COUN,149568.02,Revenue,Arundel Domiciliary Care Services
Brighton & Hove City Council,http://statistics.data.gov.uk/id/local-authority/00ML,Adult Social Care,BVASOC,ASC Learning Disabilities,ALD,Customer n Client Receipts,M,Fees n Charges,MB,05/05/2021,PAY01371793,LDIS,Adults LD Community Care,COUN,-6664,Revenue,Arundel Domiciliary Care Services
Brighton & Hove City Council,http://statistics.data.gov.uk/id/local-authority/00ML,Adult Social Care,BVASOC,ASC Learning Disabilities,ALD,Third Party Payments,F,Other Establishments,FH,05/05/2021,PAY01371793,LDIS,Adults LD Community Care,COUN,250519.78,Revenue,Arundel Domiciliary Care Services
Brighton & Hove City Council,http://statistics.data.gov.uk/id/local-authority/00ML,Adult Social Care,BVASOC,ASC Learning Disabilities,ALD,Customer n Client Receipts,M,Fees n Charges,MB,02/06/2021,PAY01379453,LDIS,Adults LD Community Care,COUN,-3816,Revenue,Arundel Domiciliary Care Services
Brighton & Hove City Council,http://statistics.data.gov.uk/id/local-authority/00ML,Adult Social Care,BVASOC,ASC Learning Disabilities,ALD,Third Party Payments,F,Other Establishments,FH,02/06/2021,PAY01379453,LDIS,Adults LD Community Care,COUN,159286.32,Revenue,Arundel Domiciliary Care Services
Brighton & Hove City Council,http://statistics.data.gov.uk/id/local-authority/00ML,Adult Social Care,BVASOC,ASC Learning Disabilities,ALD,Customer n Client Receipts,M,Fees n Charges,MB,30/06/2021,PAY01387296,LDIS,Adults LD Community Care,COUN,-3816,Revenue,Arundel Domiciliary Care Services
Brighton & Hove City Council,http://statistics.data.gov.uk/id/local-authority/00ML,Adult Social Care,BVASOC,ASC Learning Disabilities,ALD,Third Party Payments,F,Other Establishments,FH,30/06/2021,PAY01387296,LDIS,Adults LD Community Care,COUN,161037.56,Revenue,Arundel Domiciliary Care Services
Brighton & Hove City Council,http://statistics.data.gov.uk/id/local-authority/00ML,Adult Social Care,BVASOC,ASC Learning Disabilities,ALD,Customer n Client Receipts,M,Fees n Charges,MB,14/04/2021,PAY01365483,LDIS,Adults LD Community Care,COUN,-424.3,Revenue,ASD Unique Services LLP
Brighton & Hove City Council,http://statistics.data.gov.uk/id/local-authority/00ML,Adult Social Care,BVASOC,ASC Learning Disabilities,ALD,Third Party Payments,F,Other Establishments,FH,14/04/2021,PAY01365483,LDIS,Adults LD Community Care,COUN,4591.44,Revenue,ASD Unique Services LLP
Brighton & Hove City Council,http://statistics.data.gov.uk/id/local-authority/00ML,Adult Social Care,BVASOC,ASC Learning Disabilities,ALD,Customer n Client Receipts,M,Fees n Charges,MB,07/05/2021,PAY01372444,LDIS,Adults LD Community Care,COUN,-425.6,Revenue,ASD Unique Services LLP
Brighton & Hove City Council,http://statistics.data.gov.uk/id/local-authority/00ML,Adult Social Care,BVASOC,ASC Learning Disabilities,ALD,Third Party Payments,F,Other Establishments,FH,07/05/2021,PAY01372444,LDIS,Adults LD Community Care,COUN,4591.44,Revenue,ASD Unique Services LLP
Brighton & Hove City Council,http://statistics.data.gov.uk/id/local-authority/00ML,Adult Social Care,BVASOC,ASC Learning Disabilities,ALD,Customer n Client Receipts,M,Fees n Charges,MB,04/06/2021,PAY01380112,LDIS,Adults LD Community Care,COUN,-425.6,Revenue,ASD Unique Services LLP
Brighton & Hove City Council,http://statistics.data.gov.uk/id/local-authority/00ML,Adult Social Care,BVASOC,ASC Learning Disabilities,ALD,Third Party Payments,F,Other Establishments,FH,04/06/2021,PAY01380112,LDIS,Adults LD Community Care,COUN,4591.44,Revenue,ASD Unique Services LLP
Brighton & Hove City Council,http://statistics.data.gov.uk/id/local-authority/00ML,Non I&E,BVANON,CAP Other Env Services,4EV,New Construction n Conversion,PB,New Construction n Conversion,PBL5,28/05/2021,PAY01377669,PROP,Property and Design,COUN,630,Capital,Ashacre Scaffolding Ltd
Brighton & Hove City Council,http://statistics.data.gov.uk/id/local-authority/00ML,Non I&E,BVANON,CAP Other Env Services,4EV,New Construction n Conversion,PB,New Construction n Conversion,PBL5,23/06/2021,PAY01384543,PROP,Property and Design,COUN,280,Capital,Ashacre Scaffolding Ltd
Brighton & Hove City Council,http://statistics.data.gov.uk/id/local-authority/00ML,Housing General Fund,BVAHOG,Homelessness,HML,Premises Related,C,Rents Payable,CC,07/04/2021,PAY01364213,TAAS,Temp Accom and Allocations,COUN,3250,Revenue,Ashbee Estates Ltd 
Brighton & Hove City Council,http://statistics.data.gov.uk/id/local-authority/00ML,Housing General Fund,BVAHOG,Homelessness,HML,Premises Related,C,Rents Payable,CC,09/04/2021,PAY01364988,TAAS,Temp Accom and Allocations,COUN,1000,Revenue,Ashbee Estates Ltd 
Brighton & Hove City Council,http://statistics.data.gov.uk/id/local-authority/00ML,Housing General Fund,BVAHOG,Homelessness,HML,Premises Related,C,Rents Payable,CC,21/04/2021,PAY01367773,TAAS,Temp Accom and Allocations,COUN,1000,Revenue,Ashbee Estates Ltd 
Brighton & Hove City Council,http://statistics.data.gov.uk/id/local-authority/00ML,Housing General Fund,BVAHOG,Homelessness,HML,Premises Related,C,Rents Payable,CC,23/04/2021,PAY01368536,TAAS,Temp Accom and Allocations,COUN,975,Revenue,Ashbee Estates Ltd 
Brighton & Hove City Council,http://statistics.data.gov.uk/id/local-authority/00ML,Housing General Fund,BVAHOG,Homelessness,HML,Premises Related,C,Rents Payable,CC,28/04/2021,PAY01369453,TAAS,Temp Accom and Allocations,COUN,1000,Revenue,Ashbee Estates Ltd 
Brighton & Hove City Council,http://statistics.data.gov.uk/id/local-authority/00ML,Housing General Fund,BVAHOG,Homelessness,HML,Premises Related,C,Rents Payable,CC,30/04/2021,PAY01370726,TAAS,Temp Accom and Allocations,COUN,1150,Revenue,Ashbee Estates Ltd 
Brighton & Hove City Council,http://statistics.data.gov.uk/id/local-authority/00ML,Housing General Fund,BVAHOG,Homelessness,HML,Premises Related,C,Rents Payable,CC,07/05/2021,PAY01372908,TAAS,Temp Accom and Allocations,COUN,3250,Revenue,Ashbee Estates Ltd 
Brighton & Hove City Council,http://statistics.data.gov.uk/id/local-authority/00ML,Housing General Fund,BVAHOG,Homelessness,HML,Premises Related,C,Rents Payable,CC,12/05/2021,PAY01373749,TAAS,Temp Accom and Allocations,COUN,1000,Revenue,Ashbee Estates Ltd 
Brighton & Hove City Council,http://statistics.data.gov.uk/id/local-authority/00ML,Housing General Fund,BVAHOG,Homelessness,HML,Third Party Payments,F,Other Establishments,FH,14/05/2021,PAY01374607,TAAS,Temp Accom and Allocations,COUN,700,Revenue,Ashbee Estates Ltd 
Brighton & Hove City Council,http://statistics.data.gov.uk/id/local-authority/00ML,Housing General Fund,BVAHOG,Homelessness,HML,Premises Related,C,Rents Payable,CC,21/05/2021,PAY01376325,TAAS,Temp Accom and Allocations,COUN,1975,Revenue,Ashbee Estates Ltd 
Brighton & Hove City Council,http://statistics.data.gov.uk/id/local-authority/00ML,Housing General Fund,BVAHOG,Homelessness,HML,Premises Related,C,Rents Payable,CC,28/05/2021,PAY01378383,TAAS,Temp Accom and Allocations,COUN,2150,Revenue,Ashbee Estates Ltd 
Brighton & Hove City Council,http://statistics.data.gov.uk/id/local-authority/00ML,Housing General Fund,BVAHOG,Homelessness,HML,Premises Related,C,Rents Payable,CC,04/06/2021,PAY01380551,TAAS,Temp Accom and Allocations,COUN,2250,Revenue,Ashbee Estates Ltd 
Brighton & Hove City Council,http://statistics.data.gov.uk/id/local-authority/00ML,Housing General Fund,BVAHOG,Homelessness,HML,Premises Related,C,Rents Payable,CC,09/06/2021,PAY01381452,TAAS,Temp Accom and Allocations,COUN,1000,Revenue,Ashbee Estates Ltd 
Brighton & Hove City Council,http://statistics.data.gov.uk/id/local-authority/00ML,Housing General Fund,BVAHOG,Homelessness,HML,Premises Related,C,Rents Payable,CC,11/06/2021,PAY01382340,TAAS,Temp Accom and Allocations,COUN,1000,Revenue,Ashbee Estates Ltd 
Brighton & Hove City Council,http://statistics.data.gov.uk/id/local-authority/00ML,Housing General Fund,BVAHOG,Homelessness,HML,Premises Related,C,Rents Payable,CC,23/06/2021,PAY01384890,TAAS,Temp Accom and Allocations,COUN,1975,Revenue,Ashbee Estates Ltd 
Brighton & Hove City Council,http://statistics.data.gov.uk/id/local-authority/00ML,Housing General Fund,BVAHOG,Homelessness,HML,Third Party Payments,F,Other Establishments,FH,25/06/2021,PAY01386276,TAAS,Temp Accom and Allocations,COUN,1000,Revenue,Ashbee Estates Ltd 
Brighton & Hove City Council,http://statistics.data.gov.uk/id/local-authority/00ML,Housing General Fund,BVAHOG,Homelessness,HML,Premises Related,C,Rents Payable,CC,30/06/2021,PAY01387435,TAAS,Temp Accom and Allocations,COUN,2150,Revenue,Ashbee Estates Ltd 
Brighton & Hove City Council,http://statistics.data.gov.uk/id/local-authority/00ML,Adult Social Care,BVASOC,ASC Memory Cognition Support,MEM,Customer n Client Receipts,M,Fees n Charges,MB,14/04/2021,PAY01366027,COGN,Memory Cognition Support,COUN,-602.1,Revenue,Ashley Gardens (UK) Ltd
Brighton & Hove City Council,http://statistics.data.gov.uk/id/local-authority/00ML,Adult Social Care,BVASOC,ASC Memory Cognition Support,MEM,Third Party Payments,F,Other Establishments,FH,14/04/2021,PAY01366027,COGN,Memory Cognition Support,COUN,2204.28,Revenue,Ashley Gardens (UK) Ltd
Brighton & Hove City Council,http://statistics.data.gov.uk/id/local-authority/00ML,Adult Social Care,BVASOC,ASC Memory Cognition Support,MEM,Customer n Client Receipts,M,Fees n Charges,MB,07/05/2021,PAY01373068,COGN,Memory Cognition Support,COUN,-608.8,Revenue,Ashley Gardens (UK) Ltd
Brighton & Hove City Council,http://statistics.data.gov.uk/id/local-authority/00ML,Adult Social Care,BVASOC,ASC Memory Cognition Support,MEM,Third Party Payments,F,Other Establishments,FH,07/05/2021,PAY01373068,COGN,Memory Cognition Support,COUN,2204.28,Revenue,Ashley Gardens (UK) Ltd
Brighton & Hove City Council,http://statistics.data.gov.uk/id/local-authority/00ML,Adult Social Care,BVASOC,ASC Memory Cognition Support,MEM,Customer n Client Receipts,M,Fees n Charges,MB,04/06/2021,PAY01380688,COGN,Memory Cognition Support,COUN,-608.8,Revenue,Ashley Gardens (UK) Ltd
Brighton & Hove City Council,http://statistics.data.gov.uk/id/local-authority/00ML,Adult Social Care,BVASOC,ASC Memory Cognition Support,MEM,Third Party Payments,F,Other Establishments,FH,04/06/2021,PAY01380688,COGN,Memory Cognition Support,COUN,2204.28,Revenue,Ashley Gardens (UK) Ltd
Brighton & Hove City Council,http://statistics.data.gov.uk/id/local-authority/00ML,Adult Social Care,BVASOC,ASC Learning Disabilities,ALD,Customer n Client Receipts,M,Fees n Charges,MB,23/04/2021,PAY01368411,LDIS,Adults LD Community Care,COUN,-496,Revenue,Ashmeadows House Ltd
Brighton & Hove City Council,http://statistics.data.gov.uk/id/local-authority/00ML,Adult Social Care,BVASOC,ASC Learning Disabilities,ALD,Third Party Payments,F,Other Establishments,FH,23/04/2021,PAY01368411,LDIS,Adults LD Community Care,COUN,2241.16,Revenue,Ashmeadows House Ltd
Brighton & Hove City Council,http://statistics.data.gov.uk/id/local-authority/00ML,Adult Social Care,BVASOC,ASC Learning Disabilities,ALD,Customer n Client Receipts,M,Fees n Charges,MB,26/05/2021,PAY01377065,LDIS,Adults LD Community Care,COUN,-816,Revenue,Ashmeadows House Ltd
Brighton & Hove City Council,http://statistics.data.gov.uk/id/local-authority/00ML,Adult Social Care,BVASOC,ASC Learning Disabilities,ALD,Third Party Payments,F,Other Establishments,FH,26/05/2021,PAY01377065,LDIS,Adults LD Community Care,COUN,3317.72,Revenue,Ashmeadows House Ltd
Brighton & Hove City Council,http://statistics.data.gov.uk/id/local-authority/00ML,Adult Social Care,BVASOC,ASC Mental Health Support,MHP,Third Party Payments,F,Other Establishments,FH,26/05/2021,PAY01377065,MENH,Mental Health Support,COUN,2177.04,Revenue,Ashmeadows House Ltd
Brighton & Hove City Council,http://statistics.data.gov.uk/id/local-authority/00ML,Adult Social Care,BVASOC,ASC Learning Disabilities,ALD,Customer n Client Receipts,M,Fees n Charges,MB,18/06/2021,PAY01383891,LDIS,Adults LD Community Care,COUN,-320,Revenue,Ashmeadows House Ltd
Brighton & Hove City Council,http://statistics.data.gov.uk/id/local-authority/00ML,Adult Social Care,BVASOC,ASC Learning Disabilities,ALD,Third Party Payments,F,Other Establishments,FH,18/06/2021,PAY01383891,LDIS,Adults LD Community Care,COUN,1076.56,Revenue,Ashmeadows House Ltd
Brighton & Hove City Council,http://statistics.data.gov.uk/id/local-authority/00ML,Adult Social Care,BVASOC,ASC Mental Health Support,MHP,Third Party Payments,F,Other Establishments,FH,18/06/2021,PAY01383891,MENH,Mental Health Support,COUN,2106.81,Revenue,Ashmeadows House Ltd
Brighton & Hove City Council,http://statistics.data.gov.uk/id/local-authority/00ML,Adult Social Care,BVASOC,ASC Memory Cognition Support,MEM,Customer n Client Receipts,M,Fees n Charges,MB,14/04/2021,PAY01365553,COGN,Memory Cognition Support,COUN,-602.1,Revenue,Ashton Care
Brighton & Hove City Council,http://statistics.data.gov.uk/id/local-authority/00ML,Adult Social Care,BVASOC,ASC Memory Cognition Support,MEM,Third Party Payments,F,Other Establishments,FH,14/04/2021,PAY01365553,COGN,Memory Cognition Support,COUN,2367,Revenue,Ashton Care
Brighton & Hove City Council,http://statistics.data.gov.uk/id/local-authority/00ML,Adult Social Care,BVASOC,ASC Memory Cognition Support,MEM,Customer n Client Receipts,M,Fees n Charges,MB,07/05/2021,PAY01372486,COGN,Memory Cognition Support,COUN,-608.8,Revenue,Ashton Care
Brighton & Hove City Council,http://statistics.data.gov.uk/id/local-authority/00ML,Adult Social Care,BVASOC,ASC Memory Cognition Support,MEM,Third Party Payments,F,Other Establishments,FH,07/05/2021,PAY01372486,COGN,Memory Cognition Support,COUN,10871.64,Revenue,Ashton Care
Brighton & Hove City Council,http://statistics.data.gov.uk/id/local-authority/00ML,Adult Social Care,BVASOC,ASC Memory Cognition Support,MEM,Customer n Client Receipts,M,Fees n Charges,MB,04/06/2021,PAY01380149,COGN,Memory Cognition Support,COUN,-608.8,Revenue,Ashton Care
Brighton & Hove City Council,http://statistics.data.gov.uk/id/local-authority/00ML,Adult Social Care,BVASOC,ASC Memory Cognition Support,MEM,Third Party Payments,F,Other Establishments,FH,04/06/2021,PAY01380149,COGN,Memory Cognition Support,COUN,6619.32,Revenue,Ashton Care
Brighton & Hove City Council,http://statistics.data.gov.uk/id/local-authority/00ML,Adult Social Care,BVASOC,ASC Memory Cognition Support,MEM,Third Party Payments,F,Other Establishments,FH,14/04/2021,PAY01365960,COGN,Memory Cognition Support,COUN,7300,Revenue,Ashton House
Brighton & Hove City Council,http://statistics.data.gov.uk/id/local-authority/00ML,Adult Social Care,BVASOC,ASC Memory Cognition Support,MEM,Third Party Payments,F,Other Establishments,FH,07/05/2021,PAY01372913,COGN,Memory Cognition Support,COUN,7300,Revenue,Ashton House
Brighton & Hove City Council,http://statistics.data.gov.uk/id/local-authority/00ML,Adult Social Care,BVASOC,ASC Memory Cognition Support,MEM,Third Party Payments,F,Other Establishments,FH,04/06/2021,PAY01380555,COGN,Memory Cognition Support,COUN,7300,Revenue,Ashton House
Brighton & Hove City Council,http://statistics.data.gov.uk/id/local-authority/00ML,Adult Social Care,BVASOC,ASC Memory Cognition Support,MEM,Third Party Payments,F,Other Establishments,FH,14/04/2021,PAY01366032,COGN,Memory Cognition Support,COUN,3400,Revenue,Ashtonleigh Homes Ltd T/A Ashton Grange NH
Brighton & Hove City Council,http://statistics.data.gov.uk/id/local-authority/00ML,Adult Social Care,BVASOC,ASC Memory Cognition Support,MEM,Third Party Payments,F,Other Establishments,FH,07/05/2021,PAY01373073,COGN,Memory Cognition Support,COUN,3400,Revenue,Ashtonleigh Homes Ltd T/A Ashton Grange NH
Brighton & Hove City Council,http://statistics.data.gov.uk/id/local-authority/00ML,Adult Social Care,BVASOC,ASC Memory Cognition Support,MEM,Third Party Payments,F,Other Establishments,FH,04/06/2021,PAY01380692,COGN,Memory Cognition Support,COUN,3400,Revenue,Ashtonleigh Homes Ltd T/A Ashton Grange NH
Brighton & Hove City Council,http://statistics.data.gov.uk/id/local-authority/00ML,Adult Social Care,BVASOC,S Svcs Other Adult Services,ADT,Indirect Employees,B,Training,BM,21/04/2021,PAY01367996,ORGD,Organisational Development,COUN,236,Revenue,Aspect Training Limited
Brighton & Hove City Council,http://statistics.data.gov.uk/id/local-authority/00ML,Central Support and Overheads,BVACEN,Support Services (SSC),PPT,Indirect Employees,B,Training,BM,21/04/2021,PAY01367996,ORGD,Organisational Development,COUN,164,Revenue,Aspect Training Limited
Brighton & Hove City Council,http://statistics.data.gov.uk/id/local-authority/00ML,Adult Social Care,BVASOC,ASC Memory Cognition Support,MEM,Customer n Client Receipts,M,Fees n Charges,MB,14/04/2021,PAY01365460,COGN,Memory Cognition Support,COUN,-5741.82,Revenue,Aspen House
Brighton & Hove City Council,http://statistics.data.gov.uk/id/local-authority/00ML,Adult Social Care,BVASOC,ASC Memory Cognition Support,MEM,Third Party Payments,F,Other Establishments,FH,14/04/2021,PAY01365460,COGN,Memory Cognition Support,COUN,17444,Revenue,Aspen House
Brighton & Hove City Council,http://statistics.data.gov.uk/id/local-authority/00ML,Adult Social Care,BVASOC,ASC Memory Cognition Support,MEM,Customer n Client Receipts,M,Fees n Charges,MB,07/05/2021,PAY01372435,COGN,Memory Cognition Support,COUN,-1638.09,Revenue,Aspen House
Brighton & Hove City Council,http://statistics.data.gov.uk/id/local-authority/00ML,Adult Social Care,BVASOC,ASC Memory Cognition Support,MEM,Third Party Payments,F,Other Establishments,FH,07/05/2021,PAY01372435,COGN,Memory Cognition Support,COUN,20080,Revenue,Aspen House
Brighton & Hove City Council,http://statistics.data.gov.uk/id/local-authority/00ML,Adult Social Care,BVASOC,ASC Memory Cognition Support,MEM,Customer n Client Receipts,M,Fees n Charges,MB,04/06/2021,PAY01380102,COGN,Memory Cognition Support,COUN,-6178.72,Revenue,Aspen House
Brighton & Hove City Council,http://statistics.data.gov.uk/id/local-authority/00ML,Adult Social Care,BVASOC,ASC Memory Cognition Support,MEM,Third Party Payments,F,Other Establishments,FH,04/06/2021,PAY01380102,COGN,Memory Cognition Support,COUN,20080,Revenue,Aspen House
Brighton & Hove City Council,http://statistics.data.gov.uk/id/local-authority/00ML,Adult Social Care,BVASOC,ASC Learning Disabilities,ALD,Customer n Client Receipts,M,Fees n Charges,MB,14/04/2021,PAY01365721,LDIS,Adults LD Community Care,COUN,-1697.2,Revenue,Aspens Charities
Brighton & Hove City Council,http://statistics.data.gov.uk/id/local-authority/00ML,Adult Social Care,BVASOC,ASC Learning Disabilities,ALD,Third Party Payments,F,Other Establishments,FH,14/04/2021,PAY01365721,LDIS,Adults LD Community Care,COUN,23441.12,Revenue,Aspens Charities
Brighton & Hove City Council,http://statistics.data.gov.uk/id/local-authority/00ML,Adult Social Care,BVASOC,ASC Learning Disabilities,ALD,Customer n Client Receipts,M,Fees n Charges,MB,07/05/2021,PAY01372633,LDIS,Adults LD Community Care,COUN,-1702.4,Revenue,Aspens Charities
Brighton & Hove City Council,http://statistics.data.gov.uk/id/local-authority/00ML,Adult Social Care,BVASOC,ASC Learning Disabilities,ALD,Third Party Payments,F,Other Establishments,FH,07/05/2021,PAY01372633,LDIS,Adults LD Community Care,COUN,23441.12,Revenue,Aspens Charities
Brighton & Hove City Council,http://statistics.data.gov.uk/id/local-authority/00ML,Adult Social Care,BVASOC,ASC Learning Disabilities,ALD,Customer n Client Receipts,M,Fees n Charges,MB,04/06/2021,PAY01380303,LDIS,Adults LD Community Care,COUN,-1702.4,Revenue,Aspens Charities
Brighton & Hove City Council,http://statistics.data.gov.uk/id/local-authority/00ML,Adult Social Care,BVASOC,ASC Learning Disabilities,ALD,Third Party Payments,F,Other Establishments,FH,04/06/2021,PAY01380303,LDIS,Adults LD Community Care,COUN,23441.12,Revenue,Aspens Charities
Brighton & Hove City Council,http://statistics.data.gov.uk/id/local-authority/00ML,Children`s & Education Serv,BVAEDU,Child Srvcs Leaving Care,FAL,Transfer Payments,G,Other Transfer Payments,GD,07/05/2021,PAY01372460,CARL,Care Leavers,COUN,13072.3,Revenue,Asphaleia Ltd
Brighton & Hove City Council,http://statistics.data.gov.uk/id/local-authority/00ML,Children`s & Education Serv,BVAEDU,Ed Ed Other Other,ENF,Third Party Payments,F,Other Establishments,FH,02/06/2021,PAY01379208,VSCH,Virtual School,COUN,442,Revenue,Asphaleia Ltd
Brighton & Hove City Council,http://statistics.data.gov.uk/id/local-authority/00ML,Children`s & Education Serv,BVAEDU,Child Srvcs Leaving Care,FAL,Transfer Payments,G,Other Transfer Payments,GD,16/06/2021,PAY01382893,CARL,Care Leavers,COUN,6643.3,Revenue,Asphaleia Ltd
Brighton & Hove City Council,http://statistics.data.gov.uk/id/local-authority/00ML,Adult Social Care,BVASOC,ASC Learning Disabilities,ALD,Third Party Payments,F,Other Establishments,FH,07/04/2021,PAY01364030,LDIS,Adults LD Community Care,COUN,18956,Revenue,Aspirations Active
Brighton & Hove City Council,http://statistics.data.gov.uk/id/local-authority/00ML,Adult Social Care,BVASOC,ASC Learning Disabilities,ALD,Third Party Payments,F,Other Establishments,FH,12/05/2021,PAY01373546,LDIS,Adults LD Community Care,COUN,14760.1,Revenue,Aspirations Active
Brighton & Hove City Council,http://statistics.data.gov.uk/id/local-authority/00ML,Adult Social Care,BVASOC,ASC Learning Disabilities,ALD,Third Party Payments,F,Other Establishments,FH,16/06/2021,PAY01383022,LDIS,Adults LD Community Care,COUN,15730.95,Revenue,Aspirations Active
Brighton & Hove City Council,http://statistics.data.gov.uk/id/local-authority/00ML,Children`s & Education Serv,BVAEDU,Child Srvcs Adoption,FAA,Supplies and Services,E,Services,EF,28/04/2021,PAY01369507,CHIC,Fostering and Adoption,COUN,900,Revenue,Associate of Touchbase
Brighton & Hove City Council,http://statistics.data.gov.uk/id/local-authority/00ML,Children`s & Education Serv,BVAEDU,Child Srvcs Adoption,FAA,Supplies and Services,E,Services,EF,05/05/2021,PAY01371976,CHIC,Fostering and Adoption,COUN,450,Revenue,Associate of Touchbase
Brighton & Hove City Council,http://statistics.data.gov.uk/id/local-authority/00ML,Children`s & Education Serv,BVAEDU,Ed Ed Other Strat Mgt,ENM,Indirect Employees,B,Training,BM,28/04/2021,PAY01369028,DOCS,Dir Families Children Learning,COUN,2686,Revenue,Association of Directors of Children Services 
Brighton & Hove City Council,http://statistics.data.gov.uk/id/local-authority/00ML,Children`s & Education Serv,BVAEDU,Ed Ed Other Strat Mgt,ENM,Indirect Employees,B,Training,BM,09/06/2021,PAY01381030,DOCS,Dir Families Children Learning,COUN,300,Revenue,Association of Directors of Children Services 
Brighton & Hove City Council,http://statistics.data.gov.uk/id/local-authority/00ML,Environment & Regulatory Serv,BVAERS,Flood Drainage and Coast Prtn,FDC,Customer n Client Receipts,M,Fees n Charges,MB,12/05/2021,PAY01373917,TPRS,Transport Projects and Eng,COUN,334,Revenue,Association of SuDS Authorities
Brighton & Hove City Council,http://statistics.data.gov.uk/id/local-authority/00ML,Children`s & Education Serv,BVAEDU,Child Srvcs - Residential Svcs,FLR,Third Party Payments,F,Other Establishments,FH,23/04/2021,PAY01368474,DISS,Childrens Disability Services,COUN,27457.01,Revenue,Aston Children Care
Brighton & Hove City Council,http://statistics.data.gov.uk/id/local-authority/00ML,Children`s & Education Serv,BVAEDU,Child Srvcs - Residential Svcs,FLR,Third Party Payments,F,Other Establishments,FH,02/06/2021,PAY01379558,DISS,Childrens Disability Services,COUN,26571.3,Revenue,Aston Children Care
Brighton & Hove City Council,http://statistics.data.gov.uk/id/local-authority/00ML,Children`s & Education Serv,BVAEDU,Child Srvcs - Residential Svcs,FLR,Third Party Payments,F,Other Establishments,FH,11/06/2021,PAY01382273,DISS,Childrens Disability Services,COUN,27457.01,Revenue,Aston Children Care
Brighton & Hove City Council,http://statistics.data.gov.uk/id/local-authority/00ML,Environment & Regulatory Serv,BVAERS,Management Services (DEC),MGT,Transport Related,D,Direct Transport Costs,DA,16/06/2021,PAY01383167,CICL,City Clean,COUN,278.35,Revenue,ATE (UK) Ltd
Brighton & Hove City Council,http://statistics.data.gov.uk/id/local-authority/00ML,Central Support and Overheads,BVACEN,Support Services (SSC),PPT,Supplies and Services,E,Equip't Furniture n Materials,EA,09/06/2021,PAY01381634,SKEM,Skills and Employment,COUN,594,Revenue,Atlantic Tech Services Ltd
Brighton & Hove City Council,http://statistics.data.gov.uk/id/local-authority/00ML,Central Support and Overheads,BVACEN,Support Services (SSC),PPT,Supplies and Services,E,Equip't Furniture n Materials,EA,01/04/2021,PAY01363797,SKEM,Skills and Employment,COUN,211.2,Revenue,Atlas Copco Ltd
Brighton & Hove City Council,http://statistics.data.gov.uk/id/local-authority/00ML,Environment & Regulatory Serv,BVAERS,Waste Management,WMT,Transport Related,D,Direct Transport Costs,DA,14/04/2021,PAY01365628,CICL,City Clean,COUN,2566.97,Revenue,ATS Euromaster Ltd
Brighton & Hove City Council,http://statistics.data.gov.uk/id/local-authority/00ML,Housing Revenue Account,BVAHOU,Hsing Management - HRA,HGM,Transport Related,D,Direct Transport Costs,DA,14/04/2021,PAY01365628,HPAI,Property & Investment,COUN,362.16,Revenue,ATS Euromaster Ltd
Brighton & Hove City Council,http://statistics.data.gov.uk/id/local-authority/00ML,Adult Social Care,BVASOC,Assistive Equipment & Tech,AET,Transport Related,D,Direct Transport Costs,DA,12/05/2021,PAY01373506,ASIT,Assessment and SIT,COUN,124.03,Revenue,ATS Euromaster Ltd
Brighton & Hove City Council,http://statistics.data.gov.uk/id/local-authority/00ML,Environment & Regulatory Serv,BVAERS,Waste Management,WMT,Transport Related,D,Direct Transport Costs,DA,12/05/2021,PAY01373506,CICL,City Clean,COUN,2566.97,Revenue,ATS Euromaster Ltd
Brighton & Hove City Council,http://statistics.data.gov.uk/id/local-authority/00ML,Housing Revenue Account,BVAHOU,Hsing Management - HRA,HGM,Transport Related,D,Direct Transport Costs,DA,12/05/2021,PAY01373506,HPAI,Property & Investment,COUN,362.16,Revenue,ATS Euromaster Ltd
Brighton & Hove City Council,http://statistics.data.gov.uk/id/local-authority/00ML,Adult Social Care,BVASOC,ASC Learning Disabilities,ALD,Customer n Client Receipts,M,Fees n Charges,MB,14/04/2021,PAY01366053,LDIS,Adults LD Community Care,COUN,-424.3,Revenue,Auckland Care Ltd
Brighton & Hove City Council,http://statistics.data.gov.uk/id/local-authority/00ML,Adult Social Care,BVASOC,ASC Learning Disabilities,ALD,Third Party Payments,F,Other Establishments,FH,14/04/2021,PAY01366053,LDIS,Adults LD Community Care,COUN,4316.64,Revenue,Auckland Care Ltd
Brighton & Hove City Council,http://statistics.data.gov.uk/id/local-authority/00ML,Adult Social Care,BVASOC,ASC Learning Disabilities,ALD,Customer n Client Receipts,M,Fees n Charges,MB,07/05/2021,PAY01373095,LDIS,Adults LD Community Care,COUN,-425.6,Revenue,Auckland Care Ltd
Brighton & Hove City Council,http://statistics.data.gov.uk/id/local-authority/00ML,Adult Social Care,BVASOC,ASC Learning Disabilities,ALD,Third Party Payments,F,Other Establishments,FH,07/05/2021,PAY01373095,LDIS,Adults LD Community Care,COUN,4316.64,Revenue,Auckland Care Ltd
Brighton & Hove City Council,http://statistics.data.gov.uk/id/local-authority/00ML,Adult Social Care,BVASOC,ASC Learning Disabilities,ALD,Customer n Client Receipts,M,Fees n Charges,MB,04/06/2021,PAY01380716,LDIS,Adults LD Community Care,COUN,-425.6,Revenue,Auckland Care Ltd
Brighton & Hove City Council,http://statistics.data.gov.uk/id/local-authority/00ML,Adult Social Care,BVASOC,ASC Learning Disabilities,ALD,Third Party Payments,F,Other Establishments,FH,04/06/2021,PAY01380716,LDIS,Adults LD Community Care,COUN,4316.64,Revenue,Auckland Care Ltd
Brighton & Hove City Council,http://statistics.data.gov.uk/id/local-authority/00ML,Central Support and Overheads,BVACEN,Support Services (SSC),PPT,Supplies and Services,E,Communications n Computing,EH,21/05/2021,PAY01376542,DEMO,Democratic Services,COUN,17500,Revenue,Auditel Rental & Service Ltd
Brighton & Hove City Council,http://statistics.data.gov.uk/id/local-authority/00ML,Public Health,BVAPHE,Public Health,PHE,Third Party Payments,F,Other Establishments,FH,14/05/2021,PAY01374538,PHCM,PH Commissioning,COUN,780.82,Revenue,Aum Health Services Ltd T/A Harper`s Pharmacy
Brighton & Hove City Council,http://statistics.data.gov.uk/id/local-authority/00ML,Cultural and Related Serv,BVACUL,Culture and Heritage,CHG,Supplies and Services,E,Equip't Furniture n Materials,EA,21/04/2021,PAY01367623,VENU,Venues,COUN,465.4,Revenue,Aureo Group
Brighton & Hove City Council,http://statistics.data.gov.uk/id/local-authority/00ML,Cultural and Related Serv,BVACUL,Culture and Heritage,CHG,Supplies and Services,E,Equip't Furniture n Materials,EA,21/05/2021,PAY01376133,VENU,Venues,COUN,432.9,Revenue,Aureo Group
Brighton & Hove City Council,http://statistics.data.gov.uk/id/local-authority/00ML,Housing Revenue Account,BVAHOU,Hsing Management - HRA,HGM,Premises Related,C,Repair Maint n Alterations,CA,28/05/2021,PAY01378752,HPAI,Property & Investment,COUN,1355,Revenue,Austins Cradles (Eastbourne) Ltd
Brighton & Hove City Council,http://statistics.data.gov.uk/id/local-authority/00ML,Housing Revenue Account,BVAHOU,Hsing Management - HRA,HGM,Supplies and Services,E,Equip't Furniture n Materials,EA,28/05/2021,PAY01378752,HTEN,Tenancy Services,COUN,2240,Revenue,Austins Cradles (Eastbourne) Ltd
